{"text_format":"1","workbook":"xlsx","n_sheets":4,"sheets":["入湯税・宿泊税納入申告書","入湯税・宿泊税月計表","入湯税納入書","宿泊税納入書"],"not_rendered":{"charts":0,"images":0,"macros":1,"external_links":0,"defined_names":7,"comments":1,"pivot_tables":0},"unopened":[],"bounds":{"document_bytes":16777216,"sheet_cells":100000,"rows_first":2000,"rows_last":500,"rows_between":2000,"halvings":0,"cell_chars":16384,"cell_head_chars":4096},"cells_cut":0,"cells_raw":0,"read":"whole","date_system":"1900"}

{"sheet":"入湯税・宿泊税納入申告書","index":0,"n_rows":60,"n_cols":93,"rows_kept":60,"cut":false,"hidden":false,"merged":[[0,1,0,23],[13,67,13,69],[60,1,60,66],[59,1,59,42],[59,43,59,49],[59,50,59,51],[59,52,59,58],[59,59,59,67],[54,59,54,67],[54,9,56,12],[54,13,56,14],[59,68,59,69],[58,15,58,42],[58,43,58,49],[58,50,58,51],[58,52,58,58],[58,59,58,67],[58,68,58,69],[32,1,58,7],[32,43,32,49],[32,50,32,51],[32,52,32,58],[34,43,34,49],[34,50,34,51],[34,52,34,58],[34,59,34,67],[56,52,56,58],[56,59,56,67],[56,68,56,69],[57,15,57,42],[57,43,57,49],[57,50,57,51],[57,52,57,58],[57,59,57,69],[54,52,54,58],[54,68,54,69],[55,43,55,49],[55,50,55,51],[55,52,55,58],[55,59,55,67],[55,68,55,69],[50,15,56,17],[50,18,53,19],[50,20,50,42],[51,20,51,42],[52,20,52,42],[53,20,53,42],[54,18,56,19],[54,43,54,49],[54,50,54,51],[56,43,56,49],[56,50,56,51],[54,20,54,42],[55,20,55,42],[56,20,56,42],[53,43,53,49],[53,50,53,51],[53,52,53,58],[53,59,53,67],[53,68,53,69],[50,68,50,69],[51,9,53,12],[51,13,53,14],[51,43,51,49],[51,50,51,51],[51,52,51,58],[51,59,51,67],[51,68,51,69],[50,43,50,49],[50,50,50,51],[50,52,50,58],[50,59,50,67],[52,43,52,49],[52,50,52,51],[52,52,52,58],[52,59,52,67],[49,68,49,69],[52,68,52,69],[47,52,47,58],[47,59,47,67],[47,68,47,69],[48,15,48,42],[48,43,48,49],[48,50,48,51],[48,52,48,58],[48,59,48,69],[49,15,49,42],[49,43,49,49],[49,50,49,51],[49,52,49,58],[49,59,49,67],[45,68,45,69],[46,43,46,49],[46,50,46,51],[46,52,46,58],[46,59,46,67],[46,68,46,69],[41,15,47,17],[41,18,44,19],[41,20,41,42],[42,20,42,42],[43,20,43,42],[44,20,44,42],[45,18,47,19],[44,43,44,49],[44,50,44,51],[44,52,44,58],[44,59,44,67],[44,68,44,69],[41,68,41,69],[45,52,45,58],[45,59,45,67],[45,9,47,12],[45,13,47,14],[45,43,45,49],[45,50,45,51],[47,43,47,49],[47,50,47,51],[45,20,45,42],[46,20,46,42],[47,20,47,42],[42,9,44,12],[42,13,44,14],[42,43,42,49],[42,50,42,51],[42,52,42,58],[42,59,42,67],[42,68,42,69],[41,43,41,49],[41,50,41,51],[41,52,41,58],[41,59,41,67],[43,43,43,49],[43,50,43,51],[43,52,43,58],[43,59,43,67],[40,15,40,42],[40,43,40,49],[40,50,40,51],[40,52,40,58],[40,59,40,67],[40,68,40,69],[43,68,43,69],[39,15,39,42],[39,43,39,49],[39,50,39,51],[39,52,39,58],[39,59,39,69],[38,50,38,51],[31,1,31,7],[31,8,31,14],[31,15,31,42],[31,43,31,51],[36,52,36,58],[36,59,36,67],[36,68,36,69],[37,43,37,49],[37,50,37,51],[37,52,37,58],[37,59,37,67],[37,68,37,69],[38,52,38,58],[38,59,38,67],[38,68,38,69],[32,20,32,42],[33,20,33,42],[34,20,34,42],[35,20,35,42],[36,20,36,42],[37,20,37,42],[38,20,38,42],[36,18,38,19],[31,52,31,58],[31,59,31,69],[35,59,35,67],[35,68,35,69],[32,59,32,67],[32,68,32,69],[33,9,35,12],[33,13,35,14],[33,43,33,49],[33,50,33,51],[33,52,33,58],[33,59,33,67],[33,68,33,69],[34,68,34,69],[35,43,35,49],[35,50,35,51],[35,52,35,58],[32,18,35,19],[32,15,38,17],[36,9,38,12],[36,13,38,14],[36,43,36,49],[36,50,36,51],[38,43,38,49],[29,43,29,49],[29,50,29,51],[29,52,29,58],[29,59,29,67],[29,68,29,69],[30,1,30,42],[30,43,30,49],[30,50,30,51],[30,52,30,58],[30,59,30,67],[15,1,29,7],[28,9,29,12],[28,13,29,14],[28,15,28,42],[28,43,28,49],[28,50,28,51],[28,52,28,58],[28,59,28,69],[29,15,29,42],[30,68,30,69],[25,59,25,67],[25,68,25,69],[26,43,26,49],[26,50,26,51],[26,52,26,58],[26,59,26,67],[26,68,26,69],[25,9,27,12],[25,13,27,14],[25,43,25,49],[25,50,25,51],[25,52,25,58],[27,43,27,49],[27,50,27,51],[27,52,27,58],[27,59,27,67],[27,68,27,69],[25,15,27,17],[25,18,25,42],[26,18,26,42],[27,18,27,42],[23,59,23,69],[24,15,24,42],[24,43,24,49],[24,50,24,51],[24,52,24,58],[24,59,24,67],[24,68,24,69],[23,9,24,12],[23,13,24,14],[23,15,23,42],[23,43,23,49],[23,50,23,51],[23,52,23,58],[22,59,22,67],[22,68,22,69],[20,52,20,58],[20,59,20,67],[20,68,20,69],[21,43,21,49],[21,50,21,51],[21,52,21,58],[21,59,21,67],[21,68,21,69],[22,52,22,58],[20,15,22,17],[20,18,20,42],[21,18,21,42],[22,18,22,42],[20,9,22,12],[20,13,22,14],[20,43,20,49],[20,50,20,51],[22,43,22,49],[22,50,22,51],[18,9,19,12],[18,13,19,14],[18,15,18,42],[18,43,18,49],[18,50,18,51],[18,52,18,58],[18,59,18,69],[15,9,17,12],[15,13,17,14],[17,43,17,49],[17,50,17,51],[19,15,19,42],[19,43,19,49],[19,50,19,51],[19,52,19,58],[19,59,19,67],[19,68,19,69],[15,52,15,58],[15,59,15,67],[15,68,15,69],[16,43,16,49],[16,50,16,51],[16,52,16,58],[16,59,16,67],[16,68,16,69],[15,43,15,49],[15,50,15,51],[15,15,17,17],[15,18,15,42],[16,18,16,42],[17,18,17,42],[17,52,17,58],[17,59,17,67],[17,68,17,69],[14,1,14,7],[14,8,14,14],[14,15,14,42],[14,43,14,51],[14,52,14,58],[14,59,14,69],[11,11,13,16],[11,18,11,29],[11,31,11,69],[12,18,12,29],[12,31,12,69],[13,18,13,29],[13,31,13,33],[13,34,13,36],[13,37,13,39],[13,40,13,42],[13,43,13,45],[13,46,13,48],[13,49,13,51],[13,52,13,54],[13,55,13,57],[13,58,13,60],[13,61,13,63],[13,64,13,66],[6,1,6,69],[8,11,10,16],[8,18,8,29],[8,31,8,69],[9,18,9,29],[9,31,9,69],[10,18,10,29],[10,31,10,33],[10,52,10,54],[10,55,10,57],[10,58,10,60],[10,61,10,63],[10,64,10,66],[10,67,10,69],[10,34,10,36],[10,37,10,39],[10,40,10,42],[10,43,10,45],[10,46,10,48],[10,49,10,51],[1,1,1,66],[2,50,2,53],[2,54,2,56],[2,57,2,58],[2,59,2,61],[2,62,2,63],[2,64,2,66],[2,67,2,68],[4,1,4,23]]}
[null,"第１号様式"]
[]
[null,null,null,null,null,null,null,null,null,null,null,null,null,null,null,null,null,null,null,null,null,null,null,null,null,null,null,null,null,null,null,null,null,null,null,null,null,null,null,null,null,null,null,null,null,null,null,null,null,null,"令和",null,null,null,{"$f":"+IF(入湯税・宿泊税月計表!BZ2=0,\"\",入湯税・宿泊税月計表!BZ2)","v":""},null,null,"年",null,{"$f":"+IF(入湯税・宿泊税月計表!CF2=0,\"\",入湯税・宿泊税月計表!CF2)","v":""},null,null,"月",null,{"$f":"+IF(入湯税・宿泊税月計表!CL2=0,\"\",入湯税・宿泊税月計表!CL2)","v":""},null,null,"日"]
[]
[null,"（宛先）函館市長"]
[]
[null,"入湯税および宿泊税納入申告書"]
[]
[null,null,null,null,null,null,null,null,null,null,null,"特別徴収\n義 務 者",null,null,null,null,null,null,"住 所 （ 所 在 地 ）",null,null,null,null,null,null,null,null,null,null,null,null,{"$f":"+IF(入湯税・宿泊税月計表!S2=\"\",\"\",入湯税・宿泊税月計表!S2)","v":""}]
[null,null,null,null,null,null,null,null,null,null,null,null,null,null,null,null,null,null,"氏名(名称)･代表者の氏名",null,null,null,null,null,null,null,null,null,null,null,null,{"$f":"+IF(入湯税・宿泊税月計表!S3=\"\",\"\",入湯税・宿泊税月計表!S3)","v":""}]
[null,null,null,null,null,null,null,null,null,null,null,null,null,null,null,null,null,null,"個人番号または法人番号\n（右詰で記載）",null,null,null,null,null,null,null,null,null,null,null,null,{"$f":"+IF(入湯税・宿泊税月計表!S4=\"\",\"\",入湯税・宿泊税月計表!S4)","v":""},null,null,{"$f":"+IF(入湯税・宿泊税月計表!V4=\"\",\"\",入湯税・宿泊税月計表!V4)","v":""},null,null,{"$f":"+IF(入湯税・宿泊税月計表!Y4=\"\",\"\",入湯税・宿泊税月計表!Y4)","v":""},null,null,{"$f":"+IF(入湯税・宿泊税月計表!AB4=\"\",\"\",入湯税・宿泊税月計表!AB4)","v":""},null,null,{"$f":"+IF(入湯税・宿泊税月計表!AE4=\"\",\"\",入湯税・宿泊税月計表!AE4)","v":""},null,null,{"$f":"+IF(入湯税・宿泊税月計表!AH4=\"\",\"\",入湯税・宿泊税月計表!AH4)","v":""},null,null,{"$f":"+IF(入湯税・宿泊税月計表!AK4=\"\",\"\",入湯税・宿泊税月計表!AK4)","v":""},null,null,{"$f":"+IF(入湯税・宿泊税月計表!AN4=\"\",\"\",入湯税・宿泊税月計表!AN4)","v":""},null,null,{"$f":"+IF(入湯税・宿泊税月計表!AQ4=\"\",\"\",入湯税・宿泊税月計表!AQ4)","v":""},null,null,{"$f":"+IF(入湯税・宿泊税月計表!AT4=\"\",\"\",入湯税・宿泊税月計表!AT4)","v":""},null,null,{"$f":"+IF(入湯税・宿泊税月計表!AW4=\"\",\"\",入湯税・宿泊税月計表!AW4)","v":""},null,null,{"$f":"+IF(入湯税・宿泊税月計表!AZ4=\"\",\"\",入湯税・宿泊税月計表!AZ4)","v":""},null,null,{"$f":"+IF(入湯税・宿泊税月計表!BC4=\"\",\"\",入湯税・宿泊税月計表!BC4)","v":""}]
[null,null,null,null,null,null,null,null,null,null,null,"宿 泊\n（入 湯）\n施 設",null,null,null,null,null,null,"所在地",null,null,null,null,null,null,null,null,null,null,null,null,{"$f":"+IF(入湯税・宿泊税月計表!S5=\"\",\"\",入湯税・宿泊税月計表!S5)","v":""}]
[null,null,null,null,null,null,null,null,null,null,null,null,null,null,null,null,null,null,"名称",null,null,null,null,null,null,null,null,null,null,null,null,{"$f":"+IF(入湯税・宿泊税月計表!S6=\"\",\"\",入湯税・宿泊税月計表!S6)","v":""}]
[null,null,null,null,null,null,null,null,null,null,null,null,null,null,null,null,null,null,"指定番号",null,null,null,null,null,null,null,null,null,null,null,null,{"$f":"+IF(入湯税・宿泊税月計表!S7=\"\",\"\",入湯税・宿泊税月計表!S7)","v":""},null,null,{"$f":"+IF(入湯税・宿泊税月計表!V7=\"\",\"\",入湯税・宿泊税月計表!V7)","v":""},null,null,{"$f":"+IF(入湯税・宿泊税月計表!Y7=\"\",\"\",入湯税・宿泊税月計表!Y7)","v":""},null,null,{"$f":"+IF(入湯税・宿泊税月計表!AB7=\"\",\"\",入湯税・宿泊税月計表!AB7)","v":""},null,null,{"$f":"+IF(入湯税・宿泊税月計表!AE7=\"\",\"\",入湯税・宿泊税月計表!AE7)","v":""},null,null,{"$f":"+IF(入湯税・宿泊税月計表!AH7=\"\",\"\",入湯税・宿泊税月計表!AH7)","v":""},null,null,{"$f":"+IF(入湯税・宿泊税月計表!AK7=\"\",\"\",入湯税・宿泊税月計表!AK7)","v":""},null,null,{"$f":"+IF(入湯税・宿泊税月計表!AN7=\"\",\"\",入湯税・宿泊税月計表!AN7)","v":""},null,null,{"$f":"+IF(入湯税・宿泊税月計表!AQ7=\"\",\"\",入湯税・宿泊税月計表!AQ7)","v":""},null,null,{"$f":"+IF(入湯税・宿泊税月計表!AT7=\"\",\"\",入湯税・宿泊税月計表!AT7)","v":""},null,null,{"$f":"+IF(入湯税・宿泊税月計表!AW7=\"\",\"\",入湯税・宿泊税月計表!AW7)","v":""},null,null,{"$f":"+IF(入湯税・宿泊税月計表!AZ7=\"\",\"\",入湯税・宿泊税月計表!AZ7)","v":""},null,null,{"$f":"+IF(入湯税・宿泊税月計表!BC7=\"\",\"\",入湯税・宿泊税月計表!BC7)","v":""}]
[null,"税　目",null,null,null,null,null,null,"入湯年月",null,null,null,null,null,null,"区　　　　　分",null,null,null,null,null,null,null,null,null,null,null,null,null,null,null,null,null,null,null,null,null,null,null,null,null,null,null,"入湯人員",null,null,null,null,null,null,null,null,"税　率",null,null,null,null,null,null,"税　　額"]
[null,"入湯税",null,null,null,null,null,null,null,{"$f":"+IF(入湯税・宿泊税月計表!$AZ$13=0,\"\",入湯税・宿泊税月計表!$AZ$13)","v":""},null,null,null,"年",null,"課\n税\n対\n象",null,null,"宿泊（一般客）",null,null,null,null,null,null,null,null,null,null,null,null,null,null,null,null,null,null,null,null,null,null,null,null,{"$f":"+IF(入湯税・宿泊税月計表!F$54=0,\"\",入湯税・宿泊税月計表!F$54)","v":""},null,null,null,null,null,null,"人",null,"100円",null,null,null,null,null,null,{"$f":"IF(AR16=\"\",\"\",100*AR16)","v":""},null,null,null,null,null,null,null,null,"円"]
[null,null,null,null,null,null,null,null,null,null,null,null,null,null,null,null,null,null,"宿泊（湯治客等）",null,null,null,null,null,null,null,null,null,null,null,null,null,null,null,null,null,null,null,null,null,null,null,null,{"$f":"+IF(入湯税・宿泊税月計表!I$54=0,\"\",入湯税・宿泊税月計表!I$54)","v":""},null,null,null,null,null,null,"人",null," 50円",null,null,null,null,null,null,{"$f":"IF(AR17=\"\",\"\",50*AR17)","v":""},null,null,null,null,null,null,null,null,"円"]
[null,null,null,null,null,null,null,null,null,null,null,null,null,null,null,null,null,null,"日帰り",null,null,null,null,null,null,null,null,null,null,null,null,null,null,null,null,null,null,null,null,null,null,null,null,{"$f":"+IF(入湯税・宿泊税月計表!L$54=0,\"\",入湯税・宿泊税月計表!L$54)","v":""},null,null,null,null,null,null,"人",null,"100円",null,null,null,null,null,null,{"$f":"IF(AR18=\"\",\"\",100*AR18)","v":""},null,null,null,null,null,null,null,null,"円"]
[null,null,null,null,null,null,null,null,null,{"$f":"+IF(入湯税・宿泊税月計表!BE13=0,\"\",入湯税・宿泊税月計表!BE13)","v":""},null,null,null,"月",null,"課　税　対　象　外",null,null,null,null,null,null,null,null,null,null,null,null,null,null,null,null,null,null,null,null,null,null,null,null,null,null,null,{"$f":"+IF(入湯税・宿泊税月計表!O$55=0,\"\",入湯税・宿泊税月計表!O$55)","v":""},null,null,null,null,null,null,"人"]
[null,null,null,null,null,null,null,null,null,null,null,null,null,null,null,"小　　　　　　　計",null,null,null,null,null,null,null,null,null,null,null,null,null,null,null,null,null,null,null,null,null,null,null,null,null,null,null,{"$f":"IF(SUM(AR16:AX19)=0,\"\",SUM(AR16:AX19))","v":""},null,null,null,null,null,null,"人",null,null,null,null,null,null,null,null,{"$f":"IF(SUM(BH16:BP18)=0,\"\",SUM(BH16:BP18))","v":""},null,null,null,null,null,null,null,null,"円"]
[null,null,null,null,null,null,null,null,null,{"$f":"+IF(入湯税・宿泊税月計表!$DK$13=0,\"\",入湯税・宿泊税月計表!$DK$13)","v":""},null,null,null,"年",null,"課\n税\n対\n象",null,null,"宿泊（一般客）",null,null,null,null,null,null,null,null,null,null,null,null,null,null,null,null,null,null,null,null,null,null,null,null,{"$f":"+IF(入湯税・宿泊税月計表!BQ$54=0,\"\",入湯税・宿泊税月計表!BQ$54)","v":""},null,null,null,null,null,null,"人",null,"100円",null,null,null,null,null,null,{"$f":"IF(AR21=\"\",\"\",100*AR21)","v":""},null,null,null,null,null,null,null,null,"円"]
[null,null,null,null,null,null,null,null,null,null,null,null,null,null,null,null,null,null,"宿泊（湯治客等）",null,null,null,null,null,null,null,null,null,null,null,null,null,null,null,null,null,null,null,null,null,null,null,null,{"$f":"+IF(入湯税・宿泊税月計表!BT$54=0,\"\",入湯税・宿泊税月計表!BT$54)","v":""},null,null,null,null,null,null,"人",null," 50円",null,null,null,null,null,null,{"$f":"IF(AR22=\"\",\"\",50*AR22)","v":""},null,null,null,null,null,null,null,null,"円"]
[null,null,null,null,null,null,null,null,null,null,null,null,null,null,null,null,null,null,"日帰り",null,null,null,null,null,null,null,null,null,null,null,null,null,null,null,null,null,null,null,null,null,null,null,null,{"$f":"+IF(入湯税・宿泊税月計表!BW$54=0,\"\",入湯税・宿泊税月計表!BW$54)","v":""},null,null,null,null,null,null,"人",null,"100円",null,null,null,null,null,null,{"$f":"IF(AR23=\"\",\"\",100*AR23)","v":""},null,null,null,null,null,null,null,null,"円"]
[null,null,null,null,null,null,null,null,null,{"$f":"+IF(入湯税・宿泊税月計表!DP13=0,\"\",入湯税・宿泊税月計表!DP13)","v":""},null,null,null,"月",null,"課　税　対　象　外",null,null,null,null,null,null,null,null,null,null,null,null,null,null,null,null,null,null,null,null,null,null,null,null,null,null,null,{"$f":"+IF(入湯税・宿泊税月計表!BZ$55=0,\"\",入湯税・宿泊税月計表!BZ$55)","v":""},null,null,null,null,null,null,"人"]
[null,null,null,null,null,null,null,null,null,null,null,null,null,null,null,"小　　　　　　　計",null,null,null,null,null,null,null,null,null,null,null,null,null,null,null,null,null,null,null,null,null,null,null,null,null,null,null,{"$f":"IF(SUM(AR21:AX24)=0,\"\",SUM(AR21:AX24))","v":""},null,null,null,null,null,null,"人",null,null,null,null,null,null,null,null,{"$f":"IF(SUM(BH21:BP23)=0,\"\",SUM(BH21:BP23))","v":""},null,null,null,null,null,null,null,null,"円"]
[null,null,null,null,null,null,null,null,null,{"$f":"+IF(入湯税・宿泊税月計表!$FV$13=0,\"\",入湯税・宿泊税月計表!$FV$13)","v":""},null,null,null,"年",null,"課\n税\n対\n象",null,null,"宿泊（一般客）",null,null,null,null,null,null,null,null,null,null,null,null,null,null,null,null,null,null,null,null,null,null,null,null,{"$f":"+IF(入湯税・宿泊税月計表!EB$54=0,\"\",入湯税・宿泊税月計表!EB$54)","v":""},null,null,null,null,null,null,"人",null,"100円",null,null,null,null,null,null,{"$f":"IF(AR26=\"\",\"\",100*AR26)","v":""},null,null,null,null,null,null,null,null,"円"]
[null,null,null,null,null,null,null,null,null,null,null,null,null,null,null,null,null,null,"宿泊（湯治客等）",null,null,null,null,null,null,null,null,null,null,null,null,null,null,null,null,null,null,null,null,null,null,null,null,{"$f":"+IF(入湯税・宿泊税月計表!EE$54=0,\"\",入湯税・宿泊税月計表!EE$54)","v":""},null,null,null,null,null,null,"人",null," 50円",null,null,null,null,null,null,{"$f":"IF(AR27=\"\",\"\",50*AR27)","v":""},null,null,null,null,null,null,null,null,"円"]
[null,null,null,null,null,null,null,null,null,null,null,null,null,null,null,null,null,null,"日帰り",null,null,null,null,null,null,null,null,null,null,null,null,null,null,null,null,null,null,null,null,null,null,null,null,{"$f":"+IF(入湯税・宿泊税月計表!EH$54=0,\"\",入湯税・宿泊税月計表!EH$54)","v":""},null,null,null,null,null,null,"人",null,"100円",null,null,null,null,null,null,{"$f":"IF(AR28=\"\",\"\",100*AR28)","v":""},null,null,null,null,null,null,null,null,"円"]
[null,null,null,null,null,null,null,null,null,{"$f":"+IF(入湯税・宿泊税月計表!GA13=0,\"\",入湯税・宿泊税月計表!GA13)","v":""},null,null,null,"月",null,"課　税　対　象　外",null,null,null,null,null,null,null,null,null,null,null,null,null,null,null,null,null,null,null,null,null,null,null,null,null,null,null,{"$f":"+IF(入湯税・宿泊税月計表!EK$55=0,\"\",入湯税・宿泊税月計表!EK$55)","v":""},null,null,null,null,null,null,"人"]
[null,null,null,null,null,null,null,null,null,null,null,null,null,null,null,"小　　　　　　　計",null,null,null,null,null,null,null,null,null,null,null,null,null,null,null,null,null,null,null,null,null,null,null,null,null,null,null,{"$f":"IF(SUM(AR26:AX29)=0,\"\",SUM(AR26:AX29))","v":""},null,null,null,null,null,null,"人",null,null,null,null,null,null,null,null,{"$f":"IF(SUM(BH26:BP28)=0,\"\",SUM(BH26:BP28))","v":""},null,null,null,null,null,null,null,null,"円",null,null,"百","十","億","千","百","十","万","千","百","十","円","百","十","億","千","百","十","万","千","百","十","円"]
[null,"入　　湯　　税　　合　　計",null,null,null,null,null,null,null,null,null,null,null,null,null,null,null,null,null,null,null,null,null,null,null,null,null,null,null,null,null,null,null,null,null,null,null,null,null,null,null,null,null,{"$f":"IF(SUM(AR16:AX19)+SUM(AR21:AX24)+SUM(AR26:AX29)=0,\"\",SUM(AR16:AX19)+SUM(AR21:AX24)+SUM(AR26:AX29))","v":""},null,null,null,null,null,null,"人",null,null,null,null,null,null,null,null,{"$f":"IF(SUM(BH16:BP18)+SUM(BH21:BP23)+SUM(BH26:BP28)=0,\"\",SUM(BH16:BP18)+SUM(BH21:BP23)+SUM(BH26:BP28))","v":""},null,null,null,null,null,null,null,null,"円",null,{"$f":"IF(BH31=\"\",0,BH31)","v":0},{"$f":"ROUNDDOWN(RIGHT($BS$31,11)/10000000000,0)","v":0},{"$f":"ROUNDDOWN(RIGHT($BS$31,10)/1000000000,0)","v":0},{"$f":"ROUNDDOWN(RIGHT($BS$31,9)/100000000,0)","v":0},{"$f":"ROUNDDOWN(RIGHT($BS$31,8)/10000000,0)","v":0},{"$f":"ROUNDDOWN(RIGHT($BS$31,7)/1000000,0)","v":0},{"$f":"ROUNDDOWN(RIGHT($BS$31,6)/100000,0)","v":0},{"$f":"ROUNDDOWN(RIGHT($BS$31,5)/10000,0)","v":0},{"$f":"ROUNDDOWN(RIGHT($BS$31,4)/1000,0)","v":0},{"$f":"ROUNDDOWN(RIGHT($BS$31,3)/100,0)","v":0},{"$f":"ROUNDDOWN(RIGHT($BS$31,2)/10,0)","v":0},{"$f":"ROUNDDOWN(RIGHT($BS$31,1)/1,0)","v":0},{"$f":"IF(AND($BS31>=1000000000,$BS31<10000000000),\"￥\",IF($BS31>=10000000000,BT31,\"\"))","v":""},{"$f":"IF(AND($BS31>=100000000,$BS31<1000000000),\"￥\",IF($BS31>=1000000000,BU31,\"\"))","v":""},{"$f":"IF(AND($BS31>=10000000,$BS31<100000000),\"￥\",IF($BS31>=100000000,BV31,\"\"))","v":""},{"$f":"IF(AND($BS31>=1000000,$BS31<10000000),\"￥\",IF($BS31>=10000000,BW31,\"\"))","v":""},{"$f":"IF(AND($BS31>=100000,$BS31<1000000),\"￥\",IF($BS31>=1000000,BX31,\"\"))","v":""},{"$f":"IF(AND($BS31>=10000,$BS31<100000),\"￥\",IF($BS31>=100000,BY31,\"\"))","v":""},{"$f":"IF(AND($BS31>=1000,$BS31<10000),\"￥\",IF($BS31>=10000,BZ31,\"\"))","v":""},{"$f":"IF(AND($BS31>=100,$BS31<1000),\"￥\",IF($BS31>=1000,CA31,\"\"))","v":""},{"$f":"IF($BS31>=100,CB31,\"\")","v":""},{"$f":"IF($BS31>=10,CC31,\"\")","v":""},{"$f":"IF($BS31>=1,CD31,\"\")","v":""}]
[null,"税　目",null,null,null,null,null,null,"宿泊年月",null,null,null,null,null,null,"区　　　　　　分",null,null,null,null,null,null,null,null,null,null,null,null,null,null,null,null,null,null,null,null,null,null,null,null,null,null,null,"宿泊数",null,null,null,null,null,null,null,null,"税　率",null,null,null,null,null,null,"税　　額"]
[null,"宿泊税",null,null,null,null,null,null,null,null,null,null,null,null,null,"課税対象",null,null,"一\n般\n客",null,"１人１泊２万円未満",null,null,null,null,null,null,null,null,null,null,null,null,null,null,null,null,null,null,null,null,null,null,{"$f":"+IF(入湯税・宿泊税月計表!AH$54=0,\"\",入湯税・宿泊税月計表!AH$54)","v":""},null,null,null,null,null,null,"泊",null,"  200円",null,null,null,null,null,null,{"$f":"IF(AR33=\"\",\"\",AR33*200)","v":""},null,null,null,null,null,null,null,null,"円"]
[null,null,null,null,null,null,null,null,null,{"$f":"+IF(入湯税・宿泊税月計表!$AZ$13=0,\"\",入湯税・宿泊税月計表!$AZ$13)","v":""},null,null,null,"年",null,null,null,null,null,null,"１人１泊２万円以上５万円未満",null,null,null,null,null,null,null,null,null,null,null,null,null,null,null,null,null,null,null,null,null,null,{"$f":"+IF(入湯税・宿泊税月計表!AK$54=0,\"\",入湯税・宿泊税月計表!AK$54)","v":""},null,null,null,null,null,null,"泊",null,"  400円",null,null,null,null,null,null,{"$f":"IF(AR34=\"\",\"\",AR34*400)","v":""},null,null,null,null,null,null,null,null,"円"]
[null,null,null,null,null,null,null,null,null,null,null,null,null,null,null,null,null,null,null,null,"１人１泊５万円以上10万円未満",null,null,null,null,null,null,null,null,null,null,null,null,null,null,null,null,null,null,null,null,null,null,{"$f":"+IF(入湯税・宿泊税月計表!AN$54=0,\"\",入湯税・宿泊税月計表!AN$54)","v":""},null,null,null,null,null,null,"泊",null,"1,000円",null,null,null,null,null,null,{"$f":"IF(AR35=\"\",\"\",AR35*1000)","v":""},null,null,null,null,null,null,null,null,"円"]
[null,null,null,null,null,null,null,null,null,null,null,null,null,null,null,null,null,null,null,null,"１人１泊10万円以上",null,null,null,null,null,null,null,null,null,null,null,null,null,null,null,null,null,null,null,null,null,null,{"$f":"+IF(入湯税・宿泊税月計表!AQ$54=0,\"\",入湯税・宿泊税月計表!AQ$54)","v":""},null,null,null,null,null,null,"泊",null,"2,500円",null,null,null,null,null,null,{"$f":"IF(AR36=\"\",\"\",AR36*2500)","v":""},null,null,null,null,null,null,null,null,"円"]
[null,null,null,null,null,null,null,null,null,{"$f":"+IF(入湯税・宿泊税月計表!BE13=0,\"\",入湯税・宿泊税月計表!BE13)","v":""},null,null,null,"月",null,null,null,null,"各\n種\n大会",null,"１人１泊２万円未満",null,null,null,null,null,null,null,null,null,null,null,null,null,null,null,null,null,null,null,null,null,null,{"$f":"+IF(入湯税・宿泊税月計表!AT$54=0,\"\",入湯税・宿泊税月計表!AT$54)","v":""},null,null,null,null,null,null,"泊",null,"  100円",null,null,null,null,null,null,{"$f":"IF(AR37=\"\",\"\",AR37*100)","v":""},null,null,null,null,null,null,null,null,"円"]
[null,null,null,null,null,null,null,null,null,null,null,null,null,null,null,null,null,null,null,null,"１人１泊２万円以上５万円未満",null,null,null,null,null,null,null,null,null,null,null,null,null,null,null,null,null,null,null,null,null,null,{"$f":"+IF(入湯税・宿泊税月計表!AW$54=0,\"\",入湯税・宿泊税月計表!AW$54)","v":""},null,null,null,null,null,null,"泊",null,"  200円",null,null,null,null,null,null,{"$f":"IF(AR38=\"\",\"\",AR38*200)","v":""},null,null,null,null,null,null,null,null,"円"]
[null,null,null,null,null,null,null,null,null,null,null,null,null,null,null,null,null,null,null,null,"１人１泊５万円以上",null,null,null,null,null,null,null,null,null,null,null,null,null,null,null,null,null,null,null,null,null,null,{"$f":"+IF(入湯税・宿泊税月計表!AZ$54=0,\"\",入湯税・宿泊税月計表!AZ$54)","v":""},null,null,null,null,null,null,"泊",null,"　500円",null,null,null,null,null,null,{"$f":"IF(AR39=\"\",\"\",AR39*500)","v":""},null,null,null,null,null,null,null,null,"円"]
[null,null,null,null,null,null,null,null,null,null,null,null,null,null,null,"課　税　対　象　外",null,null,null,null,null,null,null,null,null,null,null,null,null,null,null,null,null,null,null,null,null,null,null,null,null,null,null,{"$f":"+IF(入湯税・宿泊税月計表!BC$55=0,\"\",入湯税・宿泊税月計表!BC$55)","v":""},null,null,null,null,null,null,"泊"]
[null,null,null,null,null,null,null,null,null,null,null,null,null,null,null,"小　　　　　　　計",null,null,null,null,null,null,null,null,null,null,null,null,null,null,null,null,null,null,null,null,null,null,null,null,null,null,null,{"$f":"IF(SUM(AR33:AX40)=0,\"\",SUM(AR33:AX40))","v":""},null,null,null,null,null,null,"泊",null,null,null,null,null,null,null,null,{"$f":"IF(SUM(BH33:BP39)=0,\"\",SUM(BH33:BP39))","v":""},null,null,null,null,null,null,null,null,"円"]
[null,null,null,null,null,null,null,null,null,null,null,null,null,null,null,"課税対象",null,null,"一\n般\n客",null,"１人１泊２万円未満",null,null,null,null,null,null,null,null,null,null,null,null,null,null,null,null,null,null,null,null,null,null,{"$f":"+IF(入湯税・宿泊税月計表!CS$54=0,\"\",入湯税・宿泊税月計表!CS$54)","v":""},null,null,null,null,null,null,"泊",null,"  200円",null,null,null,null,null,null,{"$f":"IF(AR42=\"\",\"\",AR42*200)","v":""},null,null,null,null,null,null,null,null,"円"]
[null,null,null,null,null,null,null,null,null,{"$f":"+IF(入湯税・宿泊税月計表!$DK$13=0,\"\",入湯税・宿泊税月計表!$DK$13)","v":""},null,null,null,"年",null,null,null,null,null,null,"１人１泊２万円以上５万円未満",null,null,null,null,null,null,null,null,null,null,null,null,null,null,null,null,null,null,null,null,null,null,{"$f":"+IF(入湯税・宿泊税月計表!CV$54=0,\"\",入湯税・宿泊税月計表!CV$54)","v":""},null,null,null,null,null,null,"泊",null,"  400円",null,null,null,null,null,null,{"$f":"IF(AR43=\"\",\"\",AR43*400)","v":""},null,null,null,null,null,null,null,null,"円"]
[null,null,null,null,null,null,null,null,null,null,null,null,null,null,null,null,null,null,null,null,"１人１泊５万円以上10万円未満",null,null,null,null,null,null,null,null,null,null,null,null,null,null,null,null,null,null,null,null,null,null,{"$f":"+IF(入湯税・宿泊税月計表!CY$54=0,\"\",入湯税・宿泊税月計表!CY$54)","v":""},null,null,null,null,null,null,"泊",null,"1,000円",null,null,null,null,null,null,{"$f":"IF(AR44=\"\",\"\",AR44*1000)","v":""},null,null,null,null,null,null,null,null,"円"]
[null,null,null,null,null,null,null,null,null,null,null,null,null,null,null,null,null,null,null,null,"１人１泊10万円以上",null,null,null,null,null,null,null,null,null,null,null,null,null,null,null,null,null,null,null,null,null,null,{"$f":"+IF(入湯税・宿泊税月計表!DB$54=0,\"\",入湯税・宿泊税月計表!DB$54)","v":""},null,null,null,null,null,null,"泊",null,"2,500円",null,null,null,null,null,null,{"$f":"IF(AR45=\"\",\"\",AR45*2500)","v":""},null,null,null,null,null,null,null,null,"円"]
[null,null,null,null,null,null,null,null,null,{"$f":"+IF(入湯税・宿泊税月計表!DP13=0,\"\",入湯税・宿泊税月計表!DP13)","v":""},null,null,null,"月",null,null,null,null,"各\n種\n大会",null,"１人１泊２万円未満",null,null,null,null,null,null,null,null,null,null,null,null,null,null,null,null,null,null,null,null,null,null,{"$f":"+IF(入湯税・宿泊税月計表!DE$54=0,\"\",入湯税・宿泊税月計表!DE$54)","v":""},null,null,null,null,null,null,"泊",null,"  100円",null,null,null,null,null,null,{"$f":"IF(AR46=\"\",\"\",AR46*100)","v":""},null,null,null,null,null,null,null,null,"円"]
[null,null,null,null,null,null,null,null,null,null,null,null,null,null,null,null,null,null,null,null,"１人１泊２万円以上５万円未満",null,null,null,null,null,null,null,null,null,null,null,null,null,null,null,null,null,null,null,null,null,null,{"$f":"+IF(入湯税・宿泊税月計表!DH$54=0,\"\",入湯税・宿泊税月計表!DH$54)","v":""},null,null,null,null,null,null,"泊",null,"  200円",null,null,null,null,null,null,{"$f":"IF(AR47=\"\",\"\",AR47*200)","v":""},null,null,null,null,null,null,null,null,"円"]
[null,null,null,null,null,null,null,null,null,null,null,null,null,null,null,null,null,null,null,null,"１人１泊５万円以上",null,null,null,null,null,null,null,null,null,null,null,null,null,null,null,null,null,null,null,null,null,null,{"$f":"+IF(入湯税・宿泊税月計表!DK$54=0,\"\",入湯税・宿泊税月計表!DK$54)","v":""},null,null,null,null,null,null,"泊",null,"　500円",null,null,null,null,null,null,{"$f":"IF(AR48=\"\",\"\",AR48*500)","v":""},null,null,null,null,null,null,null,null,"円"]
[null,null,null,null,null,null,null,null,null,null,null,null,null,null,null,"課　税　対　象　外",null,null,null,null,null,null,null,null,null,null,null,null,null,null,null,null,null,null,null,null,null,null,null,null,null,null,null,{"$f":"+IF(入湯税・宿泊税月計表!DN$55=0,\"\",入湯税・宿泊税月計表!DN$55)","v":""},null,null,null,null,null,null,"泊"]
[null,null,null,null,null,null,null,null,null,null,null,null,null,null,null,"小　　　　　　　計",null,null,null,null,null,null,null,null,null,null,null,null,null,null,null,null,null,null,null,null,null,null,null,null,null,null,null,{"$f":"IF(SUM(AR42:AX49)=0,\"\",SUM(AR42:AX49))","v":""},null,null,null,null,null,null,"泊",null,null,null,null,null,null,null,null,{"$f":"IF(SUM(BH42:BP48)=0,\"\",SUM(BH42:BP48))","v":""},null,null,null,null,null,null,null,null,"円"]
[null,null,null,null,null,null,null,null,null,null,null,null,null,null,null,"課税対象",null,null,"一\n般\n客",null,"１人１泊２万円未満",null,null,null,null,null,null,null,null,null,null,null,null,null,null,null,null,null,null,null,null,null,null,{"$f":"+IF(入湯税・宿泊税月計表!FD$54=0,\"\",入湯税・宿泊税月計表!FD$54)","v":""},null,null,null,null,null,null,"泊",null,"  200円",null,null,null,null,null,null,{"$f":"IF(AR51=\"\",\"\",AR51*200)","v":""},null,null,null,null,null,null,null,null,"円"]
[null,null,null,null,null,null,null,null,null,{"$f":"+IF(入湯税・宿泊税月計表!$FV$13=0,\"\",入湯税・宿泊税月計表!$FV$13)","v":""},null,null,null,"年",null,null,null,null,null,null,"１人１泊２万円以上５万円未満",null,null,null,null,null,null,null,null,null,null,null,null,null,null,null,null,null,null,null,null,null,null,{"$f":"+IF(入湯税・宿泊税月計表!FG$54=0,\"\",入湯税・宿泊税月計表!FG$54)","v":""},null,null,null,null,null,null,"泊",null,"  400円",null,null,null,null,null,null,{"$f":"IF(AR52=\"\",\"\",AR52*400)","v":""},null,null,null,null,null,null,null,null,"円"]
[null,null,null,null,null,null,null,null,null,null,null,null,null,null,null,null,null,null,null,null,"１人１泊５万円以上10万円未満",null,null,null,null,null,null,null,null,null,null,null,null,null,null,null,null,null,null,null,null,null,null,{"$f":"+IF(入湯税・宿泊税月計表!FJ$54=0,\"\",入湯税・宿泊税月計表!FJ$54)","v":""},null,null,null,null,null,null,"泊",null,"1,000円",null,null,null,null,null,null,{"$f":"IF(AR53=\"\",\"\",AR53*1000)","v":""},null,null,null,null,null,null,null,null,"円"]
[null,null,null,null,null,null,null,null,null,null,null,null,null,null,null,null,null,null,null,null,"１人１泊10万円以上",null,null,null,null,null,null,null,null,null,null,null,null,null,null,null,null,null,null,null,null,null,null,{"$f":"+IF(入湯税・宿泊税月計表!FM$54=0,\"\",入湯税・宿泊税月計表!FM$54)","v":""},null,null,null,null,null,null,"泊",null,"2,500円",null,null,null,null,null,null,{"$f":"IF(AR54=\"\",\"\",AR54*2500)","v":""},null,null,null,null,null,null,null,null,"円"]
[null,null,null,null,null,null,null,null,null,{"$f":"+IF(入湯税・宿泊税月計表!GA13=0,\"\",入湯税・宿泊税月計表!GA13)","v":""},null,null,null,"月",null,null,null,null,"各\n種\n大会",null,"１人１泊２万円未満",null,null,null,null,null,null,null,null,null,null,null,null,null,null,null,null,null,null,null,null,null,null,{"$f":"+IF(入湯税・宿泊税月計表!FP$54=0,\"\",入湯税・宿泊税月計表!FP$54)","v":""},null,null,null,null,null,null,"泊",null,"  100円",null,null,null,null,null,null,{"$f":"IF(AR55=\"\",\"\",AR55*100)","v":""},null,null,null,null,null,null,null,null,"円"]
[null,null,null,null,null,null,null,null,null,null,null,null,null,null,null,null,null,null,null,null,"１人１泊２万円以上５万円未満",null,null,null,null,null,null,null,null,null,null,null,null,null,null,null,null,null,null,null,null,null,null,{"$f":"+IF(入湯税・宿泊税月計表!FS$54=0,\"\",入湯税・宿泊税月計表!FS$54)","v":""},null,null,null,null,null,null,"泊",null,"  200円",null,null,null,null,null,null,{"$f":"IF(AR56=\"\",\"\",AR56*200)","v":""},null,null,null,null,null,null,null,null,"円"]
[null,null,null,null,null,null,null,null,null,null,null,null,null,null,null,null,null,null,null,null,"１人１泊５万円以上",null,null,null,null,null,null,null,null,null,null,null,null,null,null,null,null,null,null,null,null,null,null,{"$f":"+IF(入湯税・宿泊税月計表!FV$54=0,\"\",入湯税・宿泊税月計表!FV$54)","v":""},null,null,null,null,null,null,"泊",null,"　500円",null,null,null,null,null,null,{"$f":"IF(AR57=\"\",\"\",AR57*500)","v":""},null,null,null,null,null,null,null,null,"円"]
[null,null,null,null,null,null,null,null,null,null,null,null,null,null,null,"課　税　対　象　外",null,null,null,null,null,null,null,null,null,null,null,null,null,null,null,null,null,null,null,null,null,null,null,null,null,null,null,{"$f":"+IF(入湯税・宿泊税月計表!FY$55=0,\"\",入湯税・宿泊税月計表!FY$55)","v":""},null,null,null,null,null,null,"泊"]
[null,null,null,null,null,null,null,null,null,null,null,null,null,null,null,"小　　　　　　　計",null,null,null,null,null,null,null,null,null,null,null,null,null,null,null,null,null,null,null,null,null,null,null,null,null,null,null,{"$f":"IF(SUM(AR51:AX58)=0,\"\",SUM(AR51:AX58))","v":""},null,null,null,null,null,null,"泊",null,null,null,null,null,null,null,null,{"$f":"IF(SUM(BH51:BR57)=0,\"\",SUM(BH51:BR57))","v":""},null,null,null,null,null,null,null,null,"円",null,null,"百","十","億","千","百","十","万","千","百","十","円","百","十","億","千","百","十","万","千","百","十","円"]
[null,"宿　　泊　　税　　合　　計",null,null,null,null,null,null,null,null,null,null,null,null,null,null,null,null,null,null,null,null,null,null,null,null,null,null,null,null,null,null,null,null,null,null,null,null,null,null,null,null,null,{"$f":"IF(SUM(AR33:AX40)+SUM(AR42:AX49)+SUM(AR51:AX58)=0,\"\",SUM(AR33:AX40)+SUM(AR42:AX49)+SUM(AR51:AX58))","v":""},null,null,null,null,null,null,"泊",null,null,null,null,null,null,null,null,{"$f":"IF(SUM(BH33:BR39)+SUM(BH42:BR48)+SUM(BH51:BR57)=0,\"\",SUM(BH33:BR39)+SUM(BH42:BR48)+SUM(BH51:BR57))","v":""},null,null,null,null,null,null,null,null,"円",null,{"$f":"IF(BH60=\"\",0,BH60)","v":0},{"$f":"ROUNDDOWN(RIGHT($BS$60,11)/10000000000,0)","v":0},{"$f":"ROUNDDOWN(RIGHT($BS$60,10)/1000000000,0)","v":0},{"$f":"ROUNDDOWN(RIGHT($BS$60,9)/100000000,0)","v":0},{"$f":"ROUNDDOWN(RIGHT($BS$60,8)/10000000,0)","v":0},{"$f":"ROUNDDOWN(RIGHT($BS$60,7)/1000000,0)","v":0},{"$f":"ROUNDDOWN(RIGHT($BS$60,6)/100000,0)","v":0},{"$f":"ROUNDDOWN(RIGHT($BS$60,5)/10000,0)","v":0},{"$f":"ROUNDDOWN(RIGHT($BS$60,4)/1000,0)","v":0},{"$f":"ROUNDDOWN(RIGHT($BS$60,3)/100,0)","v":0},{"$f":"ROUNDDOWN(RIGHT($BS$60,2)/10,0)","v":0},{"$f":"ROUNDDOWN(RIGHT($BS$60,1)/1,0)","v":0},{"$f":"IF(AND($BS60>=1000000000,$BS60<10000000000),\"￥\",IF($BS60>=10000000000,BT60,\"\"))","v":""},{"$f":"IF(AND($BS60>=100000000,$BS60<1000000000),\"￥\",IF($BS60>=1000000000,BU60,\"\"))","v":""},{"$f":"IF(AND($BS60>=10000000,$BS60<100000000),\"￥\",IF($BS60>=100000000,BV60,\"\"))","v":""},{"$f":"IF(AND($BS60>=1000000,$BS60<10000000),\"￥\",IF($BS60>=10000000,BW60,\"\"))","v":""},{"$f":"IF(AND($BS60>=100000,$BS60<1000000),\"￥\",IF($BS60>=1000000,BX60,\"\"))","v":""},{"$f":"IF(AND($BS60>=10000,$BS60<100000),\"￥\",IF($BS60>=100000,BY60,\"\"))","v":""},{"$f":"IF(AND($BS60>=1000,$BS60<10000),\"￥\",IF($BS60>=10000,BZ60,\"\"))","v":""},{"$f":"IF(AND($BS60>=100,$BS60<1000),\"￥\",IF($BS60>=1000,CA60,\"\"))","v":""},{"$f":"IF(AND($BS60>=10,$BS60<100),\"￥\",IF($BS60>=100,CB60,\"\"))","v":""},{"$f":"IF(AND($BS60>=1,$BS60<10),\"￥\",IF($BS60>=10,CC60,\"\"))","v":""},{"$f":"IF($BS60>=1,CD60,\"\")","v":""}]

{"sheet":"入湯税・宿泊税月計表","index":1,"n_rows":76,"n_cols":207,"rows_kept":76,"cut":false,"hidden":false,"merged":[[13,123,13,124],[13,125,13,126],[13,180,13,181],[13,182,13,183],[13,184,13,185],[13,186,13,187],[13,188,13,189],[13,62,13,63],[13,60,13,61],[13,58,13,59],[13,56,13,57],[13,117,13,118],[13,119,13,120],[13,121,13,122],[12,45,12,46],[12,47,12,50],[12,51,12,53],[12,54,12,55],[12,56,12,58],[12,59,12,63],[12,108,12,109],[12,110,12,113],[12,114,12,116],[13,64,13,76],[13,77,13,110],[9,54,9,56],[9,57,9,58],[9,59,9,61],[9,62,9,63],[9,124,9,125],[9,187,9,188],[4,89,4,91],[4,92,4,94],[5,6,5,17],[5,18,5,56],[6,6,6,17],[6,18,6,20],[6,21,6,23],[6,24,6,26],[6,27,6,29],[6,30,6,32],[4,1,6,5],[4,6,4,17],[4,18,4,56],[4,57,4,73],[4,74,4,76],[4,77,4,79],[4,80,4,82],[4,83,4,85],[4,86,4,88],[9,174,9,176],[9,177,9,178],[9,179,9,181],[9,182,9,183],[9,184,9,186],[9,121,9,123],[8,12,8,13],[2,95,2,97],[2,98,2,100],[2,101,2,103],[2,104,2,106],[2,107,2,109],[3,6,3,17],[3,18,3,20],[3,21,3,23],[3,24,3,26],[3,27,3,29],[3,30,3,32],[3,33,3,35],[3,36,3,38],[3,39,3,41],[3,42,3,44],[3,45,3,47],[3,48,3,50],[3,51,3,53],[3,54,3,56],[3,57,3,73],[3,74,3,94],[1,89,1,91],[1,92,1,94],[2,6,2,17],[2,18,2,56],[2,57,2,73],[2,80,2,82],[2,83,2,85],[2,86,2,88],[2,89,2,91],[2,92,2,94],[1,1,3,5],[1,6,1,17],[1,18,1,56],[1,57,1,73],[1,74,1,76],[1,77,1,79],[1,80,1,82],[1,83,1,85],[1,86,1,88],[2,74,2,79],[52,183,52,185],[52,186,52,189],[53,127,54,130],[53,131,54,133],[53,134,54,136],[53,137,54,139],[53,140,53,142],[53,143,53,145],[53,146,53,148],[53,149,53,151],[53,152,53,154],[53,155,54,158],[53,159,54,161],[53,162,54,164],[53,165,54,167],[53,168,54,170],[53,171,54,173],[53,174,54,176],[53,177,54,179],[53,180,53,182],[53,183,53,185],[53,186,54,189],[54,140,54,154],[54,180,54,185],[52,155,52,158],[52,159,52,161],[52,162,52,164],[52,165,52,167],[52,168,52,170],[52,171,52,173],[52,174,52,176],[52,177,52,179],[52,180,52,182],[52,127,52,130],[52,131,52,133],[52,134,52,136],[52,137,52,139],[52,140,52,142],[52,143,52,145],[52,146,52,148],[52,149,52,151],[52,152,52,154],[50,183,50,185],[50,186,50,189],[51,127,51,130],[51,131,51,133],[51,134,51,136],[51,137,51,139],[51,140,51,142],[51,143,51,145],[51,146,51,148],[51,149,51,151],[51,152,51,154],[51,155,51,158],[51,159,51,161],[51,162,51,164],[51,165,51,167],[51,168,51,170],[51,171,51,173],[51,174,51,176],[51,177,51,179],[51,180,51,182],[51,183,51,185],[51,186,51,189],[50,155,50,158],[50,159,50,161],[50,162,50,164],[50,165,50,167],[50,168,50,170],[50,171,50,173],[50,174,50,176],[50,177,50,179],[50,180,50,182],[50,127,50,130],[50,131,50,133],[50,134,50,136],[50,137,50,139],[50,140,50,142],[50,143,50,145],[50,146,50,148],[50,149,50,151],[50,152,50,154],[48,183,48,185],[48,186,48,189],[49,127,49,130],[49,131,49,133],[49,134,49,136],[49,137,49,139],[49,140,49,142],[49,143,49,145],[49,146,49,148],[49,149,49,151],[49,152,49,154],[49,155,49,158],[49,159,49,161],[49,162,49,164],[49,165,49,167],[49,168,49,170],[49,171,49,173],[49,174,49,176],[49,177,49,179],[49,180,49,182],[49,183,49,185],[49,186,49,189],[48,155,48,158],[48,159,48,161],[48,162,48,164],[48,165,48,167],[48,168,48,170],[48,171,48,173],[48,174,48,176],[48,177,48,179],[48,180,48,182],[48,127,48,130],[48,131,48,133],[48,134,48,136],[48,137,48,139],[48,140,48,142],[48,143,48,145],[48,146,48,148],[48,149,48,151],[48,152,48,154],[46,183,46,185],[46,186,46,189],[47,127,47,130],[47,131,47,133],[47,134,47,136],[47,137,47,139],[47,140,47,142],[47,143,47,145],[47,146,47,148],[47,149,47,151],[47,152,47,154],[47,155,47,158],[47,159,47,161],[47,162,47,164],[47,165,47,167],[47,168,47,170],[47,171,47,173],[47,174,47,176],[47,177,47,179],[47,180,47,182],[47,183,47,185],[47,186,47,189],[46,155,46,158],[46,159,46,161],[46,162,46,164],[46,165,46,167],[46,168,46,170],[46,171,46,173],[46,174,46,176],[46,177,46,179],[46,180,46,182],[46,127,46,130],[46,131,46,133],[46,134,46,136],[46,137,46,139],[46,140,46,142],[46,143,46,145],[46,146,46,148],[46,149,46,151],[46,152,46,154],[44,183,44,185],[44,134,44,136],[44,137,44,139],[44,140,44,142],[44,143,44,145],[44,146,44,148],[44,149,44,151],[44,152,44,154],[44,186,44,189],[45,127,45,130],[45,131,45,133],[45,134,45,136],[45,137,45,139],[45,140,45,142],[45,143,45,145],[45,146,45,148],[45,149,45,151],[45,152,45,154],[45,155,45,158],[45,159,45,161],[45,162,45,164],[45,165,45,167],[45,168,45,170],[45,171,45,173],[45,174,45,176],[45,177,45,179],[45,180,45,182],[45,183,45,185],[45,186,45,189],[44,155,44,158],[44,159,44,161],[44,162,44,164],[44,165,44,167],[44,168,44,170],[44,171,44,173],[44,174,44,176],[44,177,44,179],[44,180,44,182],[44,127,44,130],[44,131,44,133],[42,183,42,185],[42,186,42,189],[43,127,43,130],[43,131,43,133],[43,134,43,136],[43,137,43,139],[43,140,43,142],[43,143,43,145],[43,146,43,148],[43,149,43,151],[43,152,43,154],[43,155,43,158],[43,159,43,161],[43,162,43,164],[43,165,43,167],[43,168,43,170],[43,171,43,173],[43,174,43,176],[43,177,43,179],[43,180,43,182],[43,183,43,185],[43,186,43,189],[42,155,42,158],[42,159,42,161],[42,162,42,164],[42,165,42,167],[42,168,42,170],[42,171,42,173],[42,174,42,176],[42,177,42,179],[42,180,42,182],[42,127,42,130],[42,131,42,133],[42,134,42,136],[42,137,42,139],[42,140,42,142],[42,143,42,145],[42,146,42,148],[42,149,42,151],[42,152,42,154],[40,183,40,185],[40,186,40,189],[41,127,41,130],[41,131,41,133],[41,134,41,136],[41,137,41,139],[41,140,41,142],[41,143,41,145],[41,146,41,148],[41,149,41,151],[41,152,41,154],[41,155,41,158],[41,159,41,161],[41,162,41,164],[41,165,41,167],[41,168,41,170],[41,171,41,173],[41,174,41,176],[41,177,41,179],[41,180,41,182],[41,183,41,185],[41,186,41,189],[40,155,40,158],[40,159,40,161],[40,162,40,164],[40,165,40,167],[40,168,40,170],[40,171,40,173],[40,174,40,176],[40,177,40,179],[40,180,40,182],[40,127,40,130],[40,131,40,133],[40,134,40,136],[40,137,40,139],[40,140,40,142],[40,143,40,145],[40,146,40,148],[40,149,40,151],[40,152,40,154],[38,183,38,185],[38,134,38,136],[38,137,38,139],[38,140,38,142],[38,143,38,145],[38,146,38,148],[38,149,38,151],[38,152,38,154],[38,186,38,189],[39,127,39,130],[39,131,39,133],[39,134,39,136],[39,137,39,139],[39,140,39,142],[39,143,39,145],[39,146,39,148],[39,149,39,151],[39,152,39,154],[39,155,39,158],[39,159,39,161],[39,162,39,164],[39,165,39,167],[39,168,39,170],[39,171,39,173],[39,174,39,176],[39,177,39,179],[39,180,39,182],[39,183,39,185],[39,186,39,189],[38,155,38,158],[38,159,38,161],[38,162,38,164],[38,165,38,167],[38,168,38,170],[38,171,38,173],[38,174,38,176],[38,177,38,179],[38,180,38,182],[38,127,38,130],[38,131,38,133],[36,183,36,185],[36,186,36,189],[37,127,37,130],[37,131,37,133],[37,134,37,136],[37,137,37,139],[37,140,37,142],[37,143,37,145],[37,146,37,148],[37,149,37,151],[37,152,37,154],[37,155,37,158],[37,159,37,161],[37,162,37,164],[37,165,37,167],[37,168,37,170],[37,171,37,173],[37,174,37,176],[37,177,37,179],[37,180,37,182],[37,183,37,185],[37,186,37,189],[36,155,36,158],[36,159,36,161],[36,162,36,164],[36,165,36,167],[36,168,36,170],[36,171,36,173],[36,174,36,176],[36,177,36,179],[36,180,36,182],[36,127,36,130],[36,131,36,133],[36,134,36,136],[36,137,36,139],[36,140,36,142],[36,143,36,145],[36,146,36,148],[36,149,36,151],[36,152,36,154],[34,183,34,185],[34,186,34,189],[35,127,35,130],[35,131,35,133],[35,134,35,136],[35,137,35,139],[35,140,35,142],[35,143,35,145],[35,146,35,148],[35,149,35,151],[35,152,35,154],[35,155,35,158],[35,159,35,161],[35,162,35,164],[35,165,35,167],[35,168,35,170],[35,171,35,173],[35,174,35,176],[35,177,35,179],[35,180,35,182],[35,183,35,185],[35,186,35,189],[34,155,34,158],[34,159,34,161],[34,162,34,164],[34,165,34,167],[34,168,34,170],[34,171,34,173],[34,174,34,176],[34,177,34,179],[34,180,34,182],[34,127,34,130],[34,131,34,133],[34,134,34,136],[34,137,34,139],[34,140,34,142],[34,143,34,145],[34,146,34,148],[34,149,34,151],[34,152,34,154],[32,183,32,185],[32,134,32,136],[32,137,32,139],[32,140,32,142],[32,143,32,145],[32,146,32,148],[32,149,32,151],[32,152,32,154],[32,186,32,189],[33,127,33,130],[33,131,33,133],[33,134,33,136],[33,137,33,139],[33,140,33,142],[33,143,33,145],[33,146,33,148],[33,149,33,151],[33,152,33,154],[33,155,33,158],[33,159,33,161],[33,162,33,164],[33,165,33,167],[33,168,33,170],[33,171,33,173],[33,174,33,176],[33,177,33,179],[33,180,33,182],[33,183,33,185],[33,186,33,189],[32,155,32,158],[32,159,32,161],[32,162,32,164],[32,165,32,167],[32,168,32,170],[32,171,32,173],[32,174,32,176],[32,177,32,179],[32,180,32,182],[32,127,32,130],[32,131,32,133],[30,183,30,185],[30,186,30,189],[31,127,31,130],[31,131,31,133],[31,134,31,136],[31,137,31,139],[31,140,31,142],[31,143,31,145],[31,146,31,148],[31,149,31,151],[31,152,31,154],[31,155,31,158],[31,159,31,161],[31,162,31,164],[31,165,31,167],[31,168,31,170],[31,171,31,173],[31,174,31,176],[31,177,31,179],[31,180,31,182],[31,183,31,185],[31,186,31,189],[30,155,30,158],[30,159,30,161],[30,162,30,164],[30,165,30,167],[30,168,30,170],[30,171,30,173],[30,174,30,176],[30,177,30,179],[30,180,30,182],[30,127,30,130],[30,131,30,133],[30,134,30,136],[30,137,30,139],[30,140,30,142],[30,143,30,145],[30,146,30,148],[30,149,30,151],[30,152,30,154],[28,183,28,185],[28,186,28,189],[29,127,29,130],[29,131,29,133],[29,134,29,136],[29,137,29,139],[29,140,29,142],[29,143,29,145],[29,146,29,148],[29,149,29,151],[29,152,29,154],[29,155,29,158],[29,159,29,161],[29,162,29,164],[29,165,29,167],[29,168,29,170],[29,171,29,173],[29,174,29,176],[29,177,29,179],[29,180,29,182],[29,183,29,185],[29,186,29,189],[28,155,28,158],[28,159,28,161],[28,162,28,164],[28,165,28,167],[28,168,28,170],[28,171,28,173],[28,174,28,176],[28,177,28,179],[28,180,28,182],[28,127,28,130],[28,131,28,133],[28,134,28,136],[28,137,28,139],[28,140,28,142],[28,143,28,145],[28,146,28,148],[28,149,28,151],[28,152,28,154],[26,183,26,185],[26,134,26,136],[26,137,26,139],[26,140,26,142],[26,143,26,145],[26,146,26,148],[26,149,26,151],[26,152,26,154],[26,186,26,189],[27,127,27,130],[27,131,27,133],[27,134,27,136],[27,137,27,139],[27,140,27,142],[27,143,27,145],[27,146,27,148],[27,149,27,151],[27,152,27,154],[27,155,27,158],[27,159,27,161],[27,162,27,164],[27,165,27,167],[27,168,27,170],[27,171,27,173],[27,174,27,176],[27,177,27,179],[27,180,27,182],[27,183,27,185],[27,186,27,189],[26,155,26,158],[26,159,26,161],[26,162,26,164],[26,165,26,167],[26,168,26,170],[26,171,26,173],[26,174,26,176],[26,177,26,179],[26,180,26,182],[26,127,26,130],[26,131,26,133],[24,180,24,182],[24,183,24,185],[24,186,24,189],[25,127,25,130],[25,131,25,133],[25,134,25,136],[25,137,25,139],[25,140,25,142],[25,143,25,145],[25,146,25,148],[25,149,25,151],[25,152,25,154],[25,155,25,158],[25,159,25,161],[25,162,25,164],[25,165,25,167],[25,168,25,170],[25,171,25,173],[25,174,25,176],[25,177,25,179],[25,180,25,182],[25,183,25,185],[25,186,25,189],[24,127,24,130],[24,131,24,133],[24,134,24,136],[24,137,24,139],[24,140,24,142],[24,143,24,145],[24,146,24,148],[24,149,24,151],[24,152,24,154],[24,155,24,158],[24,159,24,161],[24,162,24,164],[24,165,24,167],[24,168,24,170],[24,171,24,173],[24,174,24,176],[24,177,24,179],[23,165,23,167],[21,186,21,189],[22,127,22,130],[22,131,22,133],[22,134,22,136],[22,137,22,139],[22,140,22,142],[22,143,22,145],[22,146,22,148],[22,149,22,151],[22,152,22,154],[22,155,22,158],[22,159,22,161],[22,162,22,164],[22,165,22,167],[22,168,22,170],[22,171,22,173],[22,174,22,176],[22,177,22,179],[22,180,22,182],[22,183,22,185],[22,186,22,189],[23,168,23,170],[23,171,23,173],[21,168,21,170],[21,171,21,173],[21,174,21,176],[21,177,21,179],[21,180,21,182],[23,174,23,176],[23,177,23,179],[23,180,23,182],[23,183,23,185],[23,186,23,189],[23,140,23,142],[23,143,23,145],[23,146,23,148],[20,143,20,145],[20,146,20,148],[20,149,20,151],[20,152,20,154],[20,159,20,161],[20,162,20,164],[20,165,20,167],[20,168,20,170],[20,171,20,173],[20,174,20,176],[20,177,20,179],[20,180,20,182],[20,183,20,185],[21,183,21,185],[23,149,23,151],[23,152,23,154],[23,155,23,158],[23,159,23,161],[23,162,23,164],[20,127,20,130],[20,131,20,133],[20,134,20,136],[20,137,20,139],[20,140,20,142],[21,131,21,133],[21,134,21,136],[21,137,21,139],[21,140,21,142],[21,143,21,145],[21,146,21,148],[21,149,21,151],[21,152,21,154],[21,155,21,158],[21,159,21,161],[21,162,21,164],[21,165,21,167],[23,131,23,133],[23,134,23,136],[23,137,23,139],[53,92,54,95],[53,96,54,98],[14,127,14,139],[14,140,14,189],[15,127,19,130],[15,131,15,158],[15,159,15,189],[16,131,16,139],[16,140,16,154],[16,155,20,158],[16,159,16,179],[16,180,16,185],[16,186,20,189],[17,131,17,136],[17,137,17,139],[17,140,17,151],[17,152,17,154],[17,159,17,170],[17,171,17,179],[17,180,19,182],[17,183,19,185],[18,131,18,133],[18,134,19,136],[18,137,19,139],[18,174,19,176],[18,177,19,179],[19,131,19,133],[19,140,19,142],[19,143,19,145],[51,77,51,79],[51,80,51,82],[51,83,51,85],[51,86,51,88],[51,89,51,91],[11,127,11,189],[12,171,12,172],[12,173,12,176],[12,177,12,179],[12,180,12,181],[12,182,12,184],[12,185,12,189],[53,120,53,122],[53,123,54,126],[54,77,54,91],[54,117,54,122],[8,138,8,139],[8,155,8,157],[8,160,8,161],[9,170,9,173],[13,127,13,139],[13,140,13,173],[18,140,18,145],[18,146,19,148],[18,149,19,151],[18,152,19,154],[18,159,19,161],[18,162,19,164],[18,165,19,167],[18,168,19,170],[18,171,19,173],[23,127,23,130],[52,120,52,122],[52,123,52,126],[51,92,51,95],[51,96,51,98],[51,99,51,101],[51,102,51,104],[51,105,51,107],[51,108,51,110],[51,111,51,113],[51,114,51,116],[51,117,51,119],[51,64,51,67],[51,68,51,70],[53,99,54,101],[53,102,54,104],[53,105,54,107],[53,108,54,110],[53,111,54,113],[53,114,54,116],[53,117,53,119],[53,64,54,67],[53,68,54,70],[53,71,54,73],[53,74,54,76],[53,77,53,79],[53,80,53,82],[53,83,53,85],[53,86,53,88],[53,89,53,91],[51,120,51,122],[51,71,51,73],[51,74,51,76],[50,117,50,119],[50,120,50,122],[50,123,50,126],[49,92,49,95],[49,96,49,98],[49,99,49,101],[49,102,49,104],[49,105,49,107],[49,108,49,110],[49,111,49,113],[49,114,49,116],[49,117,49,119],[49,64,49,67],[51,123,51,126],[52,64,52,67],[52,68,52,70],[52,71,52,73],[52,74,52,76],[52,77,52,79],[52,80,52,82],[52,83,52,85],[52,86,52,88],[52,89,52,91],[52,92,52,95],[52,96,52,98],[52,99,52,101],[52,102,52,104],[52,105,52,107],[52,108,52,110],[52,111,52,113],[52,114,52,116],[52,117,52,119],[50,64,50,67],[50,68,50,70],[50,71,50,73],[50,74,50,76],[50,77,50,79],[50,80,50,82],[50,83,50,85],[50,86,50,88],[50,89,50,91],[50,92,50,95],[50,96,50,98],[50,99,50,101],[50,102,50,104],[50,105,50,107],[50,108,50,110],[50,111,50,113],[50,114,50,116],[49,68,49,70],[49,71,49,73],[49,74,49,76],[49,77,49,79],[49,80,49,82],[49,83,49,85],[49,86,49,88],[49,89,49,91],[47,120,47,122],[47,71,47,73],[47,74,47,76],[47,77,47,79],[47,80,47,82],[47,83,47,85],[47,86,47,88],[47,89,47,91],[47,123,47,126],[48,117,48,119],[48,120,48,122],[48,123,48,126],[47,92,47,95],[47,96,47,98],[47,99,47,101],[47,102,47,104],[47,105,47,107],[47,108,47,110],[47,111,47,113],[47,114,47,116],[47,117,47,119],[49,120,49,122],[49,123,49,126],[48,64,48,67],[48,68,48,70],[48,71,48,73],[48,74,48,76],[48,77,48,79],[48,80,48,82],[48,83,48,85],[48,86,48,88],[48,89,48,91],[48,92,48,95],[48,96,48,98],[48,99,48,101],[48,102,48,104],[48,105,48,107],[48,108,48,110],[48,111,48,113],[48,114,48,116],[47,64,47,67],[47,68,47,70],[45,120,45,122],[45,123,45,126],[46,64,46,67],[46,68,46,70],[46,71,46,73],[46,74,46,76],[46,77,46,79],[46,80,46,82],[46,83,46,85],[46,86,46,88],[46,89,46,91],[46,92,46,95],[46,96,46,98],[46,99,46,101],[46,102,46,104],[46,105,46,107],[46,108,46,110],[46,111,46,113],[46,114,46,116],[46,117,46,119],[46,120,46,122],[46,123,46,126],[45,92,45,95],[45,96,45,98],[45,99,45,101],[45,102,45,104],[45,105,45,107],[45,108,45,110],[45,111,45,113],[45,114,45,116],[45,117,45,119],[45,64,45,67]],"merged_total":2279,"flags":["merged_cut"]}
[]
[null,"特別徴収\n義 務 者",null,null,null,null,"住 所 （ 所 在 地 ）",null,null,null,null,null,null,null,null,null,null,null,null,null,null,null,null,null,null,null,null,null,null,null,null,null,null,null,null,null,null,null,null,null,null,null,null,null,null,null,null,null,null,null,null,null,null,null,null,null,null,"提出年月日",null,null,null,null,null,null,null,null,null,null,null,null,null,null,null,null,"令和",null,null,null,null,null,"年",null,null,null,null,null,"月",null,null,null,null,null,"日",null,null,null,null,null,null,null,null,null,null,null,null,null,null,null,null,null,null,null,null,null,null,null,null,null,null,null,null,null,null,null,null,null,null,null,null,null,null,null,null,null,null,null,null,null,null,null,null,null,null,null,null,null,null,null,null,null,null,null,null,null,null,null,null,null,null,null,null,null,null,null,null,null,null,null,null,null,null,null,null,null,null,null,null,null,null,null,null,null,null,null,null,null,null,null,null,null,null,null,null,null,null,null,"一か月分","二か月分","三か月分"]
[null,null,null,null,null,null,"氏名(名称)･代表者の氏名",null,null,null,null,null,null,null,null,null,null,null,null,null,null,null,null,null,null,null,null,null,null,null,null,null,null,null,null,null,null,null,null,null,null,null,null,null,null,null,null,null,null,null,null,null,null,null,null,null,null,"徴収期間",null,null,null,null,null,null,null,null,null,null,null,null,null,null,null,null,"三か月分",null,null,null,null,null,"令和",null,null,null,null,null,"年",null,null,null,null,null,"月",null,null,"から",null,null,"令和",null,null,{"$f":"IF($BW3=\"一か月分\",GI3,IF($BW3=\"二か月分\",GK3,IF($BW3=\"三か月分\",GM3,\"\")))","v":""},null,null,"年",null,null,{"$f":"IF($BW3=\"一か月分\",GJ3,IF($BW3=\"二か月分\",GL3,IF($BW3=\"三か月分\",GN3,\"\")))","v":""},null,null,"月",null,null,"まで",null,null,null,null,null,null,null,null,null,null,null,null,null,null,null,null,null,null,null,null,null,null,null,null,null,null,null,null,null,null,null,null,null,null,null,null,null,null,null,null,null,null,null,null,null,null,null,null,null,null,null,null,null,null,null,null,null,null,null,null,null,null,null,null,null,null,null,null,null,null,null,null,null,null,null,null,{"$f":"+CF3","v":0},{"$f":"+CL3","v":0},{"$f":"IF(CF3=\"\",\"\",IF(GL3=1,GI3+1,GI3))","v":""},{"$f":"IF(CL3=\"\",\"\",IF((GJ3+1)=13,1,GJ3+1))","v":""},{"$f":"IF(CF3=\"\",\"\",IF(GN3=1,GK3+1,GK3))","v":""},{"$f":"IF(CL3=\"\",\"\",IF((GL3+1)=13,1,GL3+1))","v":""},1,3,3]
[null,null,null,null,null,null,"個人番号または法人番号\n（右詰で記載）",null,null,null,null,null,null,null,null,null,null,null,null,null,null,null,null,null,null,null,null,null,null,null,null,null,null,null,null,null,null,null,null,null,null,null,null,null,null,null,null,null,null,null,null,null,null,null,null,null,null,"区分",null,null,null,null,null,null,null,null,null,null,null,null,null,null,null,null,"01 申告",null,null,null,null,null,null,null,null,null,null,null,null,null,null,null,null,null,null,null,null,null,null,null,null,null,null,null,null,null,null,null,null,null,null,null,null,null,null,null,null,null,null,null,null,null,null,null,null,null,null,null,null,null,null,null,null,null,null,null,null,null,null,null,null,null,null,null,null,null,null,null,null,null,null,null,null,null,null,null,null,null,null,null,null,null,null,null,null,null,null,null,null,null,null,null,null,null,null,null,null,null,null,null,null,null,null,null,null,null,null,null,null,null,null,null,"01 申告",null,null,null,null,null,2,4,6]
[null,"宿泊施設",null,null,null,null,"所在地",null,null,null,null,null,null,null,null,null,null,null,null,null,null,null,null,null,null,null,null,null,null,null,null,null,null,null,null,null,null,null,null,null,null,null,null,null,null,null,null,null,null,null,null,null,null,null,null,null,null,"納期限",null,null,null,null,null,null,null,null,null,null,null,null,null,null,null,null,"令和",null,null,null,null,null,"年",null,null,null,null,null,"月",null,null,null,null,null,"日",null,null,"　納期限は，宿泊（入湯）施設の経営を休止",null,null,null,null,null,null,null,null,null,null,null,null,null,null,null,null,null,null,null,null,null,null,null,null,null,null,null,null,null,null,null,null,null,null,null,null,null,null,null,null,null,null,null,null,null,null,null,null,null,null,null,null,null,null,null,null,null,null,null,null,null,null,null,null,null,null,null,null,null,null,null,null,null,null,null,null,null,null,null,null,null,null,null,null,null,null,null,null,null,null,null,null,null,null,"02 更正",null,null,null,null,null,3,6,9]
[null,null,null,null,null,null,"名称",null,null,null,null,null,null,null,null,null,null,null,null,null,null,null,null,null,null,null,null,null,null,null,null,null,null,null,null,null,null,null,null,null,null,null,null,null,null,null,null,null,null,null,null,null,null,null,null,null,null,null,null,null,null,null,null,null,null,null,null,null,null,null,null,null,null,null,null,null,null,null,null,null,null,null,null,null,null,null,null,null,null,null,null,null,null,null,null,"　または廃止しない場合は，記入不要です。",null,null,null,null,null,null,null,null,null,null,null,null,null,null,null,null,null,null,null,null,null,null,null,null,null,null,null,null,null,null,null,null,null,null,null,null,null,null,null,null,null,null,null,null,null,null,null,null,null,null,null,null,null,null,null,null,null,null,null,null,null,null,null,null,null,null,null,null,null,null,null,null,null,null,null,null,null,null,null,null,null,null,null,null,null,null,null,null,null,null,null,null,null,null,"03 決定",null,null,null,null,null,4,7,12]
[null,null,null,null,null,null,"指定番号",null,null,null,null,null,null,null,null,null,null,null,null,null,null,null,null,null,null,null,null,null,null,null,null,null,null,null,null,null,null,null,null,null,null,null,null,null,null,null,null,null,null,null,null,null,null,null,null,null,null,null,null,null,null,null,null,null,null,null,null,null,null,null,null,null,null,null,null,null,null,null,null,null,null,null,null,null,null,null,null,null,null,null,null,null,null,null,null,null,null,null,null,null,null,null,null,null,null,null,null,null,null,null,null,null,null,null,null,null,null,null,null,null,null,null,null,null,null,null,null,null,null,null,null,null,null,null,null,null,null,null,null,null,null,null,null,null,null,null,null,null,null,null,null,null,null,null,null,null,null,null,null,null,null,null,null,null,null,null,null,null,null,null,null,null,null,null,null,null,null,null,null,null,null,null,null,null,null,null,null,null,null,null,null,null,null,null,null,null,5,9]
[null,null,null,null,null,null,null,null,null,null,null,null,null,null,null,null,null,null,null,null,null,null,null,null,null,null,null,null,null,null,null,null,null,null,null,null,null,null,null,null,null,null,null,null,null,null,null,null,null,null,null,null,null,null,null,null,null,null,null,null,null,null,null,null,null,null,null,null,null,null,null,null,null,null,null,null,null,null,null,null,null,null,null,null,null,null,null,null,null,null,null,null,null,null,null,null,null,null,null,null,null,null,null,null,null,null,null,null,null,null,null,null,null,null,null,null,null,null,null,null,null,null,null,null,null,null,null,null,null,null,null,null,null,null,null,null,null,null,null,null,null,null,null,null,null,null,null,null,null,null,null,null,null,null,null,null,null,null,null,null,null,null,null,null,null,null,null,null,null,null,null,null,null,null,null,null,null,null,null,null,null,null,null,null,null,null,null,null,null,null,null,null,null,null,null,null,6,10]
[null,"第２号様式",null,null,null,null,null,null,null,null,null,null,null,null,null,null,null,null,null,null,null,null,null,null,null,null,null,null,null,null,null,null,null,null,null,null,null,null,null,null,null,null,null,null,null,null,null,null,null,null,null,null,null,null,null,null,null,null,null,null,null,null,null,null,"第２号様式",null,null,null,null,null,null,null,null,null,null,null,null,null,null,null,null,null,null,null,null,null,null,null,null,null,null,null,null,null,null,null,null,null,null,null,null,null,null,null,null,null,null,null,null,null,null,null,null,null,null,null,null,null,null,null,null,null,null,null,null,null,null,"第２号様式",null,null,null,null,null,null,null,null,null,null,null,null,null,null,null,null,null,null,null,null,null,null,null,null,null,null,null,null,null,null,null,null,null,null,null,null,null,null,null,null,null,null,null,null,null,null,null,null,null,null,null,null,null,null,null,null,null,null,null,null,null,null,null,null,null,null,null,null,7,12]
[null,null,null,null,null,null,null,null,null,null,null,null,null,null,null,null,null,null,null,null,null,null,null,null,null,null,null,null,null,null,null,null,null,null,null,null,null,null,null,null,null,null,null,null,null,"令和",null,null,null,{"$f":"IF($BZ2=\"\",\"\",$BZ2)","v":""},null,null,"年",null,{"$f":"IF($CF2=\"\",\"\",$CF2)","v":""},null,null,"月",null,{"$f":"IF($CL2=\"\",\"\",$CL2)","v":""},null,null,"日",null,null,null,null,null,null,null,null,null,null,null,null,null,null,null,null,null,null,null,null,null,null,null,null,null,null,null,null,null,null,null,null,null,null,null,null,null,null,null,null,null,null,null,null,"令和",null,null,null,{"$f":"IF($BZ2=\"\",\"\",$BZ2)","v":""},null,null,"年",null,{"$f":"IF($CF2=\"\",\"\",$CF2)","v":""},null,null,"月",null,{"$f":"IF($CL2=\"\",\"\",$CL2)","v":""},null,null,"日",null,null,null,null,null,null,null,null,null,null,null,null,null,null,null,null,null,null,null,null,null,null,null,null,null,null,null,null,null,null,null,null,null,null,null,null,null,null,null,null,null,null,null,null,null,"令和",null,null,null,{"$f":"IF($BZ2=\"\",\"\",$BZ2)","v":""},null,null,"年",null,{"$f":"IF($CF2=\"\",\"\",$CF2)","v":""},null,null,"月",null,{"$f":"IF($CL2=\"\",\"\",$CL2)","v":""},null,null,"日",null,null,null,null,null,null,null,null,8,1]
[null,null,null,null,null,null,null,null,null,null,null,null,null,null,null,null,null,null,null,null,null,null,null,null,null,null,null,null,null,null,null,null,null,null,null,null,null,null,null,null,null,null,null,null,null,null,null,null,null,null,null,null,null,null,null,null,null,null,null,null,null,null,null,null,null,null,null,null,null,null,null,null,null,null,null,null,null,null,null,null,null,null,null,null,null,null,null,null,null,null,null,null,null,null,null,null,null,null,null,null,null,null,null,null,null,null,null,null,null,null,null,null,null,null,null,null,null,null,null,null,null,null,null,null,null,null,null,null,null,null,null,null,null,null,null,null,null,null,null,null,null,null,null,null,null,null,null,null,null,null,null,null,null,null,null,null,null,null,null,null,null,null,null,null,null,null,null,null,null,null,null,null,null,null,null,null,null,null,null,null,null,null,null,null,null,null,null,null,null,null,null,null,null,null,null,null,9]
[null,"入湯税および宿泊税月計表",null,null,null,null,null,null,null,null,null,null,null,null,null,null,null,null,null,null,null,null,null,null,null,null,null,null,null,null,null,null,null,null,null,null,null,null,null,null,null,null,null,null,null,null,null,null,null,null,null,null,null,null,null,null,null,null,null,null,null,null,null,null,"入湯税および宿泊税月計表",null,null,null,null,null,null,null,null,null,null,null,null,null,null,null,null,null,null,null,null,null,null,null,null,null,null,null,null,null,null,null,null,null,null,null,null,null,null,null,null,null,null,null,null,null,null,null,null,null,null,null,null,null,null,null,null,null,null,null,null,null,null,"入湯税および宿泊税月計表",null,null,null,null,null,null,null,null,null,null,null,null,null,null,null,null,null,null,null,null,null,null,null,null,null,null,null,null,null,null,null,null,null,null,null,null,null,null,null,null,null,null,null,null,null,null,null,null,null,null,null,null,null,null,null,null,null,null,null,null,null,null,null,null,null,null,null,null,10]
[null,null,null,null,null,null,null,null,null,null,null,null,null,null,null,null,null,null,null,null,null,null,null,null,null,null,null,null,null,null,null,null,null,null,null,null,null,null,null,null,null,null,null,null,null,"（",null,"令和",null,null,null,{"$f":"IF($CF3=\"\",\"\",$CF3)","v":""},null,null,"年",null,{"$f":"IF($CL3=\"\",\"\",$CL3)","v":""},null,null,"月分）",null,null,null,null,null,null,null,null,null,null,null,null,null,null,null,null,null,null,null,null,null,null,null,null,null,null,null,null,null,null,null,null,null,null,null,null,null,null,null,null,null,null,null,null,null,null,null,null,"（",null,"令和",null,null,null,{"$f":"IF(OR($BW3=\"二か月分\",$BW3=\"三か月分\"),GK3,\"\")","v":""},null,null,"年",null,{"$f":"IF(OR($BW3=\"二か月分\",$BW3=\"三か月分\"),GL3,\"\")","v":""},null,null,"月分）",null,null,null,null,null,null,null,null,null,null,null,null,null,null,null,null,null,null,null,null,null,null,null,null,null,null,null,null,null,null,null,null,null,null,null,null,null,null,null,null,null,null,null,null,null,null,null,null,"（",null,"令和",null,null,null,{"$f":"IF($BW3=\"三か月分\",GM3,\"\")","v":""},null,null,"年",null,{"$f":"IF($BW3=\"三か月分\",GN3,\"\")","v":""},null,null,"月分）",null,null,null,null,{"$f":"IF(FV13<>\"\",FV13,IF(DK13<>\"\",DK13,AZ13))","v":""},{"$f":"IF(GA13<>\"\",GA13,IF(DP13<>\"\",DP13,BE13))","v":""},null,null,null,null,11]
[null,"特別徴収義務者",null,null,null,null,null,null,null,null,null,null,null,null,{"$f":"IF($S3=\"\",\"\",$S3)","v":""},null,null,null,null,null,null,null,null,null,null,null,null,null,null,null,null,null,null,null,null,null,null,null,null,null,null,null,null,null,null,null,null,null,"指定番号",null,null,null,null,null,{"$f":"IF($S7=\"\",\"\",$S7)","v":""},null,{"$f":"IF($V7=\"\",\"\",$V7)","v":""},null,{"$f":"IF($Y7=\"\",\"\",$Y7)","v":""},null,{"$f":"IF($AB7=\"\",\"\",$AB7)","v":""},null,{"$f":"IF($AE7=\"\",\"\",$AE7)","v":""},null,"特別徴収義務者",null,null,null,null,null,null,null,null,null,null,null,null,{"$f":"IF($S3=\"\",\"\",$S3)","v":""},null,null,null,null,null,null,null,null,null,null,null,null,null,null,null,null,null,null,null,null,null,null,null,null,null,null,null,null,null,null,null,null,null,"指定番号",null,null,null,null,null,{"$f":"IF($S7=\"\",\"\",$S7)","v":""},null,{"$f":"IF($V7=\"\",\"\",$V7)","v":""},null,{"$f":"IF($Y7=\"\",\"\",$Y7)","v":""},null,{"$f":"IF($AB7=\"\",\"\",$AB7)","v":""},null,{"$f":"IF($AE7=\"\",\"\",$AE7)","v":""},null,"特別徴収義務者",null,null,null,null,null,null,null,null,null,null,null,null,{"$f":"IF($S3=\"\",\"\",$S3)","v":""},null,null,null,null,null,null,null,null,null,null,null,null,null,null,null,null,null,null,null,null,null,null,null,null,null,null,null,null,null,null,null,null,null,"指定番号",null,null,null,null,null,{"$f":"IF($S7=\"\",\"\",$S7)","v":""},null,{"$f":"IF($V7=\"\",\"\",$V7)","v":""},null,{"$f":"IF($Y7=\"\",\"\",$Y7)","v":""},null,{"$f":"IF($AB7=\"\",\"\",$AB7)","v":""},null,{"$f":"IF($AE7=\"\",\"\",$AE7)","v":""},null,null,null,null,null,null,null,12]
[null,"宿泊（入湯）施設名",null,null,null,null,null,null,null,null,null,null,null,null,{"$f":"IF($S6=\"\",\"\",$S6)","v":""},null,null,null,null,null,null,null,null,null,null,null,null,null,null,null,null,null,null,null,null,null,null,null,null,null,null,null,null,null,null,null,null,null,null,null,null,null,null,null,null,null,null,null,null,null,null,null,null,null,"宿泊（入湯）施設名",null,null,null,null,null,null,null,null,null,null,null,null,{"$f":"IF($S6=\"\",\"\",$S6)","v":""},null,null,null,null,null,null,null,null,null,null,null,null,null,null,null,null,null,null,null,null,null,null,null,null,null,null,null,null,null,null,null,null,null,null,null,null,null,null,null,null,null,null,null,null,null,null,null,null,null,"宿泊（入湯）施設名",null,null,null,null,null,null,null,null,null,null,null,null,{"$f":"IF($S6=\"\",\"\",$S6)","v":""}]
[null," 区分\n\n \n\n\n\n\n\n 日 　　",null,null,null,"入湯税",null,null,null,null,null,null,null,null,null,null,null,null,null,null,null,null,null,null,null,null,null,null,null,null,null,null,null,"宿泊税",null,null,null,null,null,null,null,null,null,null,null,null,null,null,null,null,null,null,null,null,null,null,null,null,null,null,null,null,null,null," 区分\n\n \n\n\n\n\n\n 日 　　",null,null,null,"入湯税",null,null,null,null,null,null,null,null,null,null,null,null,null,null,null,null,null,null,null,null,null,null,null,null,null,null,null,"宿泊税",null,null,null,null,null,null,null,null,null,null,null,null,null,null,null,null,null,null,null,null,null,null,null,null,null,null,null,null,null,null," 区分\n\n \n\n\n\n\n\n 日 　　",null,null,null,"入湯税",null,null,null,null,null,null,null,null,null,null,null,null,null,null,null,null,null,null,null,null,null,null,null,null,null,null,null,"宿泊税"]
[null,null,null,null,null,"課税対象",null,null,null,null,null,null,null,null,"課税対象外",null,null,null,null,null,null,null,null,null,null,null,null,null,null,"合計",null,null,null,"課税対象",null,null,null,null,null,null,null,null,null,null,null,null,null,null,null,null,null,null,null,null,"課税対象外",null,null,null,null,null,"合計",null,null,null,null,null,null,null,"課税対象",null,null,null,null,null,null,null,null,"課税対象外",null,null,null,null,null,null,null,null,null,null,null,null,null,null,"合計",null,null,null,"課税対象",null,null,null,null,null,null,null,null,null,null,null,null,null,null,null,null,null,null,null,null,"課税対象外",null,null,null,null,null,"合計",null,null,null,null,null,null,null,"課税対象",null,null,null,null,null,null,null,null,"課税対象外",null,null,null,null,null,null,null,null,null,null,null,null,null,null,"合計",null,null,null,"課税対象",null,null,null,null,null,null,null,null,null,null,null,null,null,null,null,null,null,null,null,null,"課税対象外",null,null,null,null,null,"合計"]
[null,null,null,null,null,"宿泊",null,null,null,null,null,"日帰り",null,null,"宿泊",null,null,null,null,null,null,null,null,null,null,null,"日帰り",null,null,null,null,null,null,"一般客",null,null,null,null,null,null,null,null,null,null,null,"各種大会",null,null,null,null,null,null,null,null,"修　学\n旅　行\nその他\n学　校\n行事等",null,null,"その他",null,null,null,null,null,null,null,null,null,null,"宿泊",null,null,null,null,null,"日帰り",null,null,"宿泊",null,null,null,null,null,null,null,null,null,null,null,"日帰り",null,null,null,null,null,null,"一般客",null,null,null,null,null,null,null,null,null,null,null,"各種大会",null,null,null,null,null,null,null,null,"修　学\n旅　行\nその他\n学　校\n行事等",null,null,"その他",null,null,null,null,null,null,null,null,null,null,"宿泊",null,null,null,null,null,"日帰り",null,null,"宿泊",null,null,null,null,null,null,null,null,null,null,null,"日帰り",null,null,null,null,null,null,"一般客",null,null,null,null,null,null,null,null,null,null,null,"各種大会",null,null,null,null,null,null,null,null,"修　学\n旅　行\nその他\n学　校\n行事等",null,null,"その他"]
[null,null,null,null,null,"一般客",null,null,"湯治\n客等",null,null,"入湯客",null,null,"一般客",null,null,null,null,null,"修　学\n旅　行\nその他\n学　校\n行事等",null,null,"各　種\n大　会",null,null,"非入湯客",null,null,null,null,null,null,"２万円\n未　満",null,null,"２万円\n以　上\n５万円\n未　満",null,null,"５万円\n以　上\n10万円\n未　満",null,null,"10万円\n以　上",null,null,"２万円\n未　満",null,null,"２万円\n以　上\n５万円\n未　満",null,null,"５万円\n以　上",null,null,null,null,null,null,null,null,null,null,null,null,null,null,null,null,"一般客",null,null,"湯治\n客等",null,null,"入湯客",null,null,"一般客",null,null,null,null,null,"修　学\n旅　行\nその他\n学　校\n行事等",null,null,"各　種\n大　会",null,null,"非入湯客",null,null,null,null,null,null,"２万円\n未　満",null,null,"２万円\n以　上\n５万円\n未　満",null,null,"５万円\n以　上\n10万円\n未　満",null,null,"10万円\n以　上",null,null,"２万円\n未　満",null,null,"２万円\n以　上\n５万円\n未　満",null,null,"５万円\n以　上",null,null,null,null,null,null,null,null,null,null,null,null,null,null,null,null,"一般客",null,null,"湯治\n客等",null,null,"入湯客",null,null,"一般客",null,null,null,null,null,"修　学\n旅　行\nその他\n学　校\n行事等",null,null,"各　種\n大　会",null,null,"非入湯客",null,null,null,null,null,null,"２万円\n未　満",null,null,"２万円\n以　上\n５万円\n未　満",null,null,"５万円\n以　上\n10万円\n未　満",null,null,"10万円\n以　上",null,null,"２万円\n未　満",null,null,"２万円\n以　上\n５万円\n未　満",null,null,"５万円\n以　上"]
[null,null,null,null,null,"入湯客",null,null,null,null,null,null,null,null,"非入\n湯客",null,null,"15歳\n未満\nの客",null,null,null,null,null,null,null,null,null,null,null,null,null,null,null,null,null,null,null,null,null,null,null,null,null,null,null,null,null,null,null,null,null,null,null,null,null,null,null,null,null,null,null,null,null,null,null,null,null,null,"入湯客",null,null,null,null,null,null,null,null,"非入\n湯客",null,null,"15歳\n未満\nの客",null,null,null,null,null,null,null,null,null,null,null,null,null,null,null,null,null,null,null,null,null,null,null,null,null,null,null,null,null,null,null,null,null,null,null,null,null,null,null,null,null,null,null,null,null,null,null,null,null,null,"入湯客",null,null,null,null,null,null,null,null,"非入\n湯客",null,null,"15歳\n未満\nの客"]
[null,"(税率)",null,null,null,100,null,null,50,null,null,100,null,null,null,null,null,null,null,null,null,null,null,null,null,null,null,null,null,null,null,null,null,200,null,null,400,null,null,1000,null,null,2500,null,null,100,null,null,200,null,null,500,null,null,null,null,null,null,null,null,null,null,null,null,"(税率)",null,null,null,100,null,null,50,null,null,100,null,null,null,null,null,null,null,null,null,null,null,null,null,null,null,null,null,null,null,null,null,200,null,null,400,null,null,1000,null,null,2500,null,null,100,null,null,200,null,null,500,null,null,null,null,null,null,null,null,null,null,null,null,"(税率)",null,null,null,100,null,null,50,null,null,100,null,null,null,null,null,null,null,null,null,null,null,null,null,null,null,null,null,null,null,null,null,200,null,null,400,null,null,1000,null,null,2500,null,null,100,null,null,200,null,null,500,null,null,null,null,null,null,null,null,null,null,null,null,1]
[null,null,null,null,null,"人",null,null,"人",null,null,"人",null,null,"人",null,null,"人",null,null,"人",null,null,"人",null,null,"人",null,null,"人",null,null,null,"泊",null,null,"泊",null,null,"泊",null,null,"泊",null,null,"泊",null,null,"泊",null,null,"泊",null,null,"泊",null,null,"泊",null,null,"泊",null,null,null,null,null,null,null,"人",null,null,"人",null,null,"人",null,null,"人",null,null,"人",null,null,"人",null,null,"人",null,null,"人",null,null,"人",null,null,null,"泊",null,null,"泊",null,null,"泊",null,null,"泊",null,null,"泊",null,null,"泊",null,null,"泊",null,null,"泊",null,null,"泊",null,null,"泊",null,null,null,null,null,null,null,"人",null,null,"人",null,null,"人",null,null,"人",null,null,"人",null,null,"人",null,null,"人",null,null,"人",null,null,"人",null,null,null,"泊",null,null,"泊",null,null,"泊",null,null,"泊",null,null,"泊",null,null,"泊",null,null,"泊",null,null,"泊",null,null,"泊",null,null,"泊",null,null,null,2]
[null,1,null,null,null,null,null,null,null,null,null,null,null,null,null,null,null,null,null,null,null,null,null,null,null,null,null,null,null,{"$f":"SUM(F23:AB23)","v":0},null,null,null,null,null,null,null,null,null,null,null,null,null,null,null,null,null,null,null,null,null,null,null,null,null,null,null,null,null,null,{"$f":"SUM(AH23:BH23)","v":0},null,null,null,1,null,null,null,null,null,null,null,null,null,null,null,null,null,null,null,null,null,null,null,null,null,null,null,null,null,null,null,{"$f":"SUM(BQ23:CM23)","v":0},null,null,null,null,null,null,null,null,null,null,null,null,null,null,null,null,null,null,null,null,null,null,null,null,null,null,null,null,null,null,{"$f":"SUM(CS23:DS23)","v":0},null,null,null,1,null,null,null,null,null,null,null,null,null,null,null,null,null,null,null,null,null,null,null,null,null,null,null,null,null,null,null,{"$f":"SUM(EB23:EX23)","v":0},null,null,null,null,null,null,null,null,null,null,null,null,null,null,null,null,null,null,null,null,null,null,null,null,null,null,null,null,null,null,{"$f":"SUM(FD23:GD23)","v":0},null,null,null,3]
[null,2,null,null,null,null,null,null,null,null,null,null,null,null,null,null,null,null,null,null,null,null,null,null,null,null,null,null,null,{"$f":"SUM(F24:AB24)","v":0},null,null,null,null,null,null,null,null,null,null,null,null,null,null,null,null,null,null,null,null,null,null,null,null,null,null,null,null,null,null,{"$f":"SUM(AH24:BH24)","v":0},null,null,null,2,null,null,null,null,null,null,null,null,null,null,null,null,null,null,null,null,null,null,null,null,null,null,null,null,null,null,null,{"$f":"SUM(BQ24:CM24)","v":0},null,null,null,null,null,null,null,null,null,null,null,null,null,null,null,null,null,null,null,null,null,null,null,null,null,null,null,null,null,null,0,null,null,null,2,null,null,null,null,null,null,null,null,null,null,null,null,null,null,null,null,null,null,null,null,null,null,null,null,null,null,null,{"$f":"SUM(EB24:EX24)","v":0},null,null,null,null,null,null,null,null,null,null,null,null,null,null,null,null,null,null,null,null,null,null,null,null,null,null,null,null,null,null,0,null,null,null,4]
[null,3,null,null,null,null,null,null,null,null,null,null,null,null,null,null,null,null,null,null,null,null,null,null,null,null,null,null,null,0,null,null,null,null,null,null,null,null,null,null,null,null,null,null,null,null,null,null,null,null,null,null,null,null,null,null,null,null,null,null,0,null,null,null,3,null,null,null,null,null,null,null,null,null,null,null,null,null,null,null,null,null,null,null,null,null,null,null,null,null,null,null,0,null,null,null,null,null,null,null,null,null,null,null,null,null,null,null,null,null,null,null,null,null,null,null,null,null,null,null,null,null,null,0,null,null,null,3,null,null,null,null,null,null,null,null,null,null,null,null,null,null,null,null,null,null,null,null,null,null,null,null,null,null,null,0,null,null,null,null,null,null,null,null,null,null,null,null,null,null,null,null,null,null,null,null,null,null,null,null,null,null,null,null,null,null,0,null,null,null,5]
[null,4,null,null,null,null,null,null,null,null,null,null,null,null,null,null,null,null,null,null,null,null,null,null,null,null,null,null,null,0,null,null,null,null,null,null,null,null,null,null,null,null,null,null,null,null,null,null,null,null,null,null,null,null,null,null,null,null,null,null,0,null,null,null,4,null,null,null,null,null,null,null,null,null,null,null,null,null,null,null,null,null,null,null,null,null,null,null,null,null,null,null,0,null,null,null,null,null,null,null,null,null,null,null,null,null,null,null,null,null,null,null,null,null,null,null,null,null,null,null,null,null,null,0,null,null,null,4,null,null,null,null,null,null,null,null,null,null,null,null,null,null,null,null,null,null,null,null,null,null,null,null,null,null,null,0,null,null,null,null,null,null,null,null,null,null,null,null,null,null,null,null,null,null,null,null,null,null,null,null,null,null,null,null,null,null,0,null,null,null,6]
[null,5,null,null,null,null,null,null,null,null,null,null,null,null,null,null,null,null,null,null,null,null,null,null,null,null,null,null,null,0,null,null,null,null,null,null,null,null,null,null,null,null,null,null,null,null,null,null,null,null,null,null,null,null,null,null,null,null,null,null,0,null,null,null,5,null,null,null,null,null,null,null,null,null,null,null,null,null,null,null,null,null,null,null,null,null,null,null,null,null,null,null,0,null,null,null,null,null,null,null,null,null,null,null,null,null,null,null,null,null,null,null,null,null,null,null,null,null,null,null,null,null,null,0,null,null,null,5,null,null,null,null,null,null,null,null,null,null,null,null,null,null,null,null,null,null,null,null,null,null,null,null,null,null,null,0,null,null,null,null,null,null,null,null,null,null,null,null,null,null,null,null,null,null,null,null,null,null,null,null,null,null,null,null,null,null,0,null,null,null,7]
[null,6,null,null,null,null,null,null,null,null,null,null,null,null,null,null,null,null,null,null,null,null,null,null,null,null,null,null,null,0,null,null,null,null,null,null,null,null,null,null,null,null,null,null,null,null,null,null,null,null,null,null,null,null,null,null,null,null,null,null,0,null,null,null,6,null,null,null,null,null,null,null,null,null,null,null,null,null,null,null,null,null,null,null,null,null,null,null,null,null,null,null,0,null,null,null,null,null,null,null,null,null,null,null,null,null,null,null,null,null,null,null,null,null,null,null,null,null,null,null,null,null,null,0,null,null,null,6,null,null,null,null,null,null,null,null,null,null,null,null,null,null,null,null,null,null,null,null,null,null,null,null,null,null,null,0,null,null,null,null,null,null,null,null,null,null,null,null,null,null,null,null,null,null,null,null,null,null,null,null,null,null,null,null,null,null,0,null,null,null,8]
[null,7,null,null,null,null,null,null,null,null,null,null,null,null,null,null,null,null,null,null,null,null,null,null,null,null,null,null,null,0,null,null,null,null,null,null,null,null,null,null,null,null,null,null,null,null,null,null,null,null,null,null,null,null,null,null,null,null,null,null,0,null,null,null,7,null,null,null,null,null,null,null,null,null,null,null,null,null,null,null,null,null,null,null,null,null,null,null,null,null,null,null,0,null,null,null,null,null,null,null,null,null,null,null,null,null,null,null,null,null,null,null,null,null,null,null,null,null,null,null,null,null,null,0,null,null,null,7,null,null,null,null,null,null,null,null,null,null,null,null,null,null,null,null,null,null,null,null,null,null,null,null,null,null,null,0,null,null,null,null,null,null,null,null,null,null,null,null,null,null,null,null,null,null,null,null,null,null,null,null,null,null,null,null,null,null,0,null,null,null,9]
[null,8,null,null,null,null,null,null,null,null,null,null,null,null,null,null,null,null,null,null,null,null,null,null,null,null,null,null,null,0,null,null,null,null,null,null,null,null,null,null,null,null,null,null,null,null,null,null,null,null,null,null,null,null,null,null,null,null,null,null,0,null,null,null,8,null,null,null,null,null,null,null,null,null,null,null,null,null,null,null,null,null,null,null,null,null,null,null,null,null,null,null,0,null,null,null,null,null,null,null,null,null,null,null,null,null,null,null,null,null,null,null,null,null,null,null,null,null,null,null,null,null,null,0,null,null,null,8,null,null,null,null,null,null,null,null,null,null,null,null,null,null,null,null,null,null,null,null,null,null,null,null,null,null,null,0,null,null,null,null,null,null,null,null,null,null,null,null,null,null,null,null,null,null,null,null,null,null,null,null,null,null,null,null,null,null,0,null,null,null,10]
[null,9,null,null,null,null,null,null,null,null,null,null,null,null,null,null,null,null,null,null,null,null,null,null,null,null,null,null,null,0,null,null,null,null,null,null,null,null,null,null,null,null,null,null,null,null,null,null,null,null,null,null,null,null,null,null,null,null,null,null,0,null,null,null,9,null,null,null,null,null,null,null,null,null,null,null,null,null,null,null,null,null,null,null,null,null,null,null,null,null,null,null,0,null,null,null,null,null,null,null,null,null,null,null,null,null,null,null,null,null,null,null,null,null,null,null,null,null,null,null,null,null,null,0,null,null,null,9,null,null,null,null,null,null,null,null,null,null,null,null,null,null,null,null,null,null,null,null,null,null,null,null,null,null,null,0,null,null,null,null,null,null,null,null,null,null,null,null,null,null,null,null,null,null,null,null,null,null,null,null,null,null,null,null,null,null,0,null,null,null,11]
[null,10,null,null,null,null,null,null,null,null,null,null,null,null,null,null,null,null,null,null,null,null,null,null,null,null,null,null,null,0,null,null,null,null,null,null,null,null,null,null,null,null,null,null,null,null,null,null,null,null,null,null,null,null,null,null,null,null,null,null,0,null,null,null,10,null,null,null,null,null,null,null,null,null,null,null,null,null,null,null,null,null,null,null,null,null,null,null,null,null,null,null,0,null,null,null,null,null,null,null,null,null,null,null,null,null,null,null,null,null,null,null,null,null,null,null,null,null,null,null,null,null,null,0,null,null,null,10,null,null,null,null,null,null,null,null,null,null,null,null,null,null,null,null,null,null,null,null,null,null,null,null,null,null,null,0,null,null,null,null,null,null,null,null,null,null,null,null,null,null,null,null,null,null,null,null,null,null,null,null,null,null,null,null,null,null,0,null,null,null,12]
[null,11,null,null,null,null,null,null,null,null,null,null,null,null,null,null,null,null,null,null,null,null,null,null,null,null,null,null,null,0,null,null,null,null,null,null,null,null,null,null,null,null,null,null,null,null,null,null,null,null,null,null,null,null,null,null,null,null,null,null,0,null,null,null,11,null,null,null,null,null,null,null,null,null,null,null,null,null,null,null,null,null,null,null,null,null,null,null,null,null,null,null,0,null,null,null,null,null,null,null,null,null,null,null,null,null,null,null,null,null,null,null,null,null,null,null,null,null,null,null,null,null,null,0,null,null,null,11,null,null,null,null,null,null,null,null,null,null,null,null,null,null,null,null,null,null,null,null,null,null,null,null,null,null,null,0,null,null,null,null,null,null,null,null,null,null,null,null,null,null,null,null,null,null,null,null,null,null,null,null,null,null,null,null,null,null,0,null,null,null,13]
[null,12,null,null,null,null,null,null,null,null,null,null,null,null,null,null,null,null,null,null,null,null,null,null,null,null,null,null,null,0,null,null,null,null,null,null,null,null,null,null,null,null,null,null,null,null,null,null,null,null,null,null,null,null,null,null,null,null,null,null,0,null,null,null,12,null,null,null,null,null,null,null,null,null,null,null,null,null,null,null,null,null,null,null,null,null,null,null,null,null,null,null,0,null,null,null,null,null,null,null,null,null,null,null,null,null,null,null,null,null,null,null,null,null,null,null,null,null,null,null,null,null,null,0,null,null,null,12,null,null,null,null,null,null,null,null,null,null,null,null,null,null,null,null,null,null,null,null,null,null,null,null,null,null,null,0,null,null,null,null,null,null,null,null,null,null,null,null,null,null,null,null,null,null,null,null,null,null,null,null,null,null,null,null,null,null,0,null,null,null,14]
[null,13,null,null,null,null,null,null,null,null,null,null,null,null,null,null,null,null,null,null,null,null,null,null,null,null,null,null,null,0,null,null,null,null,null,null,null,null,null,null,null,null,null,null,null,null,null,null,null,null,null,null,null,null,null,null,null,null,null,null,0,null,null,null,13,null,null,null,null,null,null,null,null,null,null,null,null,null,null,null,null,null,null,null,null,null,null,null,null,null,null,null,0,null,null,null,null,null,null,null,null,null,null,null,null,null,null,null,null,null,null,null,null,null,null,null,null,null,null,null,null,null,null,0,null,null,null,13,null,null,null,null,null,null,null,null,null,null,null,null,null,null,null,null,null,null,null,null,null,null,null,null,null,null,null,0,null,null,null,null,null,null,null,null,null,null,null,null,null,null,null,null,null,null,null,null,null,null,null,null,null,null,null,null,null,null,0,null,null,null,15]
[null,14,null,null,null,null,null,null,null,null,null,null,null,null,null,null,null,null,null,null,null,null,null,null,null,null,null,null,null,0,null,null,null,null,null,null,null,null,null,null,null,null,null,null,null,null,null,null,null,null,null,null,null,null,null,null,null,null,null,null,0,null,null,null,14,null,null,null,null,null,null,null,null,null,null,null,null,null,null,null,null,null,null,null,null,null,null,null,null,null,null,null,0,null,null,null,null,null,null,null,null,null,null,null,null,null,null,null,null,null,null,null,null,null,null,null,null,null,null,null,null,null,null,0,null,null,null,14,null,null,null,null,null,null,null,null,null,null,null,null,null,null,null,null,null,null,null,null,null,null,null,null,null,null,null,0,null,null,null,null,null,null,null,null,null,null,null,null,null,null,null,null,null,null,null,null,null,null,null,null,null,null,null,null,null,null,0,null,null,null,16]
[null,15,null,null,null,null,null,null,null,null,null,null,null,null,null,null,null,null,null,null,null,null,null,null,null,null,null,null,null,0,null,null,null,null,null,null,null,null,null,null,null,null,null,null,null,null,null,null,null,null,null,null,null,null,null,null,null,null,null,null,0,null,null,null,15,null,null,null,null,null,null,null,null,null,null,null,null,null,null,null,null,null,null,null,null,null,null,null,null,null,null,null,0,null,null,null,null,null,null,null,null,null,null,null,null,null,null,null,null,null,null,null,null,null,null,null,null,null,null,null,null,null,null,0,null,null,null,15,null,null,null,null,null,null,null,null,null,null,null,null,null,null,null,null,null,null,null,null,null,null,null,null,null,null,null,0,null,null,null,null,null,null,null,null,null,null,null,null,null,null,null,null,null,null,null,null,null,null,null,null,null,null,null,null,null,null,0,null,null,null,17]
[null,16,null,null,null,null,null,null,null,null,null,null,null,null,null,null,null,null,null,null,null,null,null,null,null,null,null,null,null,0,null,null,null,null,null,null,null,null,null,null,null,null,null,null,null,null,null,null,null,null,null,null,null,null,null,null,null,null,null,null,0,null,null,null,16,null,null,null,null,null,null,null,null,null,null,null,null,null,null,null,null,null,null,null,null,null,null,null,null,null,null,null,0,null,null,null,null,null,null,null,null,null,null,null,null,null,null,null,null,null,null,null,null,null,null,null,null,null,null,null,null,null,null,0,null,null,null,16,null,null,null,null,null,null,null,null,null,null,null,null,null,null,null,null,null,null,null,null,null,null,null,null,null,null,null,0,null,null,null,null,null,null,null,null,null,null,null,null,null,null,null,null,null,null,null,null,null,null,null,null,null,null,null,null,null,null,0,null,null,null,18]
[null,17,null,null,null,null,null,null,null,null,null,null,null,null,null,null,null,null,null,null,null,null,null,null,null,null,null,null,null,0,null,null,null,null,null,null,null,null,null,null,null,null,null,null,null,null,null,null,null,null,null,null,null,null,null,null,null,null,null,null,0,null,null,null,17,null,null,null,null,null,null,null,null,null,null,null,null,null,null,null,null,null,null,null,null,null,null,null,null,null,null,null,0,null,null,null,null,null,null,null,null,null,null,null,null,null,null,null,null,null,null,null,null,null,null,null,null,null,null,null,null,null,null,0,null,null,null,17,null,null,null,null,null,null,null,null,null,null,null,null,null,null,null,null,null,null,null,null,null,null,null,null,null,null,null,0,null,null,null,null,null,null,null,null,null,null,null,null,null,null,null,null,null,null,null,null,null,null,null,null,null,null,null,null,null,null,0,null,null,null,19]
[null,18,null,null,null,null,null,null,null,null,null,null,null,null,null,null,null,null,null,null,null,null,null,null,null,null,null,null,null,0,null,null,null,null,null,null,null,null,null,null,null,null,null,null,null,null,null,null,null,null,null,null,null,null,null,null,null,null,null,null,0,null,null,null,18,null,null,null,null,null,null,null,null,null,null,null,null,null,null,null,null,null,null,null,null,null,null,null,null,null,null,null,0,null,null,null,null,null,null,null,null,null,null,null,null,null,null,null,null,null,null,null,null,null,null,null,null,null,null,null,null,null,null,0,null,null,null,18,null,null,null,null,null,null,null,null,null,null,null,null,null,null,null,null,null,null,null,null,null,null,null,null,null,null,null,0,null,null,null,null,null,null,null,null,null,null,null,null,null,null,null,null,null,null,null,null,null,null,null,null,null,null,null,null,null,null,0,null,null,null,20]
[null,19,null,null,null,null,null,null,null,null,null,null,null,null,null,null,null,null,null,null,null,null,null,null,null,null,null,null,null,0,null,null,null,null,null,null,null,null,null,null,null,null,null,null,null,null,null,null,null,null,null,null,null,null,null,null,null,null,null,null,0,null,null,null,19,null,null,null,null,null,null,null,null,null,null,null,null,null,null,null,null,null,null,null,null,null,null,null,null,null,null,null,0,null,null,null,null,null,null,null,null,null,null,null,null,null,null,null,null,null,null,null,null,null,null,null,null,null,null,null,null,null,null,0,null,null,null,19,null,null,null,null,null,null,null,null,null,null,null,null,null,null,null,null,null,null,null,null,null,null,null,null,null,null,null,0,null,null,null,null,null,null,null,null,null,null,null,null,null,null,null,null,null,null,null,null,null,null,null,null,null,null,null,null,null,null,0,null,null,null,21]
[null,20,null,null,null,null,null,null,null,null,null,null,null,null,null,null,null,null,null,null,null,null,null,null,null,null,null,null,null,0,null,null,null,null,null,null,null,null,null,null,null,null,null,null,null,null,null,null,null,null,null,null,null,null,null,null,null,null,null,null,0,null,null,null,20,null,null,null,null,null,null,null,null,null,null,null,null,null,null,null,null,null,null,null,null,null,null,null,null,null,null,null,0,null,null,null,null,null,null,null,null,null,null,null,null,null,null,null,null,null,null,null,null,null,null,null,null,null,null,null,null,null,null,0,null,null,null,20,null,null,null,null,null,null,null,null,null,null,null,null,null,null,null,null,null,null,null,null,null,null,null,null,null,null,null,0,null,null,null,null,null,null,null,null,null,null,null,null,null,null,null,null,null,null,null,null,null,null,null,null,null,null,null,null,null,null,0,null,null,null,22]
[null,21,null,null,null,null,null,null,null,null,null,null,null,null,null,null,null,null,null,null,null,null,null,null,null,null,null,null,null,0,null,null,null,null,null,null,null,null,null,null,null,null,null,null,null,null,null,null,null,null,null,null,null,null,null,null,null,null,null,null,0,null,null,null,21,null,null,null,null,null,null,null,null,null,null,null,null,null,null,null,null,null,null,null,null,null,null,null,null,null,null,null,0,null,null,null,null,null,null,null,null,null,null,null,null,null,null,null,null,null,null,null,null,null,null,null,null,null,null,null,null,null,null,0,null,null,null,21,null,null,null,null,null,null,null,null,null,null,null,null,null,null,null,null,null,null,null,null,null,null,null,null,null,null,null,0,null,null,null,null,null,null,null,null,null,null,null,null,null,null,null,null,null,null,null,null,null,null,null,null,null,null,null,null,null,null,0,null,null,null,23]
[null,22,null,null,null,null,null,null,null,null,null,null,null,null,null,null,null,null,null,null,null,null,null,null,null,null,null,null,null,0,null,null,null,null,null,null,null,null,null,null,null,null,null,null,null,null,null,null,null,null,null,null,null,null,null,null,null,null,null,null,0,null,null,null,22,null,null,null,null,null,null,null,null,null,null,null,null,null,null,null,null,null,null,null,null,null,null,null,null,null,null,null,0,null,null,null,null,null,null,null,null,null,null,null,null,null,null,null,null,null,null,null,null,null,null,null,null,null,null,null,null,null,null,0,null,null,null,22,null,null,null,null,null,null,null,null,null,null,null,null,null,null,null,null,null,null,null,null,null,null,null,null,null,null,null,0,null,null,null,null,null,null,null,null,null,null,null,null,null,null,null,null,null,null,null,null,null,null,null,null,null,null,null,null,null,null,0,null,null,null,24]
[null,23,null,null,null,null,null,null,null,null,null,null,null,null,null,null,null,null,null,null,null,null,null,null,null,null,null,null,null,0,null,null,null,null,null,null,null,null,null,null,null,null,null,null,null,null,null,null,null,null,null,null,null,null,null,null,null,null,null,null,0,null,null,null,23,null,null,null,null,null,null,null,null,null,null,null,null,null,null,null,null,null,null,null,null,null,null,null,null,null,null,null,0,null,null,null,null,null,null,null,null,null,null,null,null,null,null,null,null,null,null,null,null,null,null,null,null,null,null,null,null,null,null,0,null,null,null,23,null,null,null,null,null,null,null,null,null,null,null,null,null,null,null,null,null,null,null,null,null,null,null,null,null,null,null,0,null,null,null,null,null,null,null,null,null,null,null,null,null,null,null,null,null,null,null,null,null,null,null,null,null,null,null,null,null,null,0,null,null,null,25]
[null,24,null,null,null,null,null,null,null,null,null,null,null,null,null,null,null,null,null,null,null,null,null,null,null,null,null,null,null,0,null,null,null,null,null,null,null,null,null,null,null,null,null,null,null,null,null,null,null,null,null,null,null,null,null,null,null,null,null,null,0,null,null,null,24,null,null,null,null,null,null,null,null,null,null,null,null,null,null,null,null,null,null,null,null,null,null,null,null,null,null,null,0,null,null,null,null,null,null,null,null,null,null,null,null,null,null,null,null,null,null,null,null,null,null,null,null,null,null,null,null,null,null,0,null,null,null,24,null,null,null,null,null,null,null,null,null,null,null,null,null,null,null,null,null,null,null,null,null,null,null,null,null,null,null,0,null,null,null,null,null,null,null,null,null,null,null,null,null,null,null,null,null,null,null,null,null,null,null,null,null,null,null,null,null,null,0,null,null,null,26]
[null,25,null,null,null,null,null,null,null,null,null,null,null,null,null,null,null,null,null,null,null,null,null,null,null,null,null,null,null,0,null,null,null,null,null,null,null,null,null,null,null,null,null,null,null,null,null,null,null,null,null,null,null,null,null,null,null,null,null,null,0,null,null,null,25,null,null,null,null,null,null,null,null,null,null,null,null,null,null,null,null,null,null,null,null,null,null,null,null,null,null,null,0,null,null,null,null,null,null,null,null,null,null,null,null,null,null,null,null,null,null,null,null,null,null,null,null,null,null,null,null,null,null,0,null,null,null,25,null,null,null,null,null,null,null,null,null,null,null,null,null,null,null,null,null,null,null,null,null,null,null,null,null,null,null,0,null,null,null,null,null,null,null,null,null,null,null,null,null,null,null,null,null,null,null,null,null,null,null,null,null,null,null,null,null,null,0,null,null,null,27]
[null,26,null,null,null,null,null,null,null,null,null,null,null,null,null,null,null,null,null,null,null,null,null,null,null,null,null,null,null,0,null,null,null,null,null,null,null,null,null,null,null,null,null,null,null,null,null,null,null,null,null,null,null,null,null,null,null,null,null,null,0,null,null,null,26,null,null,null,null,null,null,null,null,null,null,null,null,null,null,null,null,null,null,null,null,null,null,null,null,null,null,null,0,null,null,null,null,null,null,null,null,null,null,null,null,null,null,null,null,null,null,null,null,null,null,null,null,null,null,null,null,null,null,0,null,null,null,26,null,null,null,null,null,null,null,null,null,null,null,null,null,null,null,null,null,null,null,null,null,null,null,null,null,null,null,0,null,null,null,null,null,null,null,null,null,null,null,null,null,null,null,null,null,null,null,null,null,null,null,null,null,null,null,null,null,null,0,null,null,null,28]
[null,27,null,null,null,null,null,null,null,null,null,null,null,null,null,null,null,null,null,null,null,null,null,null,null,null,null,null,null,0,null,null,null,null,null,null,null,null,null,null,null,null,null,null,null,null,null,null,null,null,null,null,null,null,null,null,null,null,null,null,0,null,null,null,27,null,null,null,null,null,null,null,null,null,null,null,null,null,null,null,null,null,null,null,null,null,null,null,null,null,null,null,0,null,null,null,null,null,null,null,null,null,null,null,null,null,null,null,null,null,null,null,null,null,null,null,null,null,null,null,null,null,null,0,null,null,null,27,null,null,null,null,null,null,null,null,null,null,null,null,null,null,null,null,null,null,null,null,null,null,null,null,null,null,null,0,null,null,null,null,null,null,null,null,null,null,null,null,null,null,null,null,null,null,null,null,null,null,null,null,null,null,null,null,null,null,0,null,null,null,29]
[null,28,null,null,null,null,null,null,null,null,null,null,null,null,null,null,null,null,null,null,null,null,null,null,null,null,null,null,null,0,null,null,null,null,null,null,null,null,null,null,null,null,null,null,null,null,null,null,null,null,null,null,null,null,null,null,null,null,null,null,0,null,null,null,28,null,null,null,null,null,null,null,null,null,null,null,null,null,null,null,null,null,null,null,null,null,null,null,null,null,null,null,0,null,null,null,null,null,null,null,null,null,null,null,null,null,null,null,null,null,null,null,null,null,null,null,null,null,null,null,null,null,null,0,null,null,null,28,null,null,null,null,null,null,null,null,null,null,null,null,null,null,null,null,null,null,null,null,null,null,null,null,null,null,null,0,null,null,null,null,null,null,null,null,null,null,null,null,null,null,null,null,null,null,null,null,null,null,null,null,null,null,null,null,null,null,0,null,null,null,30]
[null,29,null,null,null,null,null,null,null,null,null,null,null,null,null,null,null,null,null,null,null,null,null,null,null,null,null,null,null,0,null,null,null,null,null,null,null,null,null,null,null,null,null,null,null,null,null,null,null,null,null,null,null,null,null,null,null,null,null,null,0,null,null,null,29,null,null,null,null,null,null,null,null,null,null,null,null,null,null,null,null,null,null,null,null,null,null,null,null,null,null,null,0,null,null,null,null,null,null,null,null,null,null,null,null,null,null,null,null,null,null,null,null,null,null,null,null,null,null,null,null,null,null,0,null,null,null,29,null,null,null,null,null,null,null,null,null,null,null,null,null,null,null,null,null,null,null,null,null,null,null,null,null,null,null,0,null,null,null,null,null,null,null,null,null,null,null,null,null,null,null,null,null,null,null,null,null,null,null,null,null,null,null,null,null,null,0,null,null,null,31]
[null,30,null,null,null,null,null,null,null,null,null,null,null,null,null,null,null,null,null,null,null,null,null,null,null,null,null,null,null,0,null,null,null,null,null,null,null,null,null,null,null,null,null,null,null,null,null,null,null,null,null,null,null,null,null,null,null,null,null,null,0,null,null,null,30,null,null,null,null,null,null,null,null,null,null,null,null,null,null,null,null,null,null,null,null,null,null,null,null,null,null,null,0,null,null,null,null,null,null,null,null,null,null,null,null,null,null,null,null,null,null,null,null,null,null,null,null,null,null,null,null,null,null,0,null,null,null,30,null,null,null,null,null,null,null,null,null,null,null,null,null,null,null,null,null,null,null,null,null,null,null,null,null,null,null,0,null,null,null,null,null,null,null,null,null,null,null,null,null,null,null,null,null,null,null,null,null,null,null,null,null,null,null,null,null,null,0]
[null,31,null,null,null,null,null,null,null,null,null,null,null,null,null,null,null,null,null,null,null,null,null,null,null,null,null,null,null,0,null,null,null,null,null,null,null,null,null,null,null,null,null,null,null,null,null,null,null,null,null,null,null,null,null,null,null,null,null,null,0,null,null,null,31,null,null,null,null,null,null,null,null,null,null,null,null,null,null,null,null,null,null,null,null,null,null,null,null,null,null,null,0,null,null,null,null,null,null,null,null,null,null,null,null,null,null,null,null,null,null,null,null,null,null,null,null,null,null,null,null,null,null,0,null,null,null,31,null,null,null,null,null,null,null,null,null,null,null,null,null,null,null,null,null,null,null,null,null,null,null,null,null,null,null,0,null,null,null,null,null,null,null,null,null,null,null,null,null,null,null,null,null,null,null,null,null,null,null,null,null,null,null,null,null,null,0]
[null,"合計",null,null,null,{"$f":"SUM(F22:H53)","v":0},null,null,{"$f":"SUM(I22:K53)","v":0},null,null,{"$f":"SUM(L22:N53)","v":0},null,null,{"$f":"SUM(O23:Q53)","v":0},null,null,{"$f":"SUM(R23:T53)","v":0},null,null,{"$f":"SUM(U23:W53)","v":0},null,null,{"$f":"SUM(X23:Z53)","v":0},null,null,{"$f":"SUM(AA23:AC53)","v":0},null,null,{"$f":"SUM(AD22:AG53)","v":0},null,null,null,{"$f":"SUM(AH22:AJ53)","v":0},null,null,{"$f":"SUM(AK22:AM53)","v":0},null,null,{"$f":"SUM(AN22:AP53)","v":0},null,null,{"$f":"SUM(AQ22:AS53)","v":0},null,null,{"$f":"SUM(AT22:AV53)","v":0},null,null,{"$f":"SUM(AW22:AY53)","v":0},null,null,{"$f":"SUM(AZ22:BB53)","v":0},null,null,{"$f":"SUM(BC23:BE53)","v":0},null,null,{"$f":"SUM(BF23:BH53)","v":0},null,null,{"$f":"SUM(BI22:BL53)","v":0},null,null,null,"合計",null,null,null,{"$f":"SUM(BQ22:BS53)","v":0},null,null,{"$f":"SUM(BT22:BV53)","v":0},null,null,{"$f":"SUM(BW22:BY53)","v":0},null,null,{"$f":"SUM(BZ23:CB53)","v":0},null,null,{"$f":"SUM(CC23:CE53)","v":0},null,null,{"$f":"SUM(CF23:CH53)","v":0},null,null,{"$f":"SUM(CI23:CK53)","v":0},null,null,{"$f":"SUM(CL23:CN53)","v":0},null,null,{"$f":"SUM(CO22:CR53)","v":0},null,null,null,{"$f":"SUM(CS22:CU53)","v":0},null,null,{"$f":"SUM(CV22:CX53)","v":0},null,null,{"$f":"SUM(CY22:DA53)","v":0},null,null,{"$f":"SUM(DB22:DD53)","v":0},null,null,{"$f":"SUM(DE22:DG53)","v":0},null,null,{"$f":"SUM(DH22:DJ53)","v":0},null,null,{"$f":"SUM(DK22:DM53)","v":0},null,null,{"$f":"SUM(DN23:DP53)","v":0},null,null,{"$f":"SUM(DQ23:DS53)","v":0},null,null,{"$f":"SUM(DT22:DW53)","v":0},null,null,null,"合計",null,null,null,{"$f":"SUM(EB22:ED53)","v":0},null,null,{"$f":"SUM(EE22:EG53)","v":0},null,null,{"$f":"SUM(EH22:EJ53)","v":0},null,null,{"$f":"SUM(EK23:EM53)","v":0},null,null,{"$f":"SUM(EN23:EP53)","v":0},null,null,{"$f":"SUM(EQ23:ES53)","v":0},null,null,{"$f":"SUM(ET23:EV53)","v":0},null,null,{"$f":"SUM(EW23:EY53)","v":0},null,null,{"$f":"SUM(EZ22:FC53)","v":0},null,null,null,{"$f":"SUM(FD22:FF53)","v":0},null,null,{"$f":"SUM(FG22:FI53)","v":0},null,null,{"$f":"SUM(FJ22:FL53)","v":0},null,null,{"$f":"SUM(FM22:FO53)","v":0},null,null,{"$f":"SUM(FP22:FR53)","v":0},null,null,{"$f":"SUM(FS22:FU53)","v":0},null,null,{"$f":"SUM(FV22:FX53)","v":0},null,null,{"$f":"SUM(FY23:GA53)","v":0},null,null,{"$f":"SUM(GB23:GD53)","v":0},null,null,{"$f":"SUM(GE22:GH53)","v":0}]
[null,null,null,null,null,null,null,null,null,null,null,null,null,null,{"$f":"SUM(O54:AC54)","v":0},null,null,null,null,null,null,null,null,null,null,null,null,null,null,null,null,null,null,null,null,null,null,null,null,null,null,null,null,null,null,null,null,null,null,null,null,null,null,null,{"$f":"SUM(BC54:BH54)","v":0},null,null,{"$f":"SUM(BF23:BH53)","v":0},null,null,null,null,null,null,null,null,null,null,null,null,null,null,null,null,null,null,null,{"$f":"SUM(BZ54:CN54)","v":0},null,null,null,null,null,null,null,null,null,null,null,null,null,null,null,null,null,null,null,null,null,null,null,null,null,null,null,null,null,null,null,null,null,null,null,null,null,null,null,{"$f":"SUM(DN54:DS54)","v":0},null,null,{"$f":"SUM(DQ23:DS53)","v":0},null,null,null,null,null,null,null,null,null,null,null,null,null,null,null,null,null,null,null,{"$f":"SUM(EK54:EY54)","v":0},null,null,null,null,null,null,null,null,null,null,null,null,null,null,null,null,null,null,null,null,null,null,null,null,null,null,null,null,null,null,null,null,null,null,null,null,null,null,null,{"$f":"SUM(FY54:GD54)","v":0},null,null,{"$f":"SUM(GB23:GD53)","v":0}]
[null,null,null,null,null,null,null,null,null,null,null,null,null,null,null,null,null,null,null,null,null,null,null,null,null,null,null,null,null,null,null,null,null,null,null,null,null,null,null,null,null,null,null,null,null,null,null,null,null,null,null,null,null,null,null,null,null,null,null,null,null,null,null,null,null,null,null,null,null,null,null,null,null,null,null,null,null,null,null,null,null,null,null,null,null,null,null,null,null,null,null,null,null,null,null,null,null,null,null,null,null,null,null,null,null,null,null,null,null,null,null,null,null,null,null,null,null,null,null,null,null,null,null,null,null,null,null,null,null,null,null,null,null,null,null,null,null,null,null,null,null,null,null,null,null,null,null,null,null,null,null,null,null,null,null,null,null,null,null,null,null,null,null,null,null,null,null,null,null,null,null,null,null,null,null,null,null,null,null,null,null,null,null,null,null,null,null,null,null,null,8,5,{"$f":"IF(AND($GI$13=GI56,$GJ$13=GJ56),1,0)","v":0},8,6,30,{"$f":"IF($GK56=1,GL56,\"\")","v":""},{"$f":"IF($GK56=1,GM56,\"\")","v":""},""]
[null,null,null,null,null,null,null,null,null,null,null,null,null,null,null,null,null,null,null,null,null,null,null,null,null,null,null,null,null,null,null,null,null,null,null,null,null,null,null,null,null,null,null,null,null,null,null,null,null,null,null,null,null,null,null,null,null,null,null,null,null,null,null,null,null,null,null,null,null,null,null,null,null,null,null,null,null,null,null,null,null,null,null,null,null,null,null,null,null,null,null,null,null,null,null,null,null,null,null,null,null,null,null,null,null,null,null,null,null,null,null,null,null,null,null,null,null,null,null,null,null,null,null,null,null,null,null,null,null,null,null,null,null,null,null,null,null,null,null,null,null,null,null,null,null,null,null,null,null,null,null,null,null,null,null,null,null,null,null,null,null,null,null,null,null,null,null,null,null,null,null,null,null,null,null,null,null,null,null,null,null,null,null,null,null,null,null,null,null,null,8,8,{"$f":"IF(AND($GI$13=GI57,$GJ$13=GJ57),1,0)","v":0},8,9,30,{"$f":"IF($GK57=1,GL57,\"\")","v":""},"",""]
[null,null,null,null,null,null,null,null,null,null,null,null,null,null,null,null,null,null,null,null,null,null,null,null,null,null,null,null,null,null,null,null,null,null,null,null,null,null,null,null,null,null,null,null,null,null,null,null,null,null,null,null,null,null,null,null,null,null,null,null,null,null,null,null,null,null,null,null,null,null,null,null,null,null,null,null,null,null,null,null,null,null,null,null,null,null,null,null,null,null,null,null,null,null,null,null,null,null,null,null,null,null,null,null,null,null,null,null,null,null,null,null,null,null,null,null,null,null,null,null,null,null,null,null,null,null,null,null,null,null,null,null,null,null,null,null,null,null,null,null,null,null,null,null,null,null,null,null,null,null,null,null,null,null,null,null,null,null,null,null,null,null,null,null,null,null,null,null,null,null,null,null,null,null,null,null,null,null,null,null,null,null,null,null,null,null,null,null,null,null,8,11,0,9,1,4,"","",""]
[null,null,null,null,null,null,null,null,null,null,null,null,null,null,null,null,null,null,null,null,null,null,null,null,null,null,null,null,null,null,null,null,null,null,null,null,null,null,null,null,null,null,null,null,null,null,null,null,null,null,null,null,null,null,null,null,null,null,null,null,null,null,null,null,null,null,null,null,null,null,null,null,null,null,null,null,null,null,null,null,null,null,null,null,null,null,null,null,null,null,null,null,null,null,null,null,null,null,null,null,null,null,null,null,null,null,null,null,null,null,null,null,null,null,null,null,null,null,null,null,null,null,null,null,null,null,null,null,null,null,null,null,null,null,null,null,null,null,null,null,null,null,null,null,null,null,null,null,null,null,null,null,null,null,null,null,null,null,null,null,null,null,null,null,null,null,null,null,null,null,null,null,null,null,null,null,null,null,null,null,null,null,null,null,null,null,null,null,null,null,9,2,0,9,3,31,"","",""]
[null,null,null,null,null,null,null,null,null,null,null,null,null,null,null,null,null,null,null,null,null,null,null,null,null,null,null,null,null,null,null,null,null,null,null,null,null,null,null,null,null,null,null,null,null,null,null,null,null,null,null,null,null,null,null,null,null,null,null,null,null,null,null,null,null,null,null,null,null,null,null,null,null,null,null,null,null,null,null,null,null,null,null,null,null,null,null,null,null,null,null,null,null,null,null,null,null,null,null,null,null,null,null,null,null,null,null,null,null,null,null,null,null,null,null,null,null,null,null,null,null,null,null,null,null,null,null,null,null,null,null,null,null,null,null,null,null,null,null,null,null,null,null,null,null,null,null,null,null,null,null,null,null,null,null,null,null,null,null,null,null,null,null,null,null,null,null,null,null,null,null,null,null,null,null,null,null,null,null,null,null,null,null,null,null,null,null,null,null,null,9,5,0,9,6,30,"","",""]
[null,null,null,null,null,null,null,null,null,null,null,null,null,null,null,null,null,null,null,null,null,null,null,null,null,null,null,null,null,null,null,null,null,null,null,null,null,null,null,null,null,null,null,null,null,null,null,null,null,null,null,null,null,null,null,null,null,null,null,null,null,null,null,null,null,null,null,null,null,null,null,null,null,null,null,null,null,null,null,null,null,null,null,null,null,null,null,null,null,null,null,null,null,null,null,null,null,null,null,null,null,null,null,null,null,null,null,null,null,null,null,null,null,null,null,null,null,null,null,null,null,null,null,null,null,null,null,null,null,null,null,null,null,null,null,null,null,null,null,null,null,null,null,null,null,null,null,null,null,null,null,null,null,null,null,null,null,null,null,null,null,null,null,null,null,null,null,null,null,null,null,null,null,null,null,null,null,null,null,null,null,null,null,null,null,null,null,null,null,null,9,8,0,9,9,30,"","",""]
[null,null,null,null,null,null,null,null,null,null,null,null,null,null,null,null,null,null,null,null,null,null,null,null,null,null,null,null,null,null,null,null,null,null,null,null,null,null,null,null,null,null,null,null,null,null,null,null,null,null,null,null,null,null,null,null,null,null,null,null,null,null,null,null,null,null,null,null,null,null,null,null,null,null,null,null,null,null,null,null,null,null,null,null,null,null,null,null,null,null,null,null,null,null,null,null,null,null,null,null,null,null,null,null,null,null,null,null,null,null,null,null,null,null,null,null,null,null,null,null,null,null,null,null,null,null,null,null,null,null,null,null,null,null,null,null,null,null,null,null,null,null,null,null,null,null,null,null,null,null,null,null,null,null,null,null,null,null,null,null,null,null,null,null,null,null,null,null,null,null,null,null,null,null,null,null,null,null,null,null,null,null,null,null,null,null,null,null,null,null,9,11,0,10,1,4,"","",""]
[null,null,null,null,null,null,null,null,null,null,null,null,null,null,null,null,null,null,null,null,null,null,null,null,null,null,null,null,null,null,null,null,null,null,null,null,null,null,null,null,null,null,null,null,null,null,null,null,null,null,null,null,null,null,null,null,null,null,null,null,null,null,null,null,null,null,null,null,null,null,null,null,null,null,null,null,null,null,null,null,null,null,null,null,null,null,null,null,null,null,null,null,null,null,null,null,null,null,null,null,null,null,null,null,null,null,null,null,null,null,null,null,null,null,null,null,null,null,null,null,null,null,null,null,null,null,null,null,null,null,null,null,null,null,null,null,null,null,null,null,null,null,null,null,null,null,null,null,null,null,null,null,null,null,null,null,null,null,null,null,null,null,null,null,null,null,null,null,null,null,null,null,null,null,null,null,null,null,null,null,null,null,null,null,null,null,null,null,null,null,10,2,0,10,3,31,"","",""]
[null,null,null,null,null,null,null,null,null,null,null,null,null,null,null,null,null,null,null,null,null,null,null,null,null,null,null,null,null,null,null,null,null,null,null,null,null,null,null,null,null,null,null,null,null,null,null,null,null,null,null,null,null,null,null,null,null,null,null,null,null,null,null,null,null,null,null,null,null,null,null,null,null,null,null,null,null,null,null,null,null,null,null,null,null,null,null,null,null,null,null,null,null,null,null,null,null,null,null,null,null,null,null,null,null,null,null,null,null,null,null,null,null,null,null,null,null,null,null,null,null,null,null,null,null,null,null,null,null,null,null,null,null,null,null,null,null,null,null,null,null,null,null,null,null,null,null,null,null,null,null,null,null,null,null,null,null,null,null,null,null,null,null,null,null,null,null,null,null,null,null,null,null,null,null,null,null,null,null,null,null,null,null,null,null,null,null,null,null,null,10,5,0,10,6,30,"","",""]
[null,null,null,null,null,null,null,null,null,null,null,null,null,null,null,null,null,null,null,null,null,null,null,null,null,null,null,null,null,null,null,null,null,null,null,null,null,null,null,null,null,null,null,null,null,null,null,null,null,null,null,null,null,null,null,null,null,null,null,null,null,null,null,null,null,null,null,null,null,null,null,null,null,null,null,null,null,null,null,null,null,null,null,null,null,null,null,null,null,null,null,null,null,null,null,null,null,null,null,null,null,null,null,null,null,null,null,null,null,null,null,null,null,null,null,null,null,null,null,null,null,null,null,null,null,null,null,null,null,null,null,null,null,null,null,null,null,null,null,null,null,null,null,null,null,null,null,null,null,null,null,null,null,null,null,null,null,null,null,null,null,null,null,null,null,null,null,null,null,null,null,null,null,null,null,null,null,null,null,null,null,null,null,null,null,null,null,null,null,null,10,8,0,10,10,1,"","",""]
[null,null,null,null,null,null,null,null,null,null,null,null,null,null,null,null,null,null,null,null,null,null,null,null,null,null,null,null,null,null,null,null,null,null,null,null,null,null,null,null,null,null,null,null,null,null,null,null,null,null,null,null,null,null,null,null,null,null,null,null,null,null,null,null,null,null,null,null,null,null,null,null,null,null,null,null,null,null,null,null,null,null,null,null,null,null,null,null,null,null,null,null,null,null,null,null,null,null,null,null,null,null,null,null,null,null,null,null,null,null,null,null,null,null,null,null,null,null,null,null,null,null,null,null,null,null,null,null,null,null,null,null,null,null,null,null,null,null,null,null,null,null,null,null,null,null,null,null,null,null,null,null,null,null,null,null,null,null,null,null,null,null,null,null,null,null,null,null,null,null,null,null,null,null,null,null,null,null,null,null,null,null,null,null,null,null,null,null,null,null,10,11,0,11,1,4,"","",""]
[null,null,null,null,null,null,null,null,null,null,null,null,null,null,null,null,null,null,null,null,null,null,null,null,null,null,null,null,null,null,null,null,null,null,null,null,null,null,null,null,null,null,null,null,null,null,null,null,null,null,null,null,null,null,null,null,null,null,null,null,null,null,null,null,null,null,null,null,null,null,null,null,null,null,null,null,null,null,null,null,null,null,null,null,null,null,null,null,null,null,null,null,null,null,null,null,null,null,null,null,null,null,null,null,null,null,null,null,null,null,null,null,null,null,null,null,null,null,null,null,null,null,null,null,null,null,null,null,null,null,null,null,null,null,null,null,null,null,null,null,null,null,null,null,null,null,null,null,null,null,null,null,null,null,null,null,null,null,null,null,null,null,null,null,null,null,null,null,null,null,null,null,null,null,null,null,null,null,null,null,null,null,null,null,null,null,null,null,null,null,11,2,0,11,4,3,"","",""]
[null,null,null,null,null,null,null,null,null,null,null,null,null,null,null,null,null,null,null,null,null,null,null,null,null,null,null,null,null,null,null,null,null,null,null,null,null,null,null,null,null,null,null,null,null,null,null,null,null,null,null,null,null,null,null,null,null,null,null,null,null,null,null,null,null,null,null,null,null,null,null,null,null,null,null,null,null,null,null,null,null,null,null,null,null,null,null,null,null,null,null,null,null,null,null,null,null,null,null,null,null,null,null,null,null,null,null,null,null,null,null,null,null,null,null,null,null,null,null,null,null,null,null,null,null,null,null,null,null,null,null,null,null,null,null,null,null,null,null,null,null,null,null,null,null,null,null,null,null,null,null,null,null,null,null,null,null,null,null,null,null,null,null,null,null,null,null,null,null,null,null,null,null,null,null,null,null,null,null,null,null,null,null,null,null,null,null,null,null,null,11,5,0,11,7,2,"","",""]
[null,null,null,null,null,null,null,null,null,null,null,null,null,null,null,null,null,null,null,null,null,null,null,null,null,null,null,null,null,null,null,null,null,null,null,null,null,null,null,null,null,null,null,null,null,null,null,null,null,null,null,null,null,null,null,null,null,null,null,null,null,null,null,null,null,null,null,null,null,null,null,null,null,null,null,null,null,null,null,null,null,null,null,null,null,null,null,null,null,null,null,null,null,null,null,null,null,null,null,null,null,null,null,null,null,null,null,null,null,null,null,null,null,null,null,null,null,null,null,null,null,null,null,null,null,null,null,null,null,null,null,null,null,null,null,null,null,null,null,null,null,null,null,null,null,null,null,null,null,null,null,null,null,null,null,null,null,null,null,null,null,null,null,null,null,null,null,null,null,null,null,null,null,null,null,null,null,null,null,null,null,null,null,null,null,null,null,null,null,null,11,8,0,11,10,1,"","",""]
[null,null,null,null,null,null,null,null,null,null,null,null,null,null,null,null,null,null,null,null,null,null,null,null,null,null,null,null,null,null,null,null,null,null,null,null,null,null,null,null,null,null,null,null,null,null,null,null,null,null,null,null,null,null,null,null,null,null,null,null,null,null,null,null,null,null,null,null,null,null,null,null,null,null,null,null,null,null,null,null,null,null,null,null,null,null,null,null,null,null,null,null,null,null,null,null,null,null,null,null,null,null,null,null,null,null,null,null,null,null,null,null,null,null,null,null,null,null,null,null,null,null,null,null,null,null,null,null,null,null,null,null,null,null,null,null,null,null,null,null,null,null,null,null,null,null,null,null,null,null,null,null,null,null,null,null,null,null,null,null,null,null,null,null,null,null,null,null,null,null,null,null,null,null,null,null,null,null,null,null,null,null,null,null,null,null,null,null,null,null,11,11,0,12,1,4,"","",""]
[null,null,null,null,null,null,null,null,null,null,null,null,null,null,null,null,null,null,null,null,null,null,null,null,null,null,null,null,null,null,null,null,null,null,null,null,null,null,null,null,null,null,null,null,null,null,null,null,null,null,null,null,null,null,null,null,null,null,null,null,null,null,null,null,null,null,null,null,null,null,null,null,null,null,null,null,null,null,null,null,null,null,null,null,null,null,null,null,null,null,null,null,null,null,null,null,null,null,null,null,null,null,null,null,null,null,null,null,null,null,null,null,null,null,null,null,null,null,null,null,null,null,null,null,null,null,null,null,null,null,null,null,null,null,null,null,null,null,null,null,null,null,null,null,null,null,null,null,null,null,null,null,null,null,null,null,null,null,null,null,null,null,null,null,null,null,null,null,null,null,null,null,null,null,null,null,null,null,null,null,null,null,null,null,null,null,null,null,null,null,12,2,0,12,4,1,"","",""]
[null,null,null,null,null,null,null,null,null,null,null,null,null,null,null,null,null,null,null,null,null,null,null,null,null,null,null,null,null,null,null,null,null,null,null,null,null,null,null,null,null,null,null,null,null,null,null,null,null,null,null,null,null,null,null,null,null,null,null,null,null,null,null,null,null,null,null,null,null,null,null,null,null,null,null,null,null,null,null,null,null,null,null,null,null,null,null,null,null,null,null,null,null,null,null,null,null,null,null,null,null,null,null,null,null,null,null,null,null,null,null,null,null,null,null,null,null,null,null,null,null,null,null,null,null,null,null,null,null,null,null,null,null,null,null,null,null,null,null,null,null,null,null,null,null,null,null,null,null,null,null,null,null,null,null,null,null,null,null,null,null,null,null,null,null,null,null,null,null,null,null,null,null,null,null,null,null,null,null,null,null,null,null,null,null,null,null,null,null,null,12,5,0,12,7,1,"","",""]
[null,null,null,null,null,null,null,null,null,null,null,null,null,null,null,null,null,null,null,null,null,null,null,null,null,null,null,null,null,null,null,null,null,null,null,null,null,null,null,null,null,null,null,null,null,null,null,null,null,null,null,null,null,null,null,null,null,null,null,null,null,null,null,null,null,null,null,null,null,null,null,null,null,null,null,null,null,null,null,null,null,null,null,null,null,null,null,null,null,null,null,null,null,null,null,null,null,null,null,null,null,null,null,null,null,null,null,null,null,null,null,null,null,null,null,null,null,null,null,null,null,null,null,null,null,null,null,null,null,null,null,null,null,null,null,null,null,null,null,null,null,null,null,null,null,null,null,null,null,null,null,null,null,null,null,null,null,null,null,null,null,null,null,null,null,null,null,null,null,null,null,null,null,null,null,null,null,null,null,null,null,null,null,null,null,null,null,null,null,null,12,8,0,12,9,30,"","",""]
[null,null,null,null,null,null,null,null,null,null,null,null,null,null,null,null,null,null,null,null,null,null,null,null,null,null,null,null,null,null,null,null,null,null,null,null,null,null,null,null,null,null,null,null,null,null,null,null,null,null,null,null,null,null,null,null,null,null,null,null,null,null,null,null,null,null,null,null,null,null,null,null,null,null,null,null,null,null,null,null,null,null,null,null,null,null,null,null,null,null,null,null,null,null,null,null,null,null,null,null,null,null,null,null,null,null,null,null,null,null,null,null,null,null,null,null,null,null,null,null,null,null,null,null,null,null,null,null,null,null,null,null,null,null,null,null,null,null,null,null,null,null,null,null,null,null,null,null,null,null,null,null,null,null,null,null,null,null,null,null,null,null,null,null,null,null,null,null,null,null,null,null,null,null,null,null,null,null,null,null,null,null,null,null,null,null,null,null,null,null,12,11,0,13,1,6,"","",""]
[null,null,null,null,null,null,null,null,null,null,null,null,null,null,null,null,null,null,null,null,null,null,null,null,null,null,null,null,null,null,null,null,null,null,null,null,null,null,null,null,null,null,null,null,null,null,null,null,null,null,null,null,null,null,null,null,null,null,null,null,null,null,null,null,null,null,null,null,null,null,null,null,null,null,null,null,null,null,null,null,null,null,null,null,null,null,null,null,null,null,null,null,null,null,null,null,null,null,null,null,null,null,null,null,null,null,null,null,null,null,null,null,null,null,null,null,null,null,null,null,null,null,null,null,null,null,null,null,null,null,null,null,null,null,null,null,null,null,null,null,null,null,null,null,null,null,null,null,null,null,null,null,null,null,null,null,null,null,null,null,null,null,null,null,null,null,null,null,null,null,null,null,null,null,null,null,null,null,null,null,null,null,null,null,null,null,null,null,null,null,13,2,{"$f":"IF(AND($GI$13=GI75,$GJ$13=GJ75),1,0)","v":0},13,3,31,"","",""]
[null,null,null,null,null,null,null,null,null,null,null,null,null,null,null,null,null,null,null,null,null,null,null,null,null,null,null,null,null,null,null,null,null,null,null,null,null,null,null,null,null,null,null,null,null,null,null,null,null,null,null,null,null,null,null,null,null,null,null,null,null,null,null,null,null,null,null,null,null,null,null,null,null,null,null,null,null,null,null,null,null,null,null,null,null,null,null,null,null,null,null,null,null,null,null,null,null,null,null,null,null,null,null,null,null,null,null,null,null,null,null,null,null,null,null,null,null,null,null,null,null,null,null,null,null,null,null,null,null,null,null,null,null,null,null,null,null,null,null,null,null,null,null,null,null,null,null,null,null,null,null,null,null,null,null,null,null,null,null,null,null,null,null,null,null,null,null,null,null,null,null,null,null,null,null,null,null,null,null,null,null,null,null,null,null,null,null,null,null,null,null,null,null,null,null,null,{"$f":"SUM(GO56:GO75)","v":0},{"$f":"SUM(GP56:GP75)","v":0},0,"納期限","令和",{"$f":"IF(BZ5>0,BZ5,GO76)","v":0},"年",{"$f":"IF(CF5>0,CF5,GP76)","v":0},"月",{"$f":"IF(CL5>0,CL5,GQ76)","v":0},"日"]

{"sheet":"入湯税納入書","index":2,"n_rows":36,"n_cols":285,"rows_kept":36,"cut":false,"hidden":false,"merged":[[20,459,21,464],[20,465,21,483],[24,459,25,464],[24,465,25,483],[17,132,18,137],[17,138,18,143],[17,144,18,149],[17,150,18,155],[17,223,18,228],[17,229,18,234],[23,224,24,229],[23,230,24,239],[20,168,21,173],[20,174,21,192],[20,265,21,270],[20,271,21,289],[22,265,23,270],[22,271,23,289],[23,133,24,142],[23,143,24,162],[21,224,22,229],[21,230,22,239],[21,143,22,162],[21,201,22,213],[30,254,34,259],[29,1,29,29],[29,30,29,35],[29,36,29,41],[29,42,29,47],[29,48,29,53],[29,54,29,59],[21,133,22,142],[30,22,30,29],[30,50,30,56],[30,57,30,59],[30,60,34,65],[30,66,34,95],[30,98,30,118],[30,119,30,126],[32,22,32,59],[30,1,30,21],[21,240,22,259],[30,30,30,36],[30,37,30,39],[30,40,30,46],[30,47,30,49],[30,241,30,243],[30,244,30,250],[33,1,33,21],[33,22,33,59],[29,236,29,241],[29,242,29,247],[29,157,29,162],[29,163,29,168],[29,169,29,174],[29,175,29,180],[29,181,29,186],[35,1,35,72],[35,98,35,192],[35,195,35,253],[31,1,31,21],[31,22,31,59],[31,98,32,156],[31,195,34,253],[32,1,32,21],[30,234,30,240],[30,251,30,253],[30,157,34,162],[30,163,34,192],[30,195,30,215],[30,216,30,223],[30,224,30,230],[30,231,30,233],[34,1,34,59],[34,98,34,156],[30,127,30,133],[30,134,30,136],[30,137,30,143],[30,144,30,146],[30,147,30,153],[30,154,30,156],[30,260,34,289],[29,60,29,65],[29,66,29,71],[29,72,29,77],[29,78,29,83],[29,84,29,89],[29,90,29,95],[29,254,29,259],[29,260,29,265],[29,266,29,271],[29,248,29,253],[29,98,29,126],[29,127,29,132],[29,133,29,138],[29,139,29,144],[29,145,29,150],[29,151,29,156],[29,272,29,277],[29,278,29,283],[29,284,29,289],[29,195,29,223],[29,224,29,229],[29,230,29,235],[29,187,29,192],[27,195,28,201],[27,202,27,223],[27,224,27,229],[27,230,27,235],[28,181,28,186],[28,187,28,192],[28,202,28,223],[28,224,28,229],[27,163,27,168],[28,8,28,29],[28,30,28,35],[28,36,28,41],[27,272,27,277],[27,278,27,283],[27,284,27,289],[27,236,27,241],[27,242,27,247],[27,248,27,253],[27,254,27,259],[27,260,27,265],[28,60,28,65],[28,66,28,71],[28,72,28,77],[28,78,28,83],[28,242,28,247],[28,248,28,253],[28,254,28,259],[28,260,28,265],[28,145,28,150],[28,151,28,156],[28,84,28,89],[28,90,28,95],[27,78,27,83],[28,284,28,289],[28,230,28,235],[28,236,28,241],[26,139,26,144],[26,145,26,150],[26,151,26,156],[26,157,26,162],[28,157,28,162],[27,145,27,150],[27,151,27,156],[27,157,27,162],[27,169,27,174],[27,175,27,180],[27,139,27,144],[28,139,28,144],[27,266,27,271],[27,181,27,186],[27,187,27,192],[28,266,28,271],[28,272,28,277],[28,278,28,283],[28,163,28,168],[28,169,28,174],[28,175,28,180],[28,42,28,47],[28,48,28,53],[28,54,28,59],[26,278,26,283],[26,284,26,289],[26,230,26,235],[26,236,26,241],[26,242,26,247],[26,248,26,253],[26,254,26,259],[26,72,26,77],[26,78,26,83],[26,163,26,168],[26,260,26,265],[26,169,26,174],[26,175,26,180],[26,181,26,186],[26,187,26,192],[26,195,26,223],[26,224,26,229],[26,266,26,271],[26,272,26,277],[26,84,26,89],[26,90,26,95],[26,98,26,126],[26,127,26,132],[26,133,26,138],[27,1,28,7],[27,8,27,29],[27,30,27,35],[27,36,27,41],[27,42,27,47],[27,48,27,53],[27,54,27,59],[27,60,27,65],[27,66,27,71],[27,72,27,77],[27,90,27,95],[27,98,28,104],[27,105,27,126],[27,127,27,132],[27,133,27,138],[28,105,28,126],[28,127,28,132],[28,133,28,138],[27,84,27,89],[26,1,26,29],[26,30,26,35],[26,36,26,41],[26,42,26,47],[26,48,26,53],[26,54,26,59],[26,60,26,65],[26,66,26,71],[23,7,24,19],[23,20,24,29],[23,30,24,35],[23,36,24,45],[23,46,24,65],[23,104,24,116],[23,117,24,126],[23,127,24,132],[22,71,23,76],[22,77,23,95],[21,7,22,19],[21,20,22,29],[21,30,22,35],[21,36,22,45],[21,46,22,65],[21,104,22,116],[20,71,21,76],[20,77,21,95],[21,117,22,126],[21,127,22,132],[24,71,25,76],[24,77,25,95],[21,214,22,223],[23,240,24,259],[22,168,23,173],[22,174,23,192],[24,168,25,173],[24,174,25,192],[24,265,25,270],[24,271,25,289],[23,201,24,213],[23,214,24,223],[15,3,16,25],[15,28,16,87],[15,100,16,122],[15,125,16,184],[15,197,16,219],[15,222,16,281],[19,1,19,70],[19,71,19,95],[19,98,19,167],[19,168,19,192],[19,195,19,264],[19,265,19,289],[17,3,18,25],[17,100,18,122],[17,197,18,219],[17,29,18,34],[17,35,18,40],[17,41,18,46],[17,47,18,52],[17,53,18,58],[17,235,18,240],[17,241,18,246],[17,247,18,252],[17,126,18,131],[6,1,6,48],[6,49,6,95],[6,98,6,145],[6,146,6,192],[6,195,6,242],[6,243,6,289],[8,3,8,30],[8,100,8,127],[8,197,8,224],[7,1,7,48],[7,49,7,95],[7,98,7,145],[7,146,7,192],[7,195,7,242],[7,243,7,289],[9,28,11,87],[9,100,11,122],[9,125,11,184],[9,197,11,219],[9,222,11,281],[12,3,14,25],[12,28,14,87],[12,100,14,122],[12,125,14,184],[12,197,14,219],[12,222,14,281],[13,89,13,93],[13,186,13,190],[13,283,13,287],[4,25,4,34],[4,98,4,101],[4,102,4,105],[4,106,4,109],[4,110,4,113],[4,114,4,117],[4,1,4,4],[4,5,4,8],[4,9,4,12],[4,13,4,16],[4,17,4,20],[4,21,4,24],[4,211,4,214],[4,215,4,218],[4,219,4,228],[4,118,4,121],[4,122,4,131],[4,195,4,198],[4,199,4,202],[4,203,4,206],[4,207,4,210],[3,229,4,282],[9,3,11,25],[1,204,1,236],[2,1,2,34],[2,35,2,88],[2,98,2,131],[2,132,2,185],[2,195,2,228],[2,229,2,282],[3,1,3,24],[3,25,3,34],[3,35,4,88],[3,98,3,121],[3,122,3,131],[3,132,4,185],[3,195,3,218],[3,219,3,228]]}
["第３号様式"]
[]
[null,"北海道函館市",null,null,null,null,null,null,null,null,null,null,null,null,null,null,null,null,null,null,null,null,null,null,null,null,null,null,null,null,null,null,null,null,null,"入湯税",null,null,null,null,null,null,null,null,null,null,null,null,null,null,null,null,null,null,null,null,null,null,null,null,null,null,null,null,null,null,null,null,null,null,null,null,null,null,null,null,null,null,null,null,null,null,null,null,null,null,null,null,null,null,null,null,null,null,null,null,null,null,"北海道函館市",null,null,null,null,null,null,null,null,null,null,null,null,null,null,null,null,null,null,null,null,null,null,null,null,null,null,null,null,null,null,null,null,null,"入湯税",null,null,null,null,null,null,null,null,null,null,null,null,null,null,null,null,null,null,null,null,null,null,null,null,null,null,null,null,null,null,null,null,null,null,null,null,null,null,null,null,null,null,null,null,null,null,null,null,null,null,null,null,null,null,null,null,null,null,null,null,null,null,"北海道函館市",null,null,null,null,null,null,null,null,null,null,null,null,null,null,null,null,null,null,null,null,null,null,null,null,null,null,null,null,null,null,null,null,null,"入湯税"]
[null,"市区町村コード",null,null,null,null,null,null,null,null,null,null,null,null,null,null,null,null,null,null,null,null,null,null,null,"科目\nコード",null,null,null,null,null,null,null,null,null,"納入済通知書",null,null,null,null,null,null,null,null,null,null,null,null,null,null,null,null,null,null,null,null,null,null,null,null,null,null,null,null,null,null,null,null,null,null,null,null,null,null,null,null,null,null,null,null,null,null,null,null,null,null,null,null,null,null,null,null,null,null,null,null,null,null,"市区町村コード",null,null,null,null,null,null,null,null,null,null,null,null,null,null,null,null,null,null,null,null,null,null,null,"科目\nコード",null,null,null,null,null,null,null,null,null,"納入書",null,null,null,null,null,null,null,null,null,null,null,null,null,null,null,null,null,null,null,null,null,null,null,null,null,null,null,null,null,null,null,null,null,null,null,null,null,null,null,null,null,null,null,null,null,null,null,null,null,null,null,null,null,null,null,null,null,null,null,null,null,null,"市区町村コード",null,null,null,null,null,null,null,null,null,null,null,null,null,null,null,null,null,null,null,null,null,null,null,"科目\nコード",null,null,null,null,null,null,null,null,null,"領収証書"]
[null,0,null,null,null,1,null,null,null,2,null,null,null,0,null,null,null,2,null,null,null,5,null,null,null,17,null,null,null,null,null,null,null,null,null,null,null,null,null,null,null,null,null,null,null,null,null,null,null,null,null,null,null,null,null,null,null,null,null,null,null,null,null,null,null,null,null,null,null,null,null,null,null,null,null,null,null,null,null,null,null,null,null,null,null,null,null,null,null,null,null,null,null,null,null,null,null,null,0,null,null,null,1,null,null,null,2,null,null,null,0,null,null,null,2,null,null,null,5,null,null,null,17,null,null,null,null,null,null,null,null,null,null,null,null,null,null,null,null,null,null,null,null,null,null,null,null,null,null,null,null,null,null,null,null,null,null,null,null,null,null,null,null,null,null,null,null,null,null,null,null,null,null,null,null,null,null,null,null,null,null,null,null,null,null,null,null,null,null,null,null,null,null,null,null,0,null,null,null,1,null,null,null,2,null,null,null,0,null,null,null,2,null,null,null,5,null,null,null,17]
[]
[null,"口　座　番　号",null,null,null,null,null,null,null,null,null,null,null,null,null,null,null,null,null,null,null,null,null,null,null,null,null,null,null,null,null,null,null,null,null,null,null,null,null,null,null,null,null,null,null,null,null,null,null,"加　入　者　名",null,null,null,null,null,null,null,null,null,null,null,null,null,null,null,null,null,null,null,null,null,null,null,null,null,null,null,null,null,null,null,null,null,null,null,null,null,null,null,null,null,null,null,null,null,null,null,null,"口　座　番　号",null,null,null,null,null,null,null,null,null,null,null,null,null,null,null,null,null,null,null,null,null,null,null,null,null,null,null,null,null,null,null,null,null,null,null,null,null,null,null,null,null,null,null,null,null,null,null,"加　入　者　名",null,null,null,null,null,null,null,null,null,null,null,null,null,null,null,null,null,null,null,null,null,null,null,null,null,null,null,null,null,null,null,null,null,null,null,null,null,null,null,null,null,null,null,null,null,null,null,null,"口　座　番　号",null,null,null,null,null,null,null,null,null,null,null,null,null,null,null,null,null,null,null,null,null,null,null,null,null,null,null,null,null,null,null,null,null,null,null,null,null,null,null,null,null,null,null,null,null,null,null,"加　入　者　名"]
[null,"02660-8-960015",null,null,null,null,null,null,null,null,null,null,null,null,null,null,null,null,null,null,null,null,null,null,null,null,null,null,null,null,null,null,null,null,null,null,null,null,null,null,null,null,null,null,null,null,null,null,null,"函館市会計管理者",null,null,null,null,null,null,null,null,null,null,null,null,null,null,null,null,null,null,null,null,null,null,null,null,null,null,null,null,null,null,null,null,null,null,null,null,null,null,null,null,null,null,null,null,null,null,null,null,{"$f":"B8","v":"02660-8-960015"},null,null,null,null,null,null,null,null,null,null,null,null,null,null,null,null,null,null,null,null,null,null,null,null,null,null,null,null,null,null,null,null,null,null,null,null,null,null,null,null,null,null,null,null,null,null,null,{"$f":"AX8","v":"函館市会計管理者"},null,null,null,null,null,null,null,null,null,null,null,null,null,null,null,null,null,null,null,null,null,null,null,null,null,null,null,null,null,null,null,null,null,null,null,null,null,null,null,null,null,null,null,null,null,null,null,null,{"$f":"B8","v":"02660-8-960015"},null,null,null,null,null,null,null,null,null,null,null,null,null,null,null,null,null,null,null,null,null,null,null,null,null,null,null,null,null,null,null,null,null,null,null,null,null,null,null,null,null,null,null,null,null,null,null,{"$f":"AX8","v":"函館市会計管理者"}]
[null,null,null,"特別徴収義務者",null,null,null,null,null,null,null,null,null,null,null,null,null,null,null,null,null,null,null,null,null,null,null,null,null,null,null,null,null,null,null,null,null,null,null,null,null,null,null,null,null,null,null,null,null,null,null,null,null,null,null,null,null,null,null,null,null,null,null,null,null,null,null,null,null,null,null,null,null,null,null,null,null,null,null,null,null,null,null,null,null,null,null,null,null,null,null,null,null,null,null,null,null,null,null,null,"特別徴収義務者",null,null,null,null,null,null,null,null,null,null,null,null,null,null,null,null,null,null,null,null,null,null,null,null,null,null,null,null,null,null,null,null,null,null,null,null,null,null,null,null,null,null,null,null,null,null,null,null,null,null,null,null,null,null,null,null,null,null,null,null,null,null,null,null,null,null,null,null,null,null,null,null,null,null,null,null,null,null,null,null,null,null,null,null,null,null,null,null,null,null,null,null,null,null,null,null,"特別徴収義務者"]
[null,null,null,"住　　所\n(所 在 地)",null,null,null,null,null,null,null,null,null,null,null,null,null,null,null,null,null,null,null,null,null,null,null,null,{"$f":"+IF(入湯税・宿泊税月計表!$S$2=0,\"\",入湯税・宿泊税月計表!$S$2)","v":""},null,null,null,null,null,null,null,null,null,null,null,null,null,null,null,null,null,null,null,null,null,null,null,null,null,null,null,null,null,null,null,null,null,null,null,null,null,null,null,null,null,null,null,null,null,null,null,null,null,null,null,null,null,null,null,null,null,null,null,null,null,null,null,null,null,null,null,null,null,null,null,"住　　所\n(所 在 地)",null,null,null,null,null,null,null,null,null,null,null,null,null,null,null,null,null,null,null,null,null,null,null,null,{"$f":"+IF(入湯税・宿泊税月計表!$S$2=0,\"\",入湯税・宿泊税月計表!$S$2)","v":""},null,null,null,null,null,null,null,null,null,null,null,null,null,null,null,null,null,null,null,null,null,null,null,null,null,null,null,null,null,null,null,null,null,null,null,null,null,null,null,null,null,null,null,null,null,null,null,null,null,null,null,null,null,null,null,null,null,null,null,null,null,null,null,null,null,null,null,null,null,null,null,"住　　所\n(所 在 地)",null,null,null,null,null,null,null,null,null,null,null,null,null,null,null,null,null,null,null,null,null,null,null,null,{"$f":"+IF(入湯税・宿泊税月計表!$S$2=0,\"\",入湯税・宿泊税月計表!$S$2)","v":""}]
[]
[]
[null,null,null,"氏　　名\n(名　　称)",null,null,null,null,null,null,null,null,null,null,null,null,null,null,null,null,null,null,null,null,null,null,null,null,{"$f":"+IF(入湯税・宿泊税月計表!$S$3=0,\"\",入湯税・宿泊税月計表!$S$3)","v":""},null,null,null,null,null,null,null,null,null,null,null,null,null,null,null,null,null,null,null,null,null,null,null,null,null,null,null,null,null,null,null,null,null,null,null,null,null,null,null,null,null,null,null,null,null,null,null,null,null,null,null,null,null,null,null,null,null,null,null,null,null,null,null,null,null,null,null,null,null,null,null,"氏　　名\n(名　　称)",null,null,null,null,null,null,null,null,null,null,null,null,null,null,null,null,null,null,null,null,null,null,null,null,{"$f":"+IF(入湯税・宿泊税月計表!$S$3=0,\"\",入湯税・宿泊税月計表!$S$3)","v":""},null,null,null,null,null,null,null,null,null,null,null,null,null,null,null,null,null,null,null,null,null,null,null,null,null,null,null,null,null,null,null,null,null,null,null,null,null,null,null,null,null,null,null,null,null,null,null,null,null,null,null,null,null,null,null,null,null,null,null,null,null,null,null,null,null,null,null,null,null,null,null,"氏　　名\n(名　　称)",null,null,null,null,null,null,null,null,null,null,null,null,null,null,null,null,null,null,null,null,null,null,null,null,{"$f":"+IF(入湯税・宿泊税月計表!$S$3=0,\"\",入湯税・宿泊税月計表!$S$3)","v":""}]
[null,null,null,null,null,null,null,null,null,null,null,null,null,null,null,null,null,null,null,null,null,null,null,null,null,null,null,null,null,null,null,null,null,null,null,null,null,null,null,null,null,null,null,null,null,null,null,null,null,null,null,null,null,null,null,null,null,null,null,null,null,null,null,null,null,null,null,null,null,null,null,null,null,null,null,null,null,null,null,null,null,null,null,null,null,null,null,null,null,"様",null,null,null,null,null,null,null,null,null,null,null,null,null,null,null,null,null,null,null,null,null,null,null,null,null,null,null,null,null,null,null,null,null,null,null,null,null,null,null,null,null,null,null,null,null,null,null,null,null,null,null,null,null,null,null,null,null,null,null,null,null,null,null,null,null,null,null,null,null,null,null,null,null,null,null,null,null,null,null,null,null,null,null,null,null,null,null,null,null,null,null,null,null,null,null,null,"様",null,null,null,null,null,null,null,null,null,null,null,null,null,null,null,null,null,null,null,null,null,null,null,null,null,null,null,null,null,null,null,null,null,null,null,null,null,null,null,null,null,null,null,null,null,null,null,null,null,null,null,null,null,null,null,null,null,null,null,null,null,null,null,null,null,null,null,null,null,null,null,null,null,null,null,null,null,null,null,null,null,null,null,null,null,null,null,null,null,null,null,null,null,null,null,null,"様"]
[]
[null,null,null,"宿泊施設名",null,null,null,null,null,null,null,null,null,null,null,null,null,null,null,null,null,null,null,null,null,null,null,null,{"$f":"+IF(入湯税・宿泊税月計表!$S$6=0,\"\",入湯税・宿泊税月計表!$S$6)","v":""},null,null,null,null,null,null,null,null,null,null,null,null,null,null,null,null,null,null,null,null,null,null,null,null,null,null,null,null,null,null,null,null,null,null,null,null,null,null,null,null,null,null,null,null,null,null,null,null,null,null,null,null,null,null,null,null,null,null,null,null,null,null,null,null,null,null,null,null,null,null,null,"宿泊施設名",null,null,null,null,null,null,null,null,null,null,null,null,null,null,null,null,null,null,null,null,null,null,null,null,{"$f":"+IF(入湯税・宿泊税月計表!$S$6=0,\"\",入湯税・宿泊税月計表!$S$6)","v":""},null,null,null,null,null,null,null,null,null,null,null,null,null,null,null,null,null,null,null,null,null,null,null,null,null,null,null,null,null,null,null,null,null,null,null,null,null,null,null,null,null,null,null,null,null,null,null,null,null,null,null,null,null,null,null,null,null,null,null,null,null,null,null,null,null,null,null,null,null,null,null,"宿泊施設名",null,null,null,null,null,null,null,null,null,null,null,null,null,null,null,null,null,null,null,null,null,null,null,null,{"$f":"+IF(入湯税・宿泊税月計表!$S$6=0,\"\",入湯税・宿泊税月計表!$S$6)","v":""}]
[]
[null,null,null,"指定番号 ",null,null,null,null,null,null,null,null,null,null,null,null,null,null,null,null,null,null,null,null,null,null,null,null,null,{"$f":"+IF(入湯税・宿泊税月計表!$S$7=0,\"\",入湯税・宿泊税月計表!$S$7)","v":""},null,null,null,null,null,{"$f":"+IF(入湯税・宿泊税月計表!$V$7=0,\"\",入湯税・宿泊税月計表!$V$7)","v":""},null,null,null,null,null,{"$f":"+IF(入湯税・宿泊税月計表!$Y$7=0,\"\",入湯税・宿泊税月計表!$Y$7)","v":""},null,null,null,null,null,null,null,null,null,null,null,null,null,null,null,null,null,null,null,null,null,null,null,null,null,null,null,null,null,null,null,null,null,null,null,null,null,null,null,null,null,null,null,null,null,null,null,null,null,null,null,null,null,null,null,null,null,null,"指定番号 ",null,null,null,null,null,null,null,null,null,null,null,null,null,null,null,null,null,null,null,null,null,null,null,null,null,{"$f":"+IF(入湯税・宿泊税月計表!$S$7=0,\"\",入湯税・宿泊税月計表!$S$7)","v":""},null,null,null,null,null,{"$f":"+IF(入湯税・宿泊税月計表!$V$7=0,\"\",入湯税・宿泊税月計表!$V$7)","v":""},null,null,null,null,null,{"$f":"+IF(入湯税・宿泊税月計表!$Y$7=0,\"\",入湯税・宿泊税月計表!$Y$7)","v":""},null,null,null,null,null,null,null,null,null,null,null,null,null,null,null,null,null,null,null,null,null,null,null,null,null,null,null,null,null,null,null,null,null,null,null,null,null,null,null,null,null,null,null,null,null,null,null,null,null,null,null,null,null,null,null,null,null,null,"指定番号 ",null,null,null,null,null,null,null,null,null,null,null,null,null,null,null,null,null,null,null,null,null,null,null,null,null,{"$f":"+IF(入湯税・宿泊税月計表!$S$7=0,\"\",入湯税・宿泊税月計表!$S$7)","v":""},null,null,null,null,null,{"$f":"+IF(入湯税・宿泊税月計表!$V$7=0,\"\",入湯税・宿泊税月計表!$V$7)","v":""},null,null,null,null,null,{"$f":"+IF(入湯税・宿泊税月計表!$Y$7=0,\"\",入湯税・宿泊税月計表!$Y$7)","v":""}]
[]
[null,"徴　収　期　間",null,null,null,null,null,null,null,null,null,null,null,null,null,null,null,null,null,null,null,null,null,null,null,null,null,null,null,null,null,null,null,null,null,null,null,null,null,null,null,null,null,null,null,null,null,null,null,null,null,null,null,null,null,null,null,null,null,null,null,null,null,null,null,null,null,null,null,null,null,"区　分",null,null,null,null,null,null,null,null,null,null,null,null,null,null,null,null,null,null,null,null,null,null,null,null,null,null,"徴　収　期　間",null,null,null,null,null,null,null,null,null,null,null,null,null,null,null,null,null,null,null,null,null,null,null,null,null,null,null,null,null,null,null,null,null,null,null,null,null,null,null,null,null,null,null,null,null,null,null,null,null,null,null,null,null,null,null,null,null,null,null,null,null,null,null,null,null,null,null,null,null,"区　分",null,null,null,null,null,null,null,null,null,null,null,null,null,null,null,null,null,null,null,null,null,null,null,null,null,null,"徴　収　期　間",null,null,null,null,null,null,null,null,null,null,null,null,null,null,null,null,null,null,null,null,null,null,null,null,null,null,null,null,null,null,null,null,null,null,null,null,null,null,null,null,null,null,null,null,null,null,null,null,null,null,null,null,null,null,null,null,null,null,null,null,null,null,null,null,null,null,null,null,null,"区　分"]
[null,"　　　　年　　月分\nから　　　　年　　月分まで",null,null,null,null,null,null,null,null,null,null,null,null,null,null,null,null,null,null,null,null,null,null,null,null,null,null,null,null,null,null,null,null,null,null,null,null,null,null,null,null,null,null,null,null,null,null,null,null,null,null,null,null,null,null,null,null,null,null,null,null,null,null,null,null,null,null,null,null,null,{"$f":"IF(入湯税・宿泊税月計表!$BW$4=\"01 申告\",\"〇\",\"\")","v":"〇"},null,null,null,null,null,"01 申告",null,null,null,null,null,null,null,null,null,null,null,null,null,null,null,null,null,null,null,null,"　　　　年　　月分\nから　　　　年　　月分まで",null,null,null,null,null,null,null,null,null,null,null,null,null,null,null,null,null,null,null,null,null,null,null,null,null,null,null,null,null,null,null,null,null,null,null,null,null,null,null,null,null,null,null,null,null,null,null,null,null,null,null,null,null,null,null,null,null,null,null,null,null,null,null,null,null,null,null,null,null,{"$f":"IF(入湯税・宿泊税月計表!$BW$4=\"01 申告\",\"〇\",\"\")","v":"〇"},null,null,null,null,null,"01 申告",null,null,null,null,null,null,null,null,null,null,null,null,null,null,null,null,null,null,null,null,"　　　　年　　月分\nから　　　　年　　月分まで",null,null,null,null,null,null,null,null,null,null,null,null,null,null,null,null,null,null,null,null,null,null,null,null,null,null,null,null,null,null,null,null,null,null,null,null,null,null,null,null,null,null,null,null,null,null,null,null,null,null,null,null,null,null,null,null,null,null,null,null,null,null,null,null,null,null,null,null,null,{"$f":"IF(入湯税・宿泊税月計表!$BW$4=\"01 申告\",\"〇\",\"\")","v":"〇"},null,null,null,null,null,"01 申告"]
[null,null,null,null,null,null,null,{"$f":"+入湯税・宿泊税月計表!CC3","v":"令和"},null,null,null,null,null,null,null,null,null,null,null,null,{"$f":"+IF(入湯税・宿泊税月計表!CF3=0,\"\",入湯税・宿泊税月計表!CF3)","v":""},null,null,null,null,null,null,null,null,null,"年",null,null,null,null,null,{"$f":"+IF(入湯税・宿泊税月計表!CL3=0,\"\",入湯税・宿泊税月計表!CL3)","v":""},null,null,null,null,null,null,null,null,null,{"$f":"+IF(OR(入湯税・宿泊税月計表!BW3=\"\",入湯税・宿泊税月計表!BW3=\"一か月分\"),\"月分\",\"月分から\")","v":"月分から"},null,null,null,null,null,null,null,null,null,null,null,null,null,null,null,null,null,null,null,null,null,null,null,null,null,null,null,null,null,null,null,null,null,null,null,null,null,null,null,null,null,null,null,null,null,null,null,null,null,null,null,null,null,null,null,null,null,{"$f":"+H22","v":"令和"},null,null,null,null,null,null,null,null,null,null,null,null,{"$f":"IF(U22=\"\",\"\",U22)","v":""},null,null,null,null,null,null,null,null,null,"年",null,null,null,null,null,{"$f":"IF(AK22=\"\",\"\",AK22)","v":""},null,null,null,null,null,null,null,null,null,{"$f":"+AU22","v":"月分から"},null,null,null,null,null,null,null,null,null,null,null,null,null,null,null,null,null,null,null,null,null,null,null,null,null,null,null,null,null,null,null,null,null,null,null,null,null,null,null,null,null,null,null,null,null,null,null,null,null,null,null,null,null,null,null,null,null,{"$f":"+H22","v":"令和"},null,null,null,null,null,null,null,null,null,null,null,null,{"$f":"IF(U22=\"\",\"\",U22)","v":""},null,null,null,null,null,null,null,null,null,"年",null,null,null,null,null,{"$f":"IF(AK22=\"\",\"\",AK22)","v":""},null,null,null,null,null,null,null,null,null,{"$f":"+EN22","v":"月分から"}]
[null,null,null,null,null,null,null,null,null,null,null,null,null,null,null,null,null,null,null,null,null,null,null,null,null,null,null,null,null,null,null,null,null,null,null,null,null,null,null,null,null,null,null,null,null,null,null,null,null,null,null,null,null,null,null,null,null,null,null,null,null,null,null,null,null,null,null,null,null,null,null,{"$f":"IF(入湯税・宿泊税月計表!$BW$4=\"02 更正\",\"〇\",\"\")","v":""},null,null,null,null,null,"02 更正",null,null,null,null,null,null,null,null,null,null,null,null,null,null,null,null,null,null,null,null,null,null,null,null,null,null,null,null,null,null,null,null,null,null,null,null,null,null,null,null,null,null,null,null,null,null,null,null,null,null,null,null,null,null,null,null,null,null,null,null,null,null,null,null,null,null,null,null,null,null,null,null,null,null,null,null,null,null,null,null,null,null,null,null,null,null,null,null,null,null,{"$f":"IF(入湯税・宿泊税月計表!$BW$4=\"02 更正\",\"〇\",\"\")","v":""},null,null,null,null,null,"02 更正",null,null,null,null,null,null,null,null,null,null,null,null,null,null,null,null,null,null,null,null,null,null,null,null,null,null,null,null,null,null,null,null,null,null,null,null,null,null,null,null,null,null,null,null,null,null,null,null,null,null,null,null,null,null,null,null,null,null,null,null,null,null,null,null,null,null,null,null,null,null,null,null,null,null,null,null,null,null,null,null,null,null,null,null,null,null,null,null,null,null,{"$f":"IF(入湯税・宿泊税月計表!$BW$4=\"02 更正\",\"〇\",\"\")","v":""},null,null,null,null,null,"02 更正"]
[null,null,null,null,"から",null,null,{"$f":"+IF(OR(入湯税・宿泊税月計表!$BW$3=\"二か月分\",入湯税・宿泊税月計表!$BW$3=\"三か月分\"),\"令和\",\"\")","v":"令和"},null,null,null,null,null,null,null,null,null,null,null,null,{"$f":"+IF(OR(入湯税・宿泊税月計表!$BW$3=\"二か月分\",入湯税・宿泊税月計表!$BW$3=\"三か月分\"),入湯税・宿泊税月計表!$CX3,\"\")","v":""},null,null,null,null,null,null,null,null,null,{"$f":"+IF(OR(入湯税・宿泊税月計表!$BW$3=\"二か月分\",入湯税・宿泊税月計表!$BW$3=\"三か月分\"),\"年\",\"\")","v":"年"},null,null,null,null,null,{"$f":"+IF(OR(入湯税・宿泊税月計表!$BW$3=\"二か月分\",入湯税・宿泊税月計表!$BW$3=\"三か月分\"),入湯税・宿泊税月計表!$DD3,\"\")","v":""},null,null,null,null,null,null,null,null,null,{"$f":"+IF(OR(入湯税・宿泊税月計表!$BW$3=\"二か月分\",入湯税・宿泊税月計表!$BW$3=\"三か月分\"),\"月分まで\",\"\")","v":"月分まで"},null,null,null,null,null,null,null,null,null,null,null,null,null,null,null,null,null,null,null,null,null,null,null,null,null,null,null,null,null,null,null,null,null,null,null,null,null,null,null,null,null,null,null,null,null,null,null,null,null,null,null,null,null,null,"から",null,null,{"$f":"+IF(OR(入湯税・宿泊税月計表!$BW$3=\"二か月分\",入湯税・宿泊税月計表!$BW$3=\"三か月分\"),\"令和\",\"\")","v":"令和"},null,null,null,null,null,null,null,null,null,null,null,null,{"$f":"+IF(OR(入湯税・宿泊税月計表!$BW$3=\"二か月分\",入湯税・宿泊税月計表!$BW$3=\"三か月分\"),入湯税・宿泊税月計表!$CX3,\"\")","v":""},null,null,null,null,null,null,null,null,null,{"$f":"+IF(OR(入湯税・宿泊税月計表!$BW$3=\"二か月分\",入湯税・宿泊税月計表!$BW$3=\"三か月分\"),\"年\",\"\")","v":"年"},null,null,null,null,null,{"$f":"+IF(OR(入湯税・宿泊税月計表!$BW$3=\"二か月分\",入湯税・宿泊税月計表!$BW$3=\"三か月分\"),入湯税・宿泊税月計表!$DD3,\"\")","v":""},null,null,null,null,null,null,null,null,null,{"$f":"+IF(OR(入湯税・宿泊税月計表!$BW$3=\"二か月分\",入湯税・宿泊税月計表!$BW$3=\"三か月分\"),\"月分まで\",\"\")","v":"月分まで"},null,null,null,null,null,null,null,null,null,null,null,null,null,null,null,null,null,null,null,null,null,null,null,null,null,null,null,null,null,null,null,null,null,null,null,null,null,null,null,null,null,null,null,null,null,null,null,null,null,null,null,null,null,null,"から",null,null,{"$f":"+IF(OR(入湯税・宿泊税月計表!$BW$3=\"二か月分\",入湯税・宿泊税月計表!$BW$3=\"三か月分\"),\"令和\",\"\")","v":"令和"},null,null,null,null,null,null,null,null,null,null,null,null,{"$f":"+IF(OR(入湯税・宿泊税月計表!$BW$3=\"二か月分\",入湯税・宿泊税月計表!$BW$3=\"三か月分\"),入湯税・宿泊税月計表!$CX3,\"\")","v":""},null,null,null,null,null,null,null,null,null,{"$f":"+IF(OR(入湯税・宿泊税月計表!$BW$3=\"二か月分\",入湯税・宿泊税月計表!$BW$3=\"三か月分\"),\"年\",\"\")","v":"年"},null,null,null,null,null,{"$f":"+IF(OR(入湯税・宿泊税月計表!$BW$3=\"二か月分\",入湯税・宿泊税月計表!$BW$3=\"三か月分\"),入湯税・宿泊税月計表!$DD3,\"\")","v":""},null,null,null,null,null,null,null,null,null,{"$f":"+IF(OR(入湯税・宿泊税月計表!$BW$3=\"二か月分\",入湯税・宿泊税月計表!$BW$3=\"三か月分\"),\"月分まで\",\"\")","v":"月分まで"}]
[null,null,null,null,null,null,null,null,null,null,null,null,null,null,null,null,null,null,null,null,null,null,null,null,null,null,null,null,null,null,null,null,null,null,null,null,null,null,null,null,null,null,null,null,null,null,null,null,null,null,null,null,null,null,null,null,null,null,null,null,null,null,null,null,null,null,null,null,null,null,null,{"$f":"IF(入湯税・宿泊税月計表!$BW$4=\"03 決定\",\"〇\",\"\")","v":""},null,null,null,null,null,"03 決定",null,null,null,null,null,null,null,null,null,null,null,null,null,null,null,null,null,null,null,null,null,null,null,null,null,null,null,null,null,null,null,null,null,null,null,null,null,null,null,null,null,null,null,null,null,null,null,null,null,null,null,null,null,null,null,null,null,null,null,null,null,null,null,null,null,null,null,null,null,null,null,null,null,null,null,null,null,null,null,null,null,null,null,null,null,null,null,null,null,null,{"$f":"IF(入湯税・宿泊税月計表!$BW$4=\"03 決定\",\"〇\",\"\")","v":""},null,null,null,null,null,"03 決定",null,null,null,null,null,null,null,null,null,null,null,null,null,null,null,null,null,null,null,null,null,null,null,null,null,null,null,null,null,null,null,null,null,null,null,null,null,null,null,null,null,null,null,null,null,null,null,null,null,null,null,null,null,null,null,null,null,null,null,null,null,null,null,null,null,null,null,null,null,null,null,null,null,null,null,null,null,null,null,null,null,null,null,null,null,null,null,null,null,null,{"$f":"IF(入湯税・宿泊税月計表!$BW$4=\"03 決定\",\"〇\",\"\")","v":""},null,null,null,null,null,"03 決定"]
[]
[null,null,null,null,null,null,null,null,null,null,null,null,null,null,null,null,null,null,null,null,null,null,null,null,null,null,null,null,null,null,"百",null,null,null,null,null,"十",null,null,null,null,null,"億",null,null,null,null,null,"千",null,null,null,null,null,"百",null,null,null,null,null,"十",null,null,null,null,null,"万",null,null,null,null,null,"千",null,null,null,null,null,"百",null,null,null,null,null,"十",null,null,null,null,null,"円",null,null,null,null,null,null,null,null,null,null,null,null,null,null,null,null,null,null,null,null,null,null,null,null,null,null,null,null,null,null,null,null,null,null,null,null,"百",null,null,null,null,null,"十",null,null,null,null,null,"億",null,null,null,null,null,"千",null,null,null,null,null,"百",null,null,null,null,null,"十",null,null,null,null,null,"万",null,null,null,null,null,"千",null,null,null,null,null,"百",null,null,null,null,null,"十",null,null,null,null,null,"円",null,null,null,null,null,null,null,null,null,null,null,null,null,null,null,null,null,null,null,null,null,null,null,null,null,null,null,null,null,null,null,null,null,null,null,null,"百",null,null,null,null,null,"十",null,null,null,null,null,"億",null,null,null,null,null,"千",null,null,null,null,null,"百",null,null,null,null,null,"十",null,null,null,null,null,"万",null,null,null,null,null,"千",null,null,null,null,null,"百",null,null,null,null,null,"十",null,null,null,null,null,"円"]
[null,"入湯税",null,null,null,null,null,null,"税額",null,null,null,null,null,null,null,null,null,null,null,null,null,null,null,null,null,null,null,null,null,{"$f":"+IF(入湯税・宿泊税納入申告書!$CE$31=\"￥\",\"\",入湯税・宿泊税納入申告書!$CE$31)","v":""},null,null,null,null,null,{"$f":"+IF(入湯税・宿泊税納入申告書!$CF$31=\"￥\",\"\",入湯税・宿泊税納入申告書!$CF$31)","v":""},null,null,null,null,null,{"$f":"+IF(入湯税・宿泊税納入申告書!$CG$31=\"￥\",\"\",入湯税・宿泊税納入申告書!$CG$31)","v":""},null,null,null,null,null,{"$f":"+IF(入湯税・宿泊税納入申告書!$CH$31=\"￥\",\"\",入湯税・宿泊税納入申告書!$CH$31)","v":""},null,null,null,null,null,{"$f":"+IF(入湯税・宿泊税納入申告書!$CI$31=\"￥\",\"\",入湯税・宿泊税納入申告書!$CI$31)","v":""},null,null,null,null,null,{"$f":"+IF(入湯税・宿泊税納入申告書!$CJ$31=\"￥\",\"\",入湯税・宿泊税納入申告書!$CJ$31)","v":""},null,null,null,null,null,{"$f":"+IF(入湯税・宿泊税納入申告書!$CK$31=\"￥\",\"\",入湯税・宿泊税納入申告書!$CK$31)","v":""},null,null,null,null,null,{"$f":"+IF(入湯税・宿泊税納入申告書!$CL$31=\"￥\",\"\",入湯税・宿泊税納入申告書!$CL$31)","v":""},null,null,null,null,null,{"$f":"+IF(入湯税・宿泊税納入申告書!$CM$31=\"￥\",\"\",入湯税・宿泊税納入申告書!$CM$31)","v":""},null,null,null,null,null,{"$f":"+IF(入湯税・宿泊税納入申告書!$CN$31=\"￥\",\"\",入湯税・宿泊税納入申告書!$CN$31)","v":""},null,null,null,null,null,{"$f":"+IF(入湯税・宿泊税納入申告書!$CO$31=\"￥\",\"\",入湯税・宿泊税納入申告書!$CO$31)","v":""},null,null,null,null,null,null,null,"入湯税",null,null,null,null,null,null,"税額",null,null,null,null,null,null,null,null,null,null,null,null,null,null,null,null,null,null,null,null,null,{"$f":"+IF(入湯税・宿泊税納入申告書!$CE$31=\"￥\",\"\",入湯税・宿泊税納入申告書!$CE$31)","v":""},null,null,null,null,null,{"$f":"+IF(入湯税・宿泊税納入申告書!$CF$31=\"￥\",\"\",入湯税・宿泊税納入申告書!$CF$31)","v":""},null,null,null,null,null,{"$f":"+IF(入湯税・宿泊税納入申告書!$CG$31=\"￥\",\"\",入湯税・宿泊税納入申告書!$CG$31)","v":""},null,null,null,null,null,{"$f":"+IF(入湯税・宿泊税納入申告書!$CH$31=\"￥\",\"\",入湯税・宿泊税納入申告書!$CH$31)","v":""},null,null,null,null,null,{"$f":"+IF(入湯税・宿泊税納入申告書!$CI$31=\"￥\",\"\",入湯税・宿泊税納入申告書!$CI$31)","v":""},null,null,null,null,null,{"$f":"+IF(入湯税・宿泊税納入申告書!$CJ$31=\"￥\",\"\",入湯税・宿泊税納入申告書!$CJ$31)","v":""},null,null,null,null,null,{"$f":"+IF(入湯税・宿泊税納入申告書!$CK$31=\"￥\",\"\",入湯税・宿泊税納入申告書!$CK$31)","v":""},null,null,null,null,null,{"$f":"+IF(入湯税・宿泊税納入申告書!$CL$31=\"￥\",\"\",入湯税・宿泊税納入申告書!$CL$31)","v":""},null,null,null,null,null,{"$f":"+IF(入湯税・宿泊税納入申告書!$CM$31=\"￥\",\"\",入湯税・宿泊税納入申告書!$CM$31)","v":""},null,null,null,null,null,{"$f":"+IF(入湯税・宿泊税納入申告書!$CN$31=\"￥\",\"\",入湯税・宿泊税納入申告書!$CN$31)","v":""},null,null,null,null,null,{"$f":"+IF(入湯税・宿泊税納入申告書!$CO$31=\"￥\",\"\",入湯税・宿泊税納入申告書!$CO$31)","v":""},null,null,null,null,null,null,null,"入湯税",null,null,null,null,null,null,"税額",null,null,null,null,null,null,null,null,null,null,null,null,null,null,null,null,null,null,null,null,null,{"$f":"+IF(入湯税・宿泊税納入申告書!$CE$31=\"￥\",\"\",入湯税・宿泊税納入申告書!$CE$31)","v":""},null,null,null,null,null,{"$f":"+IF(入湯税・宿泊税納入申告書!$CF$31=\"￥\",\"\",入湯税・宿泊税納入申告書!$CF$31)","v":""},null,null,null,null,null,{"$f":"+IF(入湯税・宿泊税納入申告書!$CG$31=\"￥\",\"\",入湯税・宿泊税納入申告書!$CG$31)","v":""},null,null,null,null,null,{"$f":"+IF(入湯税・宿泊税納入申告書!$CH$31=\"￥\",\"\",入湯税・宿泊税納入申告書!$CH$31)","v":""},null,null,null,null,null,{"$f":"+IF(入湯税・宿泊税納入申告書!$CI$31=\"￥\",\"\",入湯税・宿泊税納入申告書!$CI$31)","v":""},null,null,null,null,null,{"$f":"+IF(入湯税・宿泊税納入申告書!$CJ$31=\"￥\",\"\",入湯税・宿泊税納入申告書!$CJ$31)","v":""},null,null,null,null,null,{"$f":"+IF(入湯税・宿泊税納入申告書!$CK$31=\"￥\",\"\",入湯税・宿泊税納入申告書!$CK$31)","v":""},null,null,null,null,null,{"$f":"+IF(入湯税・宿泊税納入申告書!$CL$31=\"￥\",\"\",入湯税・宿泊税納入申告書!$CL$31)","v":""},null,null,null,null,null,{"$f":"+IF(入湯税・宿泊税納入申告書!$CM$31=\"￥\",\"\",入湯税・宿泊税納入申告書!$CM$31)","v":""},null,null,null,null,null,{"$f":"+IF(入湯税・宿泊税納入申告書!$CN$31=\"￥\",\"\",入湯税・宿泊税納入申告書!$CN$31)","v":""},null,null,null,null,null,{"$f":"+IF(入湯税・宿泊税納入申告書!$CO$31=\"￥\",\"\",入湯税・宿泊税納入申告書!$CO$31)","v":""}]
[null,null,null,null,null,null,null,null,"延滞金",null,null,null,null,null,null,null,null,null,null,null,null,null,null,null,null,null,null,null,null,null,null,null,null,null,null,null,null,null,null,null,null,null,null,null,null,null,null,null,null,null,null,null,null,null,null,null,null,null,null,null,null,null,null,null,null,null,null,null,null,null,null,null,null,null,null,null,null,null,null,null,null,null,null,null,null,null,null,null,null,null,null,null,null,null,null,null,null,null,null,null,null,null,null,null,null,"延滞金",null,null,null,null,null,null,null,null,null,null,null,null,null,null,null,null,null,null,null,null,null,{"$f":"IF(AE29=\"\",\"\",AE29)","v":""},null,null,null,null,null,{"$f":"IF(AK29=\"\",\"\",AK29)","v":""},null,null,null,null,null,{"$f":"IF(AQ29=\"\",\"\",AQ29)","v":""},null,null,null,null,null,{"$f":"IF(AW29=\"\",\"\",AW29)","v":""},null,null,null,null,null,{"$f":"IF(BC29=\"\",\"\",BC29)","v":""},null,null,null,null,null,{"$f":"IF(BI29=\"\",\"\",BI29)","v":""},null,null,null,null,null,{"$f":"IF(BO29=\"\",\"\",BO29)","v":""},null,null,null,null,null,{"$f":"IF(BU29=\"\",\"\",BU29)","v":""},null,null,null,null,null,{"$f":"IF(CA29=\"\",\"\",CA29)","v":""},null,null,null,null,null,{"$f":"IF(CG29=\"\",\"\",CG29)","v":""},null,null,null,null,null,{"$f":"IF(CM29=\"\",\"\",CM29)","v":""},null,null,null,null,null,null,null,null,null,null,null,null,null,null,"延滞金",null,null,null,null,null,null,null,null,null,null,null,null,null,null,null,null,null,null,null,null,null,{"$f":"IF(AE29=\"\",\"\",AE29)","v":""},null,null,null,null,null,{"$f":"IF(AK29=\"\",\"\",AK29)","v":""},null,null,null,null,null,{"$f":"IF(AQ29=\"\",\"\",AQ29)","v":""},null,null,null,null,null,{"$f":"IF(AW29=\"\",\"\",AW29)","v":""},null,null,null,null,null,{"$f":"IF(BC29=\"\",\"\",BC29)","v":""},null,null,null,null,null,{"$f":"IF(BI29=\"\",\"\",BI29)","v":""},null,null,null,null,null,{"$f":"IF(BO29=\"\",\"\",BO29)","v":""},null,null,null,null,null,{"$f":"IF(BU29=\"\",\"\",BU29)","v":""},null,null,null,null,null,{"$f":"IF(CA29=\"\",\"\",CA29)","v":""},null,null,null,null,null,{"$f":"IF(CG29=\"\",\"\",CG29)","v":""},null,null,null,null,null,{"$f":"IF(CM29=\"\",\"\",CM29)","v":""}]
[null,"合計額",null,null,null,null,null,null,null,null,null,null,null,null,null,null,null,null,null,null,null,null,null,null,null,null,null,null,null,null,{"$f":"+入湯税・宿泊税納入申告書!CE31","v":""},null,null,null,null,null,{"$f":"+入湯税・宿泊税納入申告書!CF31","v":""},null,null,null,null,null,{"$f":"+入湯税・宿泊税納入申告書!CG31","v":""},null,null,null,null,null,{"$f":"+入湯税・宿泊税納入申告書!CH31","v":""},null,null,null,null,null,{"$f":"+入湯税・宿泊税納入申告書!CE31","v":""},null,null,null,null,null,{"$f":"+入湯税・宿泊税納入申告書!CJ31","v":""},null,null,null,null,null,{"$f":"+入湯税・宿泊税納入申告書!CK31","v":""},null,null,null,null,null,{"$f":"+入湯税・宿泊税納入申告書!CL31","v":""},null,null,null,null,null,{"$f":"+入湯税・宿泊税納入申告書!CM31","v":""},null,null,null,null,null,{"$f":"+入湯税・宿泊税納入申告書!CN31","v":""},null,null,null,null,null,{"$f":"+入湯税・宿泊税納入申告書!CO31","v":""},null,null,null,null,null,null,null,"合計額",null,null,null,null,null,null,null,null,null,null,null,null,null,null,null,null,null,null,null,null,null,null,null,null,null,null,null,null,"",null,null,null,null,null,"",null,null,null,null,null,"",null,null,null,null,null,"",null,null,null,null,null,"",null,null,null,null,null,"",null,null,null,null,null,"",null,null,null,null,null,"",null,null,null,null,null,{"$f":"IF(CA30=\"\",\"\",CA30)","v":""},null,null,null,null,null,"",null,null,null,null,null,"",null,null,null,null,null,null,null,"合計額",null,null,null,null,null,null,null,null,null,null,null,null,null,null,null,null,null,null,null,null,null,null,null,null,null,null,null,null,"",null,null,null,null,null,"",null,null,null,null,null,"",null,null,null,null,null,"",null,null,null,null,null,"",null,null,null,null,null,"",null,null,null,null,null,"",null,null,null,null,null,"",null,null,null,null,null,"",null,null,null,null,null,"",null,null,null,null,null,""]
[null,"納期限",null,null,null,null,null,null,null,null,null,null,null,null,null,null,null,null,null,null,null,null,"令和",null,null,null,null,null,null,null,{"$f":"+IF(入湯税・宿泊税月計表!$GT76=0,\"\",入湯税・宿泊税月計表!$GT76)","v":""},null,null,null,null,null,null,"年",null,null,{"$f":"+IF(入湯税・宿泊税月計表!$GV76=0,\"\",入湯税・宿泊税月計表!$GV76)","v":""},null,null,null,null,null,null,"月",null,null,{"$f":"+IF(入湯税・宿泊税月計表!$GX76=0,\"\",入湯税・宿泊税月計表!$GX76)","v":""},null,null,null,null,null,null,"日",null,null,"領収日付印",null,null,null,null,null,null,null,null,null,null,null,null,null,null,null,null,null,null,null,null,null,null,null,null,null,null,null,null,null,null,null,null,null,null,null,null,null,"納期限",null,null,null,null,null,null,null,null,null,null,null,null,null,null,null,null,null,null,null,null,"令和",null,null,null,null,null,null,null,{"$f":"+IF(入湯税・宿泊税月計表!$GT76=0,\"\",入湯税・宿泊税月計表!$GT76)","v":""},null,null,null,null,null,null,"年",null,null,{"$f":"+IF(入湯税・宿泊税月計表!$GV76=0,\"\",入湯税・宿泊税月計表!$GV76)","v":""},null,null,null,null,null,null,"月",null,null,{"$f":"+IF(入湯税・宿泊税月計表!$GX76=0,\"\",入湯税・宿泊税月計表!$GX76)","v":""},null,null,null,null,null,null,"日",null,null,"領収日付印",null,null,null,null,null,null,null,null,null,null,null,null,null,null,null,null,null,null,null,null,null,null,null,null,null,null,null,null,null,null,null,null,null,null,null,null,null,"納期限",null,null,null,null,null,null,null,null,null,null,null,null,null,null,null,null,null,null,null,null,"令和",null,null,null,null,null,null,null,{"$f":"+IF(入湯税・宿泊税月計表!$GT76=0,\"\",入湯税・宿泊税月計表!$GT76)","v":""},null,null,null,null,null,null,"年",null,null,{"$f":"+IF(入湯税・宿泊税月計表!$GV76=0,\"\",入湯税・宿泊税月計表!$GV76)","v":""},null,null,null,null,null,null,"月",null,null,{"$f":"+IF(入湯税・宿泊税月計表!$GX76=0,\"\",入湯税・宿泊税月計表!$GX76)","v":""},null,null,null,null,null,null,"日",null,null,"領収日付印"]
[null,"指定金融機関名",null,null,null,null,null,null,null,null,null,null,null,null,null,null,null,null,null,null,null,null,"株式会社北洋銀行",null,null,null,null,null,null,null,null,null,null,null,null,null,null,null,null,null,null,null,null,null,null,null,null,null,null,null,null,null,null,null,null,null,null,null,null,null,null,null,null,null,null,null,null,null,null,null,null,null,null,null,null,null,null,null,null,null,null,null,null,null,null,null,null,null,null,null,null,null,null,null,null,null,null,null,"上記のとおり納入します。",null,null,null,null,null,null,null,null,null,null,null,null,null,null,null,null,null,null,null,null,null,null,null,null,null,null,null,null,null,null,null,null,null,null,null,null,null,null,null,null,null,null,null,null,null,null,null,null,null,null,null,null,null,null,null,null,null,null,null,null,null,null,null,null,null,null,null,null,null,null,null,null,null,null,null,null,null,null,null,null,null,null,null,null,null,null,null,null,null,null,null,null,null,null,null,null,"上記のとおり領収しました。"]
[null,"(取りまとめ店)",null,null,null,null,null,null,null,null,null,null,null,null,null,null,null,null,null,null,null,null,"（函館中央支店）"]
[null,"取りまとめ局",null,null,null,null,null,null,null,null,null,null,null,null,null,null,null,null,null,null,null,null,"小樽貯金事務センター"]
[null,"上記の金額を収納したので通知します。"]
[null,"\n(受付局→取りまとめ局→函館市)",null,null,null,null,null,null,null,null,null,null,null,null,null,null,null,null,null,null,null,null,null,null,null,null,null,null,null,null,null,null,null,null,null,null,null,null,null,null,null,null,null,null,null,null,null,null,null,null,null,null,null,null,null,null,null,null,null,null,null,null,null,null,null,null,null,null,null,null,null,null,null,null,null,null,null,null,null,null,null,null,null,null,null,null,null,null,null,null,null,null,null,null,null,null,null,null,"\n(金融機関または郵便局保管)",null,null,null,null,null,null,null,null,null,null,null,null,null,null,null,null,null,null,null,null,null,null,null,null,null,null,null,null,null,null,null,null,null,null,null,null,null,null,null,null,null,null,null,null,null,null,null,null,null,null,null,null,null,null,null,null,null,null,null,null,null,null,null,null,null,null,null,null,null,null,null,null,null,null,null,null,null,null,null,null,null,null,null,null,null,null,null,null,null,null,null,null,null,null,null,null,"函館市会計管理者\n（納入者保管）"]

{"sheet":"宿泊税納入書","index":3,"n_rows":36,"n_cols":285,"rows_kept":36,"cut":false,"hidden":false,"merged":[[34,389,34,447],[35,1,35,72],[35,98,35,192],[35,195,35,253],[35,292,35,363],[35,389,35,483],[30,448,34,453],[30,454,34,483],[31,1,31,21],[31,22,31,59],[31,98,32,156],[31,195,34,253],[31,389,32,447],[32,1,32,21],[30,234,30,240],[30,241,30,243],[30,244,30,250],[30,251,30,253],[30,254,34,259],[30,260,34,289],[30,157,34,162],[30,163,34,192],[30,195,30,215],[30,216,30,223],[30,224,30,230],[30,231,30,233],[30,127,30,133],[30,134,30,136],[30,137,30,143],[30,144,30,146],[30,147,30,153],[30,154,30,156],[30,50,30,56],[30,57,30,59],[30,60,34,65],[30,66,34,95],[30,98,30,118],[30,119,30,126],[32,22,32,59],[34,98,34,156],[30,1,30,21],[30,22,30,29],[30,30,30,36],[30,37,30,39],[30,40,30,46],[30,47,30,49],[33,1,33,21],[33,22,33,59],[34,1,34,59],[29,448,29,453],[29,454,29,459],[29,460,29,465],[29,466,29,471],[29,472,29,477],[29,478,29,483],[29,389,29,417],[29,418,29,423],[29,424,29,429],[29,430,29,435],[29,436,29,441],[29,442,29,447],[29,254,29,259],[29,260,29,265],[29,266,29,271],[29,272,29,277],[29,278,29,283],[29,284,29,289],[29,195,29,223],[29,224,29,229],[29,230,29,235],[29,236,29,241],[29,242,29,247],[29,248,29,253],[29,169,29,174],[29,175,29,180],[29,181,29,186],[29,187,29,192],[29,98,29,126],[29,127,29,132],[29,133,29,138],[29,139,29,144],[29,145,29,150],[29,151,29,156],[29,60,29,65],[29,66,29,71],[29,72,29,77],[29,78,29,83],[29,84,29,89],[29,90,29,95],[28,460,28,465],[28,466,28,471],[28,472,28,477],[28,260,28,265],[28,145,28,150],[28,151,28,156],[28,157,28,162],[28,163,28,168],[28,169,28,174],[28,175,28,180],[28,60,28,65],[28,66,28,71],[28,72,28,77],[28,78,28,83],[28,84,28,89],[28,90,28,95],[29,157,29,162],[29,163,29,168],[28,478,28,483],[29,1,29,29],[29,30,29,35],[29,36,29,41],[29,42,29,47],[29,48,29,53],[29,54,29,59],[28,424,28,429],[28,430,28,435],[28,436,28,441],[28,442,28,447],[28,448,28,453],[28,454,28,459],[28,266,28,271],[28,272,28,277],[28,278,28,283],[28,284,28,289],[28,396,28,417],[28,418,28,423],[28,230,28,235],[28,236,28,241],[28,242,28,247],[28,248,28,253],[28,254,28,259],[27,272,27,277],[27,278,27,283],[27,284,27,289],[27,389,28,395],[27,236,27,241],[27,242,27,247],[27,248,27,253],[27,254,27,259],[27,260,27,265],[27,266,27,271],[27,181,27,186],[27,187,27,192],[27,195,28,201],[27,202,27,223],[27,224,27,229],[27,230,27,235],[28,181,28,186],[28,187,28,192],[28,202,28,223],[28,224,28,229],[27,145,27,150],[27,151,27,156],[27,157,27,162],[27,163,27,168],[27,169,27,174],[27,175,27,180],[27,90,27,95],[27,98,28,104],[27,105,27,126],[27,127,27,132],[27,133,27,138],[27,139,27,144],[28,105,28,126],[28,127,28,132],[28,133,28,138],[28,139,28,144],[27,54,27,59],[27,60,27,65],[27,66,27,71],[27,72,27,77],[27,78,27,83],[27,84,27,89],[27,1,28,7],[27,8,27,29],[27,30,27,35],[27,36,27,41],[27,42,27,47],[27,48,27,53],[28,8,28,29],[28,30,28,35],[28,36,28,41],[28,42,28,47],[28,48,28,53],[28,54,28,59],[26,248,26,253],[26,448,26,453],[26,454,26,459],[26,460,26,465],[26,466,26,471],[26,472,26,477],[26,478,26,483],[26,389,26,417],[26,418,26,423],[26,424,26,429],[26,430,26,435],[26,436,26,441],[26,442,26,447],[26,84,26,89],[26,90,26,95],[24,265,25,270],[24,271,25,289],[24,459,25,464],[23,127,24,132],[26,157,26,162],[26,163,26,168],[26,169,26,174],[26,175,26,180],[26,181,26,186],[26,187,26,192],[26,98,26,126],[26,127,26,132],[26,133,26,138],[26,139,26,144],[26,145,26,150],[26,151,26,156],[26,254,26,259],[26,260,26,265],[26,266,26,271],[26,272,26,277],[26,278,26,283],[26,284,26,289],[26,1,26,29],[26,30,26,35],[26,36,26,41],[26,42,26,47],[26,48,26,53],[26,54,26,59],[23,214,24,223],[23,224,24,229],[23,230,24,239],[24,71,25,76],[24,77,25,95],[24,168,25,173],[24,174,25,192],[23,7,24,19],[23,20,24,29],[23,30,24,35],[23,36,24,45],[23,46,24,65],[23,104,24,116],[23,117,24,126],[26,60,26,65],[26,66,26,71],[26,72,26,77],[26,78,26,83],[22,71,23,76],[22,77,23,95],[22,168,23,173],[22,174,23,192],[23,133,24,142],[23,143,24,162],[23,201,24,213],[21,117,22,126],[21,127,22,132],[21,133,22,142],[21,143,22,162],[21,201,22,213],[21,7,22,19],[21,20,22,29],[21,30,22,35],[21,36,22,45],[21,46,22,65],[21,104,22,116],[19,389,19,458],[19,459,19,483],[20,71,21,76],[20,77,21,95],[20,168,21,173],[20,174,21,192],[20,265,21,270],[20,271,21,289],[20,459,21,464],[20,465,21,483],[19,1,19,70],[19,71,19,95],[19,98,19,167],[19,168,19,192],[19,195,19,264],[19,265,19,289],[21,224,22,229],[21,230,22,239],[17,3,18,25],[17,29,18,34],[17,35,18,40],[17,41,18,46],[17,47,18,52],[17,53,18,58],[17,100,18,122],[17,126,18,131],[17,229,18,234],[17,132,18,137],[17,138,18,143],[17,144,18,149],[17,150,18,155],[17,197,18,219],[17,223,18,228],[13,186,13,190],[13,283,13,287],[15,3,16,25],[15,28,16,87],[15,100,16,122],[15,125,16,184],[15,197,16,219],[15,222,16,281],[15,391,16,413],[6,1,6,48],[6,49,6,95],[6,98,6,145],[6,146,6,192],[6,195,6,242],[6,243,6,289],[8,3,8,30],[8,100,8,127],[8,197,8,224],[26,195,26,223],[26,224,26,229],[26,230,26,235],[26,236,26,241],[26,242,26,247],[7,1,7,48],[7,49,7,95],[7,98,7,145],[7,146,7,192],[7,195,7,242],[7,243,7,289],[9,3,11,25],[9,28,11,87],[9,100,11,122],[9,125,11,184],[9,197,11,219],[9,222,11,281],[12,3,14,25],[12,28,14,87],[12,100,14,122],[12,125,14,184],[12,197,14,219],[12,222,14,281],[13,89,13,93],[21,240,22,259],[21,214,22,223],[23,240,24,259],[22,265,23,270],[22,271,23,289],[17,235,18,240],[17,241,18,246],[17,247,18,252],[6,437,6,483],[13,477,13,481],[24,465,25,483],[6,389,6,436],[7,389,7,436],[7,437,7,483],[8,391,8,418],[9,391,11,413],[9,416,11,475],[12,391,14,413],[12,416,14,475],[15,416,16,475],[17,391,18,413],[17,416,18,475],[3,423,4,476],[4,401,4,404],[4,405,4,408],[4,409,4,412],[4,413,4,422],[2,389,2,422],[2,423,2,476],[4,389,4,392],[4,393,4,396],[4,397,4,400],[3,389,3,412],[3,413,3,422],[4,118,4,121],[4,122,4,131],[4,195,4,198],[4,199,4,202],[4,203,4,206],[4,207,4,210],[3,229,4,282],[4,25,4,34],[4,98,4,101],[4,102,4,105],[4,106,4,109],[4,110,4,113],[4,114,4,117],[4,1,4,4],[1,204,1,236],[2,1,2,34],[2,35,2,88],[2,98,2,131],[2,132,2,185],[2,195,2,228],[2,229,2,282],[3,1,3,24],[3,25,3,34],[3,35,4,88],[3,98,3,121],[3,122,3,131],[3,132,4,185],[3,195,3,218],[3,219,3,228],[4,5,4,8],[4,9,4,12],[4,13,4,16],[4,17,4,20],[4,21,4,24],[4,211,4,214],[4,215,4,218],[4,219,4,228]]}
["第４号様式"]
[]
[null,"北海道函館市",null,null,null,null,null,null,null,null,null,null,null,null,null,null,null,null,null,null,null,null,null,null,null,null,null,null,null,null,null,null,null,null,null,"宿泊税",null,null,null,null,null,null,null,null,null,null,null,null,null,null,null,null,null,null,null,null,null,null,null,null,null,null,null,null,null,null,null,null,null,null,null,null,null,null,null,null,null,null,null,null,null,null,null,null,null,null,null,null,null,null,null,null,null,null,null,null,null,null,"北海道函館市",null,null,null,null,null,null,null,null,null,null,null,null,null,null,null,null,null,null,null,null,null,null,null,null,null,null,null,null,null,null,null,null,null,"宿泊税",null,null,null,null,null,null,null,null,null,null,null,null,null,null,null,null,null,null,null,null,null,null,null,null,null,null,null,null,null,null,null,null,null,null,null,null,null,null,null,null,null,null,null,null,null,null,null,null,null,null,null,null,null,null,null,null,null,null,null,null,null,null,"北海道函館市",null,null,null,null,null,null,null,null,null,null,null,null,null,null,null,null,null,null,null,null,null,null,null,null,null,null,null,null,null,null,null,null,null,"宿泊税"]
[null,"市区町村コード",null,null,null,null,null,null,null,null,null,null,null,null,null,null,null,null,null,null,null,null,null,null,null,"科目\nコード",null,null,null,null,null,null,null,null,null,"納入済通知書",null,null,null,null,null,null,null,null,null,null,null,null,null,null,null,null,null,null,null,null,null,null,null,null,null,null,null,null,null,null,null,null,null,null,null,null,null,null,null,null,null,null,null,null,null,null,null,null,null,null,null,null,null,null,null,null,null,null,null,null,null,null,"市区町村コード",null,null,null,null,null,null,null,null,null,null,null,null,null,null,null,null,null,null,null,null,null,null,null,"科目\nコード",null,null,null,null,null,null,null,null,null,"納入書",null,null,null,null,null,null,null,null,null,null,null,null,null,null,null,null,null,null,null,null,null,null,null,null,null,null,null,null,null,null,null,null,null,null,null,null,null,null,null,null,null,null,null,null,null,null,null,null,null,null,null,null,null,null,null,null,null,null,null,null,null,null,"市区町村コード",null,null,null,null,null,null,null,null,null,null,null,null,null,null,null,null,null,null,null,null,null,null,null,"科目\nコード",null,null,null,null,null,null,null,null,null,"領収証書"]
[null,0,null,null,null,1,null,null,null,2,null,null,null,0,null,null,null,2,null,null,null,5,null,null,null,34,null,null,null,null,null,null,null,null,null,null,null,null,null,null,null,null,null,null,null,null,null,null,null,null,null,null,null,null,null,null,null,null,null,null,null,null,null,null,null,null,null,null,null,null,null,null,null,null,null,null,null,null,null,null,null,null,null,null,null,null,null,null,null,null,null,null,null,null,null,null,null,null,0,null,null,null,1,null,null,null,2,null,null,null,0,null,null,null,2,null,null,null,5,null,null,null,34,null,null,null,null,null,null,null,null,null,null,null,null,null,null,null,null,null,null,null,null,null,null,null,null,null,null,null,null,null,null,null,null,null,null,null,null,null,null,null,null,null,null,null,null,null,null,null,null,null,null,null,null,null,null,null,null,null,null,null,null,null,null,null,null,null,null,null,null,null,null,null,null,0,null,null,null,1,null,null,null,2,null,null,null,0,null,null,null,2,null,null,null,5,null,null,null,34]
[]
[null,"口　座　番　号",null,null,null,null,null,null,null,null,null,null,null,null,null,null,null,null,null,null,null,null,null,null,null,null,null,null,null,null,null,null,null,null,null,null,null,null,null,null,null,null,null,null,null,null,null,null,null,"加　入　者　名",null,null,null,null,null,null,null,null,null,null,null,null,null,null,null,null,null,null,null,null,null,null,null,null,null,null,null,null,null,null,null,null,null,null,null,null,null,null,null,null,null,null,null,null,null,null,null,null,"口　座　番　号",null,null,null,null,null,null,null,null,null,null,null,null,null,null,null,null,null,null,null,null,null,null,null,null,null,null,null,null,null,null,null,null,null,null,null,null,null,null,null,null,null,null,null,null,null,null,null,"加　入　者　名",null,null,null,null,null,null,null,null,null,null,null,null,null,null,null,null,null,null,null,null,null,null,null,null,null,null,null,null,null,null,null,null,null,null,null,null,null,null,null,null,null,null,null,null,null,null,null,null,"口　座　番　号",null,null,null,null,null,null,null,null,null,null,null,null,null,null,null,null,null,null,null,null,null,null,null,null,null,null,null,null,null,null,null,null,null,null,null,null,null,null,null,null,null,null,null,null,null,null,null,"加　入　者　名"]
[null,"02660-8-960015",null,null,null,null,null,null,null,null,null,null,null,null,null,null,null,null,null,null,null,null,null,null,null,null,null,null,null,null,null,null,null,null,null,null,null,null,null,null,null,null,null,null,null,null,null,null,null,"函館市会計管理者",null,null,null,null,null,null,null,null,null,null,null,null,null,null,null,null,null,null,null,null,null,null,null,null,null,null,null,null,null,null,null,null,null,null,null,null,null,null,null,null,null,null,null,null,null,null,null,null,{"$f":"B8","v":"02660-8-960015"},null,null,null,null,null,null,null,null,null,null,null,null,null,null,null,null,null,null,null,null,null,null,null,null,null,null,null,null,null,null,null,null,null,null,null,null,null,null,null,null,null,null,null,null,null,null,null,{"$f":"AX8","v":"函館市会計管理者"},null,null,null,null,null,null,null,null,null,null,null,null,null,null,null,null,null,null,null,null,null,null,null,null,null,null,null,null,null,null,null,null,null,null,null,null,null,null,null,null,null,null,null,null,null,null,null,null,{"$f":"B8","v":"02660-8-960015"},null,null,null,null,null,null,null,null,null,null,null,null,null,null,null,null,null,null,null,null,null,null,null,null,null,null,null,null,null,null,null,null,null,null,null,null,null,null,null,null,null,null,null,null,null,null,null,{"$f":"AX8","v":"函館市会計管理者"}]
[null,null,null,"特別徴収義務者",null,null,null,null,null,null,null,null,null,null,null,null,null,null,null,null,null,null,null,null,null,null,null,null,null,null,null,null,null,null,null,null,null,null,null,null,null,null,null,null,null,null,null,null,null,null,null,null,null,null,null,null,null,null,null,null,null,null,null,null,null,null,null,null,null,null,null,null,null,null,null,null,null,null,null,null,null,null,null,null,null,null,null,null,null,null,null,null,null,null,null,null,null,null,null,null,"特別徴収義務者",null,null,null,null,null,null,null,null,null,null,null,null,null,null,null,null,null,null,null,null,null,null,null,null,null,null,null,null,null,null,null,null,null,null,null,null,null,null,null,null,null,null,null,null,null,null,null,null,null,null,null,null,null,null,null,null,null,null,null,null,null,null,null,null,null,null,null,null,null,null,null,null,null,null,null,null,null,null,null,null,null,null,null,null,null,null,null,null,null,null,null,null,null,null,null,null,"特別徴収義務者"]
[null,null,null,"住　　所\n(所 在 地)",null,null,null,null,null,null,null,null,null,null,null,null,null,null,null,null,null,null,null,null,null,null,null,null,{"$f":"+IF(入湯税・宿泊税月計表!$S$2=0,\"\",入湯税・宿泊税月計表!$S$2)","v":""},null,null,null,null,null,null,null,null,null,null,null,null,null,null,null,null,null,null,null,null,null,null,null,null,null,null,null,null,null,null,null,null,null,null,null,null,null,null,null,null,null,null,null,null,null,null,null,null,null,null,null,null,null,null,null,null,null,null,null,null,null,null,null,null,null,null,null,null,null,null,null,"住　　所\n(所 在 地)",null,null,null,null,null,null,null,null,null,null,null,null,null,null,null,null,null,null,null,null,null,null,null,null,{"$f":"+IF(入湯税・宿泊税月計表!$S$2=0,\"\",入湯税・宿泊税月計表!$S$2)","v":""},null,null,null,null,null,null,null,null,null,null,null,null,null,null,null,null,null,null,null,null,null,null,null,null,null,null,null,null,null,null,null,null,null,null,null,null,null,null,null,null,null,null,null,null,null,null,null,null,null,null,null,null,null,null,null,null,null,null,null,null,null,null,null,null,null,null,null,null,null,null,null,"住　　所\n(所 在 地)",null,null,null,null,null,null,null,null,null,null,null,null,null,null,null,null,null,null,null,null,null,null,null,null,{"$f":"+IF(入湯税・宿泊税月計表!$S$2=0,\"\",入湯税・宿泊税月計表!$S$2)","v":""}]
[]
[]
[null,null,null,"氏　　名\n(名　　称)",null,null,null,null,null,null,null,null,null,null,null,null,null,null,null,null,null,null,null,null,null,null,null,null,{"$f":"+IF(入湯税・宿泊税月計表!$S$3=0,\"\",入湯税・宿泊税月計表!$S$3)","v":""},null,null,null,null,null,null,null,null,null,null,null,null,null,null,null,null,null,null,null,null,null,null,null,null,null,null,null,null,null,null,null,null,null,null,null,null,null,null,null,null,null,null,null,null,null,null,null,null,null,null,null,null,null,null,null,null,null,null,null,null,null,null,null,null,null,null,null,null,null,null,null,"氏　　名\n(名　　称)",null,null,null,null,null,null,null,null,null,null,null,null,null,null,null,null,null,null,null,null,null,null,null,null,{"$f":"+IF(入湯税・宿泊税月計表!$S$3=0,\"\",入湯税・宿泊税月計表!$S$3)","v":""},null,null,null,null,null,null,null,null,null,null,null,null,null,null,null,null,null,null,null,null,null,null,null,null,null,null,null,null,null,null,null,null,null,null,null,null,null,null,null,null,null,null,null,null,null,null,null,null,null,null,null,null,null,null,null,null,null,null,null,null,null,null,null,null,null,null,null,null,null,null,null,"氏　　名\n(名　　称)",null,null,null,null,null,null,null,null,null,null,null,null,null,null,null,null,null,null,null,null,null,null,null,null,{"$f":"+IF(入湯税・宿泊税月計表!$S$3=0,\"\",入湯税・宿泊税月計表!$S$3)","v":""}]
[null,null,null,null,null,null,null,null,null,null,null,null,null,null,null,null,null,null,null,null,null,null,null,null,null,null,null,null,null,null,null,null,null,null,null,null,null,null,null,null,null,null,null,null,null,null,null,null,null,null,null,null,null,null,null,null,null,null,null,null,null,null,null,null,null,null,null,null,null,null,null,null,null,null,null,null,null,null,null,null,null,null,null,null,null,null,null,null,null,"様",null,null,null,null,null,null,null,null,null,null,null,null,null,null,null,null,null,null,null,null,null,null,null,null,null,null,null,null,null,null,null,null,null,null,null,null,null,null,null,null,null,null,null,null,null,null,null,null,null,null,null,null,null,null,null,null,null,null,null,null,null,null,null,null,null,null,null,null,null,null,null,null,null,null,null,null,null,null,null,null,null,null,null,null,null,null,null,null,null,null,null,null,null,null,null,null,"様",null,null,null,null,null,null,null,null,null,null,null,null,null,null,null,null,null,null,null,null,null,null,null,null,null,null,null,null,null,null,null,null,null,null,null,null,null,null,null,null,null,null,null,null,null,null,null,null,null,null,null,null,null,null,null,null,null,null,null,null,null,null,null,null,null,null,null,null,null,null,null,null,null,null,null,null,null,null,null,null,null,null,null,null,null,null,null,null,null,null,null,null,null,null,null,null,"様"]
[]
[null,null,null,"宿泊施設名",null,null,null,null,null,null,null,null,null,null,null,null,null,null,null,null,null,null,null,null,null,null,null,null,{"$f":"+IF(入湯税・宿泊税月計表!$S$6=0,\"\",入湯税・宿泊税月計表!$S$6)","v":""},null,null,null,null,null,null,null,null,null,null,null,null,null,null,null,null,null,null,null,null,null,null,null,null,null,null,null,null,null,null,null,null,null,null,null,null,null,null,null,null,null,null,null,null,null,null,null,null,null,null,null,null,null,null,null,null,null,null,null,null,null,null,null,null,null,null,null,null,null,null,null,"宿泊施設名",null,null,null,null,null,null,null,null,null,null,null,null,null,null,null,null,null,null,null,null,null,null,null,null,{"$f":"+IF(入湯税・宿泊税月計表!$S$6=0,\"\",入湯税・宿泊税月計表!$S$6)","v":""},null,null,null,null,null,null,null,null,null,null,null,null,null,null,null,null,null,null,null,null,null,null,null,null,null,null,null,null,null,null,null,null,null,null,null,null,null,null,null,null,null,null,null,null,null,null,null,null,null,null,null,null,null,null,null,null,null,null,null,null,null,null,null,null,null,null,null,null,null,null,null,"宿泊施設名",null,null,null,null,null,null,null,null,null,null,null,null,null,null,null,null,null,null,null,null,null,null,null,null,{"$f":"+IF(入湯税・宿泊税月計表!$S$6=0,\"\",入湯税・宿泊税月計表!$S$6)","v":""}]
[]
[null,null,null,"指定番号 ",null,null,null,null,null,null,null,null,null,null,null,null,null,null,null,null,null,null,null,null,null,null,null,null,null,{"$f":"+IF(入湯税・宿泊税月計表!$S$7=0,\"\",入湯税・宿泊税月計表!$S$7)","v":""},null,null,null,null,null,{"$f":"+IF(入湯税・宿泊税月計表!$V$7=0,\"\",入湯税・宿泊税月計表!$V$7)","v":""},null,null,null,null,null,{"$f":"+IF(入湯税・宿泊税月計表!$Y$7=0,\"\",入湯税・宿泊税月計表!$Y$7)","v":""},null,null,null,null,null,{"$f":"+IF(入湯税・宿泊税月計表!$AB$7=0,\"\",入湯税・宿泊税月計表!$AB$7)","v":""},null,null,null,null,null,{"$f":"+IF(入湯税・宿泊税月計表!$AE$7=0,\"\",入湯税・宿泊税月計表!$AE$7)","v":""},null,null,null,null,null,null,null,null,null,null,null,null,null,null,null,null,null,null,null,null,null,null,null,null,null,null,null,null,null,null,null,null,null,null,null,null,null,null,null,null,null,null,null,null,null,null,"指定番号 ",null,null,null,null,null,null,null,null,null,null,null,null,null,null,null,null,null,null,null,null,null,null,null,null,null,{"$f":"+IF(入湯税・宿泊税月計表!$S$7=0,\"\",入湯税・宿泊税月計表!$S$7)","v":""},null,null,null,null,null,{"$f":"+IF(入湯税・宿泊税月計表!$V$7=0,\"\",入湯税・宿泊税月計表!$V$7)","v":""},null,null,null,null,null,{"$f":"+IF(入湯税・宿泊税月計表!$Y$7=0,\"\",入湯税・宿泊税月計表!$Y$7)","v":""},null,null,null,null,null,{"$f":"+IF(入湯税・宿泊税月計表!$AB$7=0,\"\",入湯税・宿泊税月計表!$AB$7)","v":""},null,null,null,null,null,{"$f":"+IF(入湯税・宿泊税月計表!$AE$7=0,\"\",入湯税・宿泊税月計表!$AE$7)","v":""},null,null,null,null,null,null,null,null,null,null,null,null,null,null,null,null,null,null,null,null,null,null,null,null,null,null,null,null,null,null,null,null,null,null,null,null,null,null,null,null,null,null,null,null,null,null,"指定番号 ",null,null,null,null,null,null,null,null,null,null,null,null,null,null,null,null,null,null,null,null,null,null,null,null,null,{"$f":"+IF(入湯税・宿泊税月計表!$S$7=0,\"\",入湯税・宿泊税月計表!$S$7)","v":""},null,null,null,null,null,{"$f":"+IF(入湯税・宿泊税月計表!$V$7=0,\"\",入湯税・宿泊税月計表!$V$7)","v":""},null,null,null,null,null,{"$f":"+IF(入湯税・宿泊税月計表!$Y$7=0,\"\",入湯税・宿泊税月計表!$Y$7)","v":""},null,null,null,null,null,{"$f":"+IF(入湯税・宿泊税月計表!$AB$7=0,\"\",入湯税・宿泊税月計表!$AB$7)","v":""},null,null,null,null,null,{"$f":"+IF(入湯税・宿泊税月計表!$AE$7=0,\"\",入湯税・宿泊税月計表!$AE$7)","v":""}]
[]
[null,"徴　収　期　間",null,null,null,null,null,null,null,null,null,null,null,null,null,null,null,null,null,null,null,null,null,null,null,null,null,null,null,null,null,null,null,null,null,null,null,null,null,null,null,null,null,null,null,null,null,null,null,null,null,null,null,null,null,null,null,null,null,null,null,null,null,null,null,null,null,null,null,null,null,"区　分",null,null,null,null,null,null,null,null,null,null,null,null,null,null,null,null,null,null,null,null,null,null,null,null,null,null,"徴　収　期　間",null,null,null,null,null,null,null,null,null,null,null,null,null,null,null,null,null,null,null,null,null,null,null,null,null,null,null,null,null,null,null,null,null,null,null,null,null,null,null,null,null,null,null,null,null,null,null,null,null,null,null,null,null,null,null,null,null,null,null,null,null,null,null,null,null,null,null,null,null,"区　分",null,null,null,null,null,null,null,null,null,null,null,null,null,null,null,null,null,null,null,null,null,null,null,null,null,null,"徴　収　期　間",null,null,null,null,null,null,null,null,null,null,null,null,null,null,null,null,null,null,null,null,null,null,null,null,null,null,null,null,null,null,null,null,null,null,null,null,null,null,null,null,null,null,null,null,null,null,null,null,null,null,null,null,null,null,null,null,null,null,null,null,null,null,null,null,null,null,null,null,null,"区　分"]
[null,"　　　　年　　月分\nから　　　　年　　月分まで",null,null,null,null,null,null,null,null,null,null,null,null,null,null,null,null,null,null,null,null,null,null,null,null,null,null,null,null,null,null,null,null,null,null,null,null,null,null,null,null,null,null,null,null,null,null,null,null,null,null,null,null,null,null,null,null,null,null,null,null,null,null,null,null,null,null,null,null,null,{"$f":"IF(入湯税・宿泊税月計表!$BW$4=\"01 申告\",\"〇\",\"\")","v":"〇"},null,null,null,null,null,"01 申告",null,null,null,null,null,null,null,null,null,null,null,null,null,null,null,null,null,null,null,null,"　　　　年　　月分\nから　　　　年　　月分まで",null,null,null,null,null,null,null,null,null,null,null,null,null,null,null,null,null,null,null,null,null,null,null,null,null,null,null,null,null,null,null,null,null,null,null,null,null,null,null,null,null,null,null,null,null,null,null,null,null,null,null,null,null,null,null,null,null,null,null,null,null,null,null,null,null,null,null,null,null,{"$f":"IF(入湯税・宿泊税月計表!$BW$4=\"01 申告\",\"〇\",\"\")","v":"〇"},null,null,null,null,null,"01 申告",null,null,null,null,null,null,null,null,null,null,null,null,null,null,null,null,null,null,null,null,"　　　　年　　月分\nから　　　　年　　月分まで",null,null,null,null,null,null,null,null,null,null,null,null,null,null,null,null,null,null,null,null,null,null,null,null,null,null,null,null,null,null,null,null,null,null,null,null,null,null,null,null,null,null,null,null,null,null,null,null,null,null,null,null,null,null,null,null,null,null,null,null,null,null,null,null,null,null,null,null,null,{"$f":"IF(入湯税・宿泊税月計表!$BW$4=\"01 申告\",\"〇\",\"\")","v":"〇"},null,null,null,null,null,"01 申告"]
[null,null,null,null,null,null,null,{"$f":"+入湯税・宿泊税月計表!CC3","v":"令和"},null,null,null,null,null,null,null,null,null,null,null,null,{"$f":"+IF(入湯税・宿泊税月計表!CF3=0,\"\",入湯税・宿泊税月計表!CF3)","v":""},null,null,null,null,null,null,null,null,null,"年",null,null,null,null,null,{"$f":"+IF(入湯税・宿泊税月計表!CL3=0,\"\",入湯税・宿泊税月計表!CL3)","v":""},null,null,null,null,null,null,null,null,null,{"$f":"+IF(OR(入湯税・宿泊税月計表!BW3=\"\",入湯税・宿泊税月計表!BW3=\"一か月分\"),\"月分\",\"月分から\")","v":"月分から"},null,null,null,null,null,null,null,null,null,null,null,null,null,null,null,null,null,null,null,null,null,null,null,null,null,null,null,null,null,null,null,null,null,null,null,null,null,null,null,null,null,null,null,null,null,null,null,null,null,null,null,null,null,null,null,null,null,{"$f":"+H22","v":"令和"},null,null,null,null,null,null,null,null,null,null,null,null,{"$f":"IF(U22=\"\",\"\",U22)","v":""},null,null,null,null,null,null,null,null,null,"年",null,null,null,null,null,{"$f":"IF(AK22=\"\",\"\",AK22)","v":""},null,null,null,null,null,null,null,null,null,{"$f":"+AU22","v":"月分から"},null,null,null,null,null,null,null,null,null,null,null,null,null,null,null,null,null,null,null,null,null,null,null,null,null,null,null,null,null,null,null,null,null,null,null,null,null,null,null,null,null,null,null,null,null,null,null,null,null,null,null,null,null,null,null,null,null,{"$f":"+H22","v":"令和"},null,null,null,null,null,null,null,null,null,null,null,null,{"$f":"IF(U22=\"\",\"\",U22)","v":""},null,null,null,null,null,null,null,null,null,"年",null,null,null,null,null,{"$f":"IF(AK22=\"\",\"\",AK22)","v":""},null,null,null,null,null,null,null,null,null,{"$f":"+EN22","v":"月分から"}]
[null,null,null,null,null,null,null,null,null,null,null,null,null,null,null,null,null,null,null,null,null,null,null,null,null,null,null,null,null,null,null,null,null,null,null,null,null,null,null,null,null,null,null,null,null,null,null,null,null,null,null,null,null,null,null,null,null,null,null,null,null,null,null,null,null,null,null,null,null,null,null,{"$f":"IF(入湯税・宿泊税月計表!$BW$4=\"02 更正\",\"〇\",\"\")","v":""},null,null,null,null,null,"02 更正",null,null,null,null,null,null,null,null,null,null,null,null,null,null,null,null,null,null,null,null,null,null,null,null,null,null,null,null,null,null,null,null,null,null,null,null,null,null,null,null,null,null,null,null,null,null,null,null,null,null,null,null,null,null,null,null,null,null,null,null,null,null,null,null,null,null,null,null,null,null,null,null,null,null,null,null,null,null,null,null,null,null,null,null,null,null,null,null,null,null,{"$f":"IF(入湯税・宿泊税月計表!$BW$4=\"02 更正\",\"〇\",\"\")","v":""},null,null,null,null,null,"02 更正",null,null,null,null,null,null,null,null,null,null,null,null,null,null,null,null,null,null,null,null,null,null,null,null,null,null,null,null,null,null,null,null,null,null,null,null,null,null,null,null,null,null,null,null,null,null,null,null,null,null,null,null,null,null,null,null,null,null,null,null,null,null,null,null,null,null,null,null,null,null,null,null,null,null,null,null,null,null,null,null,null,null,null,null,null,null,null,null,null,null,{"$f":"IF(入湯税・宿泊税月計表!$BW$4=\"02 更正\",\"〇\",\"\")","v":""},null,null,null,null,null,"02 更正"]
[null,null,null,null,"から",null,null,{"$f":"+IF(OR(入湯税・宿泊税月計表!$BW$3=\"二か月分\",入湯税・宿泊税月計表!$BW$3=\"三か月分\"),\"令和\",\"\")","v":"令和"},null,null,null,null,null,null,null,null,null,null,null,null,{"$f":"+IF(OR(入湯税・宿泊税月計表!$BW$3=\"二か月分\",入湯税・宿泊税月計表!$BW$3=\"三か月分\"),入湯税・宿泊税月計表!$CX3,\"\")","v":""},null,null,null,null,null,null,null,null,null,{"$f":"+IF(OR(入湯税・宿泊税月計表!$BW$3=\"二か月分\",入湯税・宿泊税月計表!$BW$3=\"三か月分\"),\"年\",\"\")","v":"年"},null,null,null,null,null,{"$f":"+IF(OR(入湯税・宿泊税月計表!$BW$3=\"二か月分\",入湯税・宿泊税月計表!$BW$3=\"三か月分\"),入湯税・宿泊税月計表!$DD3,\"\")","v":""},null,null,null,null,null,null,null,null,null,{"$f":"+IF(OR(入湯税・宿泊税月計表!$BW$3=\"二か月分\",入湯税・宿泊税月計表!$BW$3=\"三か月分\"),\"月分まで\",\"\")","v":"月分まで"},null,null,null,null,null,null,null,null,null,null,null,null,null,null,null,null,null,null,null,null,null,null,null,null,null,null,null,null,null,null,null,null,null,null,null,null,null,null,null,null,null,null,null,null,null,null,null,null,null,null,null,null,null,null,"から",null,null,{"$f":"+IF(OR(入湯税・宿泊税月計表!$BW$3=\"二か月分\",入湯税・宿泊税月計表!$BW$3=\"三か月分\"),\"令和\",\"\")","v":"令和"},null,null,null,null,null,null,null,null,null,null,null,null,{"$f":"+IF(OR(入湯税・宿泊税月計表!$BW$3=\"二か月分\",入湯税・宿泊税月計表!$BW$3=\"三か月分\"),入湯税・宿泊税月計表!$CX3,\"\")","v":""},null,null,null,null,null,null,null,null,null,{"$f":"+IF(OR(入湯税・宿泊税月計表!$BW$3=\"二か月分\",入湯税・宿泊税月計表!$BW$3=\"三か月分\"),\"年\",\"\")","v":"年"},null,null,null,null,null,{"$f":"+IF(OR(入湯税・宿泊税月計表!$BW$3=\"二か月分\",入湯税・宿泊税月計表!$BW$3=\"三か月分\"),入湯税・宿泊税月計表!$DD3,\"\")","v":""},null,null,null,null,null,null,null,null,null,{"$f":"+IF(OR(入湯税・宿泊税月計表!$BW$3=\"二か月分\",入湯税・宿泊税月計表!$BW$3=\"三か月分\"),\"月分まで\",\"\")","v":"月分まで"},null,null,null,null,null,null,null,null,null,null,null,null,null,null,null,null,null,null,null,null,null,null,null,null,null,null,null,null,null,null,null,null,null,null,null,null,null,null,null,null,null,null,null,null,null,null,null,null,null,null,null,null,null,null,"から",null,null,{"$f":"+IF(OR(入湯税・宿泊税月計表!$BW$3=\"二か月分\",入湯税・宿泊税月計表!$BW$3=\"三か月分\"),\"令和\",\"\")","v":"令和"},null,null,null,null,null,null,null,null,null,null,null,null,{"$f":"+IF(OR(入湯税・宿泊税月計表!$BW$3=\"二か月分\",入湯税・宿泊税月計表!$BW$3=\"三か月分\"),入湯税・宿泊税月計表!$CX3,\"\")","v":""},null,null,null,null,null,null,null,null,null,{"$f":"+IF(OR(入湯税・宿泊税月計表!$BW$3=\"二か月分\",入湯税・宿泊税月計表!$BW$3=\"三か月分\"),\"年\",\"\")","v":"年"},null,null,null,null,null,{"$f":"+IF(OR(入湯税・宿泊税月計表!$BW$3=\"二か月分\",入湯税・宿泊税月計表!$BW$3=\"三か月分\"),入湯税・宿泊税月計表!$DD3,\"\")","v":""},null,null,null,null,null,null,null,null,null,{"$f":"+IF(OR(入湯税・宿泊税月計表!$BW$3=\"二か月分\",入湯税・宿泊税月計表!$BW$3=\"三か月分\"),\"月分まで\",\"\")","v":"月分まで"}]
[null,null,null,null,null,null,null,null,null,null,null,null,null,null,null,null,null,null,null,null,null,null,null,null,null,null,null,null,null,null,null,null,null,null,null,null,null,null,null,null,null,null,null,null,null,null,null,null,null,null,null,null,null,null,null,null,null,null,null,null,null,null,null,null,null,null,null,null,null,null,null,{"$f":"IF(入湯税・宿泊税月計表!$BW$4=\"03 決定\",\"〇\",\"\")","v":""},null,null,null,null,null,"03 決定",null,null,null,null,null,null,null,null,null,null,null,null,null,null,null,null,null,null,null,null,null,null,null,null,null,null,null,null,null,null,null,null,null,null,null,null,null,null,null,null,null,null,null,null,null,null,null,null,null,null,null,null,null,null,null,null,null,null,null,null,null,null,null,null,null,null,null,null,null,null,null,null,null,null,null,null,null,null,null,null,null,null,null,null,null,null,null,null,null,null,{"$f":"IF(入湯税・宿泊税月計表!$BW$4=\"03 決定\",\"〇\",\"\")","v":""},null,null,null,null,null,"03 決定",null,null,null,null,null,null,null,null,null,null,null,null,null,null,null,null,null,null,null,null,null,null,null,null,null,null,null,null,null,null,null,null,null,null,null,null,null,null,null,null,null,null,null,null,null,null,null,null,null,null,null,null,null,null,null,null,null,null,null,null,null,null,null,null,null,null,null,null,null,null,null,null,null,null,null,null,null,null,null,null,null,null,null,null,null,null,null,null,null,null,{"$f":"IF(入湯税・宿泊税月計表!$BW$4=\"03 決定\",\"〇\",\"\")","v":""},null,null,null,null,null,"03 決定"]
[]
[null,null,null,null,null,null,null,null,null,null,null,null,null,null,null,null,null,null,null,null,null,null,null,null,null,null,null,null,null,null,"百",null,null,null,null,null,"十",null,null,null,null,null,"億",null,null,null,null,null,"千",null,null,null,null,null,"百",null,null,null,null,null,"十",null,null,null,null,null,"万",null,null,null,null,null,"千",null,null,null,null,null,"百",null,null,null,null,null,"十",null,null,null,null,null,"円",null,null,null,null,null,null,null,null,null,null,null,null,null,null,null,null,null,null,null,null,null,null,null,null,null,null,null,null,null,null,null,null,null,null,null,null,"百",null,null,null,null,null,"十",null,null,null,null,null,"億",null,null,null,null,null,"千",null,null,null,null,null,"百",null,null,null,null,null,"十",null,null,null,null,null,"万",null,null,null,null,null,"千",null,null,null,null,null,"百",null,null,null,null,null,"十",null,null,null,null,null,"円",null,null,null,null,null,null,null,null,null,null,null,null,null,null,null,null,null,null,null,null,null,null,null,null,null,null,null,null,null,null,null,null,null,null,null,null,"百",null,null,null,null,null,"十",null,null,null,null,null,"億",null,null,null,null,null,"千",null,null,null,null,null,"百",null,null,null,null,null,"十",null,null,null,null,null,"万",null,null,null,null,null,"千",null,null,null,null,null,"百",null,null,null,null,null,"十",null,null,null,null,null,"円"]
[null,"宿泊税",null,null,null,null,null,null,"税額",null,null,null,null,null,null,null,null,null,null,null,null,null,null,null,null,null,null,null,null,null,{"$f":"+IF(入湯税・宿泊税納入申告書!$CE$60=\"￥\",\"\",入湯税・宿泊税納入申告書!$CE$60)","v":""},null,null,null,null,null,{"$f":"+IF(入湯税・宿泊税納入申告書!$CF$60=\"￥\",\"\",入湯税・宿泊税納入申告書!$CF$60)","v":""},null,null,null,null,null,{"$f":"+IF(入湯税・宿泊税納入申告書!$CG$60=\"￥\",\"\",入湯税・宿泊税納入申告書!$CG$60)","v":""},null,null,null,null,null,{"$f":"+IF(入湯税・宿泊税納入申告書!$CH$60=\"￥\",\"\",入湯税・宿泊税納入申告書!$CH$60)","v":""},null,null,null,null,null,{"$f":"+IF(入湯税・宿泊税納入申告書!$CI$60=\"￥\",\"\",入湯税・宿泊税納入申告書!$CI$60)","v":""},null,null,null,null,null,{"$f":"+IF(入湯税・宿泊税納入申告書!$CJ$60=\"￥\",\"\",入湯税・宿泊税納入申告書!$CJ$60)","v":""},null,null,null,null,null,{"$f":"+IF(入湯税・宿泊税納入申告書!$CK$60=\"￥\",\"\",入湯税・宿泊税納入申告書!$CK$60)","v":""},null,null,null,null,null,{"$f":"+IF(入湯税・宿泊税納入申告書!$CL$60=\"￥\",\"\",入湯税・宿泊税納入申告書!$CL$60)","v":""},null,null,null,null,null,{"$f":"+IF(入湯税・宿泊税納入申告書!$CM$60=\"￥\",\"\",入湯税・宿泊税納入申告書!$CM$60)","v":""},null,null,null,null,null,{"$f":"+IF(入湯税・宿泊税納入申告書!$CN$60=\"￥\",\"\",入湯税・宿泊税納入申告書!$CN$60)","v":""},null,null,null,null,null,{"$f":"+IF(入湯税・宿泊税納入申告書!$CO$60=\"￥\",\"\",入湯税・宿泊税納入申告書!$CO$60)","v":""},null,null,null,null,null,null,null,"宿泊税",null,null,null,null,null,null,"税額",null,null,null,null,null,null,null,null,null,null,null,null,null,null,null,null,null,null,null,null,null,{"$f":"+IF(入湯税・宿泊税納入申告書!$CE$60=\"￥\",\"\",入湯税・宿泊税納入申告書!$CE$60)","v":""},null,null,null,null,null,{"$f":"+IF(入湯税・宿泊税納入申告書!$CF$60=\"￥\",\"\",入湯税・宿泊税納入申告書!$CF$60)","v":""},null,null,null,null,null,{"$f":"+IF(入湯税・宿泊税納入申告書!$CG$60=\"￥\",\"\",入湯税・宿泊税納入申告書!$CG$60)","v":""},null,null,null,null,null,{"$f":"+IF(入湯税・宿泊税納入申告書!$CH$60=\"￥\",\"\",入湯税・宿泊税納入申告書!$CH$60)","v":""},null,null,null,null,null,{"$f":"+IF(入湯税・宿泊税納入申告書!$CI$60=\"￥\",\"\",入湯税・宿泊税納入申告書!$CI$60)","v":""},null,null,null,null,null,{"$f":"+IF(入湯税・宿泊税納入申告書!$CJ$60=\"￥\",\"\",入湯税・宿泊税納入申告書!$CJ$60)","v":""},null,null,null,null,null,{"$f":"+IF(入湯税・宿泊税納入申告書!$CK$60=\"￥\",\"\",入湯税・宿泊税納入申告書!$CK$60)","v":""},null,null,null,null,null,{"$f":"+IF(入湯税・宿泊税納入申告書!$CL$60=\"￥\",\"\",入湯税・宿泊税納入申告書!$CL$60)","v":""},null,null,null,null,null,{"$f":"+IF(入湯税・宿泊税納入申告書!$CM$60=\"￥\",\"\",入湯税・宿泊税納入申告書!$CM$60)","v":""},null,null,null,null,null,{"$f":"+IF(入湯税・宿泊税納入申告書!$CN$60=\"￥\",\"\",入湯税・宿泊税納入申告書!$CN$60)","v":""},null,null,null,null,null,{"$f":"+IF(入湯税・宿泊税納入申告書!$CO$60=\"￥\",\"\",入湯税・宿泊税納入申告書!$CO$60)","v":""},null,null,null,null,null,null,null,"宿泊税",null,null,null,null,null,null,"税額",null,null,null,null,null,null,null,null,null,null,null,null,null,null,null,null,null,null,null,null,null,{"$f":"+IF(入湯税・宿泊税納入申告書!$CE$60=\"￥\",\"\",入湯税・宿泊税納入申告書!$CE$60)","v":""},null,null,null,null,null,{"$f":"+IF(入湯税・宿泊税納入申告書!$CF$60=\"￥\",\"\",入湯税・宿泊税納入申告書!$CF$60)","v":""},null,null,null,null,null,{"$f":"+IF(入湯税・宿泊税納入申告書!$CG$60=\"￥\",\"\",入湯税・宿泊税納入申告書!$CG$60)","v":""},null,null,null,null,null,{"$f":"+IF(入湯税・宿泊税納入申告書!$CH$60=\"￥\",\"\",入湯税・宿泊税納入申告書!$CH$60)","v":""},null,null,null,null,null,{"$f":"+IF(入湯税・宿泊税納入申告書!$CI$60=\"￥\",\"\",入湯税・宿泊税納入申告書!$CI$60)","v":""},null,null,null,null,null,{"$f":"+IF(入湯税・宿泊税納入申告書!$CJ$60=\"￥\",\"\",入湯税・宿泊税納入申告書!$CJ$60)","v":""},null,null,null,null,null,{"$f":"+IF(入湯税・宿泊税納入申告書!$CK$60=\"￥\",\"\",入湯税・宿泊税納入申告書!$CK$60)","v":""},null,null,null,null,null,{"$f":"+IF(入湯税・宿泊税納入申告書!$CL$60=\"￥\",\"\",入湯税・宿泊税納入申告書!$CL$60)","v":""},null,null,null,null,null,{"$f":"+IF(入湯税・宿泊税納入申告書!$CM$60=\"￥\",\"\",入湯税・宿泊税納入申告書!$CM$60)","v":""},null,null,null,null,null,{"$f":"+IF(入湯税・宿泊税納入申告書!$CN$60=\"￥\",\"\",入湯税・宿泊税納入申告書!$CN$60)","v":""},null,null,null,null,null,{"$f":"+IF(入湯税・宿泊税納入申告書!$CO$60=\"￥\",\"\",入湯税・宿泊税納入申告書!$CO$60)","v":""}]
[null,null,null,null,null,null,null,null,"延滞金",null,null,null,null,null,null,null,null,null,null,null,null,null,null,null,null,null,null,null,null,null,null,null,null,null,null,null,null,null,null,null,null,null,null,null,null,null,null,null,null,null,null,null,null,null,null,null,null,null,null,null,null,null,null,null,null,null,null,null,null,null,null,null,null,null,null,null,null,null,null,null,null,null,null,null,null,null,null,null,null,null,null,null,null,null,null,null,null,null,null,null,null,null,null,null,null,"延滞金",null,null,null,null,null,null,null,null,null,null,null,null,null,null,null,null,null,null,null,null,null,{"$f":"IF(AE29=\"\",\"\",AE29)","v":""},null,null,null,null,null,{"$f":"IF(AK29=\"\",\"\",AK29)","v":""},null,null,null,null,null,{"$f":"IF(AQ29=\"\",\"\",AQ29)","v":""},null,null,null,null,null,{"$f":"IF(AW29=\"\",\"\",AW29)","v":""},null,null,null,null,null,{"$f":"IF(BC29=\"\",\"\",BC29)","v":""},null,null,null,null,null,{"$f":"IF(BI29=\"\",\"\",BI29)","v":""},null,null,null,null,null,{"$f":"IF(BO29=\"\",\"\",BO29)","v":""},null,null,null,null,null,{"$f":"IF(BU29=\"\",\"\",BU29)","v":""},null,null,null,null,null,{"$f":"IF(CA29=\"\",\"\",CA29)","v":""},null,null,null,null,null,{"$f":"IF(CG29=\"\",\"\",CG29)","v":""},null,null,null,null,null,{"$f":"IF(CM29=\"\",\"\",CM29)","v":""},null,null,null,null,null,null,null,null,null,null,null,null,null,null,"延滞金",null,null,null,null,null,null,null,null,null,null,null,null,null,null,null,null,null,null,null,null,null,{"$f":"IF(AE29=\"\",\"\",AE29)","v":""},null,null,null,null,null,{"$f":"IF(AK29=\"\",\"\",AK29)","v":""},null,null,null,null,null,{"$f":"IF(AQ29=\"\",\"\",AQ29)","v":""},null,null,null,null,null,{"$f":"IF(AW29=\"\",\"\",AW29)","v":""},null,null,null,null,null,{"$f":"IF(BC29=\"\",\"\",BC29)","v":""},null,null,null,null,null,{"$f":"IF(BI29=\"\",\"\",BI29)","v":""},null,null,null,null,null,{"$f":"IF(BO29=\"\",\"\",BO29)","v":""},null,null,null,null,null,{"$f":"IF(BU29=\"\",\"\",BU29)","v":""},null,null,null,null,null,{"$f":"IF(CA29=\"\",\"\",CA29)","v":""},null,null,null,null,null,{"$f":"IF(CG29=\"\",\"\",CG29)","v":""},null,null,null,null,null,{"$f":"IF(CM29=\"\",\"\",CM29)","v":""}]
[null,"合計額",null,null,null,null,null,null,null,null,null,null,null,null,null,null,null,null,null,null,null,null,null,null,null,null,null,null,null,null,{"$f":"+入湯税・宿泊税納入申告書!CE60","v":""},null,null,null,null,null,{"$f":"+入湯税・宿泊税納入申告書!CF60","v":""},null,null,null,null,null,{"$f":"+入湯税・宿泊税納入申告書!CG60","v":""},null,null,null,null,null,{"$f":"+入湯税・宿泊税納入申告書!CH60","v":""},null,null,null,null,null,{"$f":"+入湯税・宿泊税納入申告書!CI60","v":""},null,null,null,null,null,{"$f":"+入湯税・宿泊税納入申告書!CJ60","v":""},null,null,null,null,null,{"$f":"+入湯税・宿泊税納入申告書!CK60","v":""},null,null,null,null,null,{"$f":"+入湯税・宿泊税納入申告書!CL60","v":""},null,null,null,null,null,{"$f":"+入湯税・宿泊税納入申告書!CM60","v":""},null,null,null,null,null,{"$f":"+入湯税・宿泊税納入申告書!CN60","v":""},null,null,null,null,null,{"$f":"+入湯税・宿泊税納入申告書!CO60","v":""},null,null,null,null,null,null,null,"合計額",null,null,null,null,null,null,null,null,null,null,null,null,null,null,null,null,null,null,null,null,null,null,null,null,null,null,null,null,"",null,null,null,null,null,"",null,null,null,null,null,"",null,null,null,null,null,"",null,null,null,null,null,"",null,null,null,null,null,"",null,null,null,null,null,{"$f":"IF(BO30=\"\",\"\",BO30)","v":""},null,null,null,null,null,"",null,null,null,null,null,{"$f":"IF(CA30=\"\",\"\",CA30)","v":""},null,null,null,null,null,"",null,null,null,null,null,"",null,null,null,null,null,null,null,"合計額",null,null,null,null,null,null,null,null,null,null,null,null,null,null,null,null,null,null,null,null,null,null,null,null,null,null,null,null,"",null,null,null,null,null,"",null,null,null,null,null,"",null,null,null,null,null,"",null,null,null,null,null,"",null,null,null,null,null,"",null,null,null,null,null,"",null,null,null,null,null,"",null,null,null,null,null,"",null,null,null,null,null,"",null,null,null,null,null,""]
[null,"納期限",null,null,null,null,null,null,null,null,null,null,null,null,null,null,null,null,null,null,null,null,"令和",null,null,null,null,null,null,null,{"$f":"+IF(入湯税・宿泊税月計表!$GT76=0,\"\",入湯税・宿泊税月計表!$GT76)","v":""},null,null,null,null,null,null,"年",null,null,{"$f":"+IF(入湯税・宿泊税月計表!$GV76=0,\"\",入湯税・宿泊税月計表!$GV76)","v":""},null,null,null,null,null,null,"月",null,null,{"$f":"+IF(入湯税・宿泊税月計表!$GX76=0,\"\",入湯税・宿泊税月計表!$GX76)","v":""},null,null,null,null,null,null,"日",null,null,"領収日付印",null,null,null,null,null,null,null,null,null,null,null,null,null,null,null,null,null,null,null,null,null,null,null,null,null,null,null,null,null,null,null,null,null,null,null,null,null,"納期限",null,null,null,null,null,null,null,null,null,null,null,null,null,null,null,null,null,null,null,null,"令和",null,null,null,null,null,null,null,{"$f":"+IF(入湯税・宿泊税月計表!$GT76=0,\"\",入湯税・宿泊税月計表!$GT76)","v":""},null,null,null,null,null,null,"年",null,null,{"$f":"+IF(入湯税・宿泊税月計表!$GV76=0,\"\",入湯税・宿泊税月計表!$GV76)","v":""},null,null,null,null,null,null,"月",null,null,{"$f":"+IF(入湯税・宿泊税月計表!$GX76=0,\"\",入湯税・宿泊税月計表!$GX76)","v":""},null,null,null,null,null,null,"日",null,null,"領収日付印",null,null,null,null,null,null,null,null,null,null,null,null,null,null,null,null,null,null,null,null,null,null,null,null,null,null,null,null,null,null,null,null,null,null,null,null,null,"納期限",null,null,null,null,null,null,null,null,null,null,null,null,null,null,null,null,null,null,null,null,"令和",null,null,null,null,null,null,null,{"$f":"+IF(入湯税・宿泊税月計表!$GT76=0,\"\",入湯税・宿泊税月計表!$GT76)","v":""},null,null,null,null,null,null,"年",null,null,{"$f":"+IF(入湯税・宿泊税月計表!$GV76=0,\"\",入湯税・宿泊税月計表!$GV76)","v":""},null,null,null,null,null,null,"月",null,null,{"$f":"+IF(入湯税・宿泊税月計表!$GX76=0,\"\",入湯税・宿泊税月計表!$GX76)","v":""},null,null,null,null,null,null,"日",null,null,"領収日付印"]
[null,"指定金融機関名",null,null,null,null,null,null,null,null,null,null,null,null,null,null,null,null,null,null,null,null,"株式会社北洋銀行",null,null,null,null,null,null,null,null,null,null,null,null,null,null,null,null,null,null,null,null,null,null,null,null,null,null,null,null,null,null,null,null,null,null,null,null,null,null,null,null,null,null,null,null,null,null,null,null,null,null,null,null,null,null,null,null,null,null,null,null,null,null,null,null,null,null,null,null,null,null,null,null,null,null,null,"上記のとおり納入します。",null,null,null,null,null,null,null,null,null,null,null,null,null,null,null,null,null,null,null,null,null,null,null,null,null,null,null,null,null,null,null,null,null,null,null,null,null,null,null,null,null,null,null,null,null,null,null,null,null,null,null,null,null,null,null,null,null,null,null,null,null,null,null,null,null,null,null,null,null,null,null,null,null,null,null,null,null,null,null,null,null,null,null,null,null,null,null,null,null,null,null,null,null,null,null,null,"上記のとおり領収しました。"]
[null,"(取りまとめ店)",null,null,null,null,null,null,null,null,null,null,null,null,null,null,null,null,null,null,null,null,"（函館中央支店）"]
[null,"取りまとめ局",null,null,null,null,null,null,null,null,null,null,null,null,null,null,null,null,null,null,null,null,"小樽貯金事務センター"]
[null,"上記の金額を収納したので通知します。"]
[null,"\n(受付局→取りまとめ局→函館市)",null,null,null,null,null,null,null,null,null,null,null,null,null,null,null,null,null,null,null,null,null,null,null,null,null,null,null,null,null,null,null,null,null,null,null,null,null,null,null,null,null,null,null,null,null,null,null,null,null,null,null,null,null,null,null,null,null,null,null,null,null,null,null,null,null,null,null,null,null,null,null,null,null,null,null,null,null,null,null,null,null,null,null,null,null,null,null,null,null,null,null,null,null,null,null,null,"\n(金融機関または郵便局保管)",null,null,null,null,null,null,null,null,null,null,null,null,null,null,null,null,null,null,null,null,null,null,null,null,null,null,null,null,null,null,null,null,null,null,null,null,null,null,null,null,null,null,null,null,null,null,null,null,null,null,null,null,null,null,null,null,null,null,null,null,null,null,null,null,null,null,null,null,null,null,null,null,null,null,null,null,null,null,null,null,null,null,null,null,null,null,null,null,null,null,null,null,null,null,null,null,"函館市会計管理者\n（納入者保管）"]